{"text_format":"1","workbook":"xlsx","n_sheets":24,"sheets":["Instructions","General Information","Accountants' Report","Contents","Board of Management Report","Accounts Report","Income & Exp Account","Balance Sheet","Notes to the accounts (1)","Notes to the accounts (2)","Notes to the accounts (3)","Notes to the accounts (4)","Notes to the accounts (5)","Income Account","Expenditure Account (1)","Expenditure Account (2)","Detailed Balance Sheet","Financial Report Parents (1)","Financial Report Parents (2)","Cash Flow Statement","Import","Import From Manual","Import Comparisons","Import Manual Comparisons"],"not_rendered":{"charts":0,"images":1,"macros":1,"external_links":0,"defined_names":31,"comments":0,"pivot_tables":0},"unopened":[],"bounds":{"document_bytes":16777216,"sheet_cells":100000,"rows_first":2000,"rows_last":500,"rows_between":2000,"halvings":0,"cell_chars":16384,"cell_head_chars":4096},"cells_cut":0,"cells_raw":0,"read":"whole","date_system":"1900"}

{"sheet":"Instructions","index":0,"n_rows":26,"n_cols":4,"rows_kept":26,"cut":false,"hidden":false,"merged":[]}
[]
[null,null,null,"FSSU Main Menu"]
[]
[null,null,null,"Accountants' Report Master Template"]
[]
[]
["Steps","Task"]
[]
[]
[1,"Import from Manual System - >>"]
[]
[]
[2,"Import Comparisons - >>"]
[]
[]
["3a","Print Accountants' Report Standard ->>"]
[]
[null,"or"]
[]
["3b","Print Accountants' Report With Cashflow ->>"]
[]
[4,"Create Portal Import File ->>"]
[]
[]
[]
[null,"Admin"]

{"sheet":"General Information","index":1,"n_rows":32,"n_cols":6,"rows_kept":32,"cut":false,"hidden":false,"merged":[[1,1,1,3],[29,1,29,3],[31,3,31,4],[3,1,3,2],[5,1,5,2],[8,1,8,4],[9,1,9,4],[10,1,10,4],[12,1,12,4],[19,1,19,3],[21,3,21,4],[24,1,24,3],[26,3,26,4],[16,3,16,4]]}
[null,{"$f":"E4","v":"Scoil Shamplach"},null,null,null,"Instructions"]
[null,"Eolas ginearálta"]
[]
[null,"Ainm na Scoile",null,null,"Scoil Shamplach"]
[]
[null,"Seoladh na Scoile"]
[]
[]
[null,"Uimhir Rolla",null,null,null,"12345G"]
[]
[null,"Uimhir RCN"]
[]
[null,"Clárú Dalta don Bhliain"]
[]
[null,"Pátrún",null,null,"Ainm"]
[]
[null,null,null,"Seoladh"]
[]
[]
[null,"Iontaobhaí (nuair is infheidhme)",null,null,"Ainm"]
[]
[null,null,null,"Seoladh"]
[]
[]
[null,"Cuntasóir / Iniúchóir",null,null,"Ainm"]
[]
[null,null,null,"Seoladh"]
[]
[]
[null,"Baincéirí",null,null,"Ainm"]
[]
[null,null,null,"Seoladh"]

{"sheet":"Accountants' Report","index":2,"n_rows":25,"n_cols":8,"rows_kept":25,"cut":false,"hidden":false,"merged":[[7,1,7,7],[18,1,18,7],[20,0,20,8],[24,0,24,2],[4,1,4,7],[14,2,14,6],[13,2,13,6]]}
[null,null,null,null,null,null,"Instructions"]
[]
[]
[]
[]
[]
[]
[null,"Scoil Shamplach"]
[]
[]
[]
[]
[]
[null,null,"Tuarascáil an Chuntasóra"]
[null,null,"CUNTAIS AIRGEADAIS"]
[]
[]
[]
[]
[]
[]
[]
[]
[]
["Don Bhliain",null,null,"Meán Fómhair 1,","2021","Chun ","Lúnasa 31, ","2022"]

{"sheet":"Contents","index":3,"n_rows":22,"n_cols":8,"rows_kept":22,"cut":false,"hidden":false,"merged":[[1,1,1,2],[6,0,7,0],[6,1,6,5],[6,6,7,6],[21,1,21,4],[7,1,7,5],[9,1,9,5],[11,1,11,5],[19,1,19,5],[13,1,13,5],[15,1,15,5],[17,1,17,5]]}
[null,{"$f":"'General Information'!E4","v":"Scoil Shamplach"},null,null,null,null,null,"Instructions"]
[null,"Clár ábhair"]
[]
[null,null,null,null,null,null,null,"Page"]
[]
[null,"Tuarascáil an Bhoird Bainistíochta",null,null,null,null,"                    ","1-2"]
[]
[null,"Tuarascáil an Chuntasóra / Iniúchta",null,null,null,null,null,3]
[]
[null,"Cuntas Ioncaim agus Caiteachais",null,null,null,null,null,4]
[]
[null,"Clár comhardaithe",null,null,null,null,null,5]
[]
[null,"Nótaí leis na Cuntais",null,null,null,null,null,"6-10"]
[]
[null,"Cuntas mionsonraithe ar Ioncam agus Caiteachas",null,null,null,null,null,"11-13"]
[]
[null,"Clár Comhardaithe Mionsonraithe",null,null,null,null,null,14]
[]
[null,"Tuarascáil Airgeadais do Thuismitheoirí",null,null,null,null,null,"15-16"]
[]
[null,"Ráiteas faoi Shreabhadh Airgid (Roghnach)",null,null,null,null,null,17]

{"sheet":"Board of Management Report","index":4,"n_rows":65,"n_cols":7,"rows_kept":65,"cut":false,"hidden":false,"merged":[[26,0,26,8],[30,0,32,8],[36,0,37,7],[52,0,54,7],[5,0,5,8],[8,0,8,8],[11,0,11,8],[15,0,17,7],[21,1,22,7],[24,0,25,8]]}
[null,{"$f":"'General Information'!E4","v":"Scoil Shamplach"},null,null,null,null,"Instructions"]
[]
[null,"              Tuarascáil an Bhoird Bainistíocht."]
["Don Bhliain Dár Críoch 31 Lúnasa 2022"]
[null,null,null,null,"     SAMPLA"]
["Cuireann na Boird a thuarascáil agus a ráitis airgeadais don bhliain dár críoch 31 Lúnasa 2022 i láthair"]
[]
["•","Cuspóirí agus Gníomhaíochtaí;"]
["Ba í príomh ghníomhaíocht na scoile oideachas a sholáthar I gcomhthéach éiteas na Bunscoild de réir an bhunaidhm, mar a chuir an Patrún in iúl."]
[" "]
["•","Éachtaí agus Feidhmíocht;"]
["Bhí leibhéal na gníomhaíochta don bhliain agus an staid airgeadais sásúil. Tá an Bord ag súil go gcoinneofar an leibhéal gníomhaíochta go ceann i bhfad"]
[]
["•","Athbhreithniú Airgeadais agus Freagracht as Airgeadas;"]
[]
["Ceanglaíonn Alt 18 den Acht Oideachais ar an mbord gach cuntas agus taifead ceart agus gnáth a choinneáil ar an airgead go léir a fhaigheann sé nó ar an gcaiteachas a dhéantar  agus ráitis airgeadais a ullmhú do gach bliain airgeadais, a thugann léargas fíor agus cothrom ar an stát. ar chúrsaí na scoile, agus ar bharrachas nó easnamh na scoile don bhliain sin. Agus iad á n-ullmhú caitfidh an bord :"]
[]
[]
[]
["•","Beartais chuntasíochta oiriúnacha a roghnú agus iad a chur I bhfeidhm go comhsheasmhach"]
["•","Coigeartuithe agus meastacháin a dhéanamh atá réasúnta agus stuama"]
["•","An ráiteas airgeadais a ullmhú ar \"bhonn gnóthas leantach\"ach amháin má tá sé míchuí talamh slán a dhéanamh de go leanfaidh an scoil ag feidhmiú"]
[]
[]
["Tá an bord freagrach as cuntais chearta choinneáil, a nochtann le cruinneas réasúnta ag am ar bith staid airgeadais na scoile agus a chuireann ar a gcumas a chinntiú go gcomhlíonann na ráitis airgeadais an tAcht Oideachas 1998. Tá freagracht orthu freisin as sóchmhainní na scoile a chosaint.   Agus caithfear na céimeanna cuí a thógaint chun calais a aithint agus a chosc."]
[]
["Ag deireadh na bliana, cuirtear cuntais bhliantúla faoi bhráid an FSSU"]
[]
["•","Struchtúr, Rialachas agus Bainistíocht; "]
[]
["Is iad na bearta a ghlac an Bord chun a chinntiú go gcomhlíontar ceanglais an Lámhleabhar Rialachais 2019-2023 agus an Achta Oideachais 1998, maidir le leabhair chuntais chuí, cur i bhfeidhm na mbeartas agus na nósanna imeachta riachtanacha chun idirbhearta a thaifeadadh, pearsanra cuntasaíochta inniúil a fhostú le. saineolas iomchuí, agus soláthar acmhainní leordhóthanacha don fheidhm airgeadais. Coinnítear leabhair chuntais na scoile ar áitreabh na scoile."]
[]
[]
[]
["•","Sonraí Tagartha agus Riaracháin"]
[]
["\nCoinníonn an Bord Bainistíochta taifid a chomhlíonann na Treoirlínte Bunscoile 2019-2023 agus an tAcht Oideachais 1998."]
[]
[]
[]
["Ainmneacha Chomhaltaí an Bhoird"]
[]
[]
[]
[]
[]
[]
[]
[]
[" "]
["Iniúchóirí/Cuntasóirí"]
[]
["……………………………………………………………., leanúint in oifig mar Iniúchóirí/Cuntasóirí de réir riachtanas an bhoird de bhun cloí leis an Acht Oideachais 1998"]
[]
[]
[]
[]
[]
[]
["Thar ceann an Bhoird :"]
[]
[]
[]
["Cathaoirleach",null,null,null,null,"Cisteoir "]
["Dáta: 00 /00/ 00",null,null,null,null,"Dáta: 00 /00/ 00"]

{"sheet":"Accounts Report","index":5,"n_rows":8,"n_cols":7,"rows_kept":8,"cut":false,"hidden":false,"merged":[[3,4,3,6],[2,0,2,7],[16,5,16,7],[6,1,6,3],[3,1,3,3],[7,0,7,7],[4,0,4,7],[21,5,21,7],[22,5,22,7],[8,0,8,5],[9,0,12,7],[20,5,20,7],[16,0,16,3]]}
[null,{"$f":"'General Information'!E4","v":"Scoil Shamplach"},null,null,null,null,"Instructions"]
[]
["TUARASCÁIL CUNTASÓIRÍ AR NA CUNTAIS DON BHORD"]
[]
["  nó "]
[]
[]
[" TUARASCÁIL AN INIÚCHÓIR DO IONTAOBHAS / PATRÚN"]

{"sheet":"Income & Exp Account","index":6,"n_rows":36,"n_cols":8,"rows_kept":36,"cut":false,"hidden":false,"merged":[[3,0,3,5],[17,1,17,2],[9,1,9,2],[11,1,11,2],[13,1,13,2],[15,1,15,2]]}
[null,{"$f":"'General Information'!E4","v":"Scoil Shamplach"},null,null,null,null,null,"Instructions"]
[]
[]
["Cuntas Mionsonraithe Ioncaim agus Caiteachais don bhliain dar críoch",null,null,null,null,null,{"$f":"'Accountants'' Report'!G25","v":"Lúnasa 31, "},{"$f":"'Accountants'' Report'!H25","v":"2022"}]
[]
[]
[null,null,null,null,null,"Iarbhír    ",null,"Iarbhír    "]
[null,null,null,null,null,"2021/2022",null,"2020/2021"]
[]
[null,"Ioncam Iomlán",null,null,null,{"$f":"SUM('Income Account'!F100)","v":0},null,{"$f":"'Income Account'!H100","v":0}]
[]
[null,"Caiteachas Iomlán",null,null,null,{"$f":"'Expenditure Account (2)'!F83","v":0},null,{"$f":"'Expenditure Account (2)'!H83","v":0}]
[]
[null,"Barrachas / Easnamh",null,null,null,{"$f":"F10-F12","v":0},null,{"$f":"H10-H12","v":0}]
[]
[null,"Iarmhéid Oscailte",null,null,null,{"$f":"'Detailed Balance Sheet'!F105","v":0},null,{"$f":"'Detailed Balance Sheet'!H105","v":0}]
[]
[null,"Iarmhéid Deiridh",null,null,null,{"$f":"F14+F16","v":0},null,{"$f":"H14+H16","v":0}]
[]
[]
[]
[]
[]
[]
[]
[]
[]
["Ar son an Bórd;"]
[]
[]
[]
[]
[null,"Cathaoirleach",null,null,null,"Cisteoir"]
[]
[]
[null,"Dáta"]

{"sheet":"Balance Sheet","index":7,"n_rows":44,"n_cols":8,"rows_kept":44,"cut":false,"hidden":false,"merged":[[22,0,23,0],[15,1,15,3],[18,1,18,3],[20,1,20,3],[22,1,22,3],[17,1,17,2],[16,1,16,3],[5,1,5,2],[7,1,7,3],[12,1,12,2],[14,1,14,3],[8,1,8,3],[10,1,10,3],[40,1,40,3],[40,5,40,7],[42,1,42,2],[43,1,43,2],[22,6,23,6],[22,7,23,7],[29,1,29,3],[31,1,31,3],[39,1,39,3],[39,5,39,7],[22,4,23,4],[22,5,23,5],[33,1,33,3],[25,1,25,3],[27,1,27,3],[35,1,35,3]]}
[null,{"$f":"'General Information'!E4","v":"Scoil Shamplach"},null,null,null,null,null,"Instructions"]
[]
[null,"Clárcomhardaithe ar an ",null,null,"Lúnasa 31, ",{"$f":"'Accountants'' Report'!H25","v":"2022"}]
[null,null,null,null,null,"Iarbhír",null,"Iarbhír"]
[null,null,null,null,null,"2021/2022",null,"2020/2021"]
[null,"1.  Sócmhainn Sheasta",null,null,"Nóta 2"]
[]
[null,"Daingneáin agus Feistis",null,null,null,{"$f":"SUM('Detailed Balance Sheet'!F12:F23)","v":0},null,{"$f":"SUM('Detailed Balance Sheet'!H12:H23)","v":0}]
[null,"Bonneagar TFC",null,null,null,{"$f":"SUM('Detailed Balance Sheet'!F30:F41)","v":0},null,{"$f":"SUM('Detailed Balance Sheet'!H30:H41)","v":0}]
[null,"Caipiteal Eile",null,null,null,{"$f":"SUM('Detailed Balance Sheet'!F6:F11)+SUM('Detailed Balance Sheet'!F24:F29)+SUM('Detailed Balance Sheet'!F42:F47)","v":0},null,{"$f":"SUM('Detailed Balance Sheet'!H6:H11)+SUM('Detailed Balance Sheet'!H24:H29)+SUM('Detailed Balance Sheet'!H42:H47)","v":0}]
[null,"Iomlán Schmhainn sheasta",null,null,null,{"$f":"F8+F9+F10","v":0},null,{"$f":"H8+H9+H10","v":0}]
[]
[null,"2.  Sócmhainn Reatha",null,null,"Nóta 3"]
[]
[null,"Féichiúnaithe agus caiteachais réamhíoctha ",null,null,null,{"$f":"SUM('Detailed Balance Sheet'!F50:F54)","v":0},null,{"$f":"SUM('Detailed Balance Sheet'!H50:H54)","v":0}]
[null,"Airgead sa Bhanc",null,null,null,{"$f":"SUM('Detailed Balance Sheet'!F55:F64)","v":0},null,{"$f":"SUM('Detailed Balance Sheet'!H55:H64)","v":0}]
[null,"Iomlán Sochmhainn Reatha",null,null,null,{"$f":"F15+F16","v":0},null,{"$f":"H15+H16","v":0}]
[]
[null,"3.  Dliteanas Reatha",null,null,"Nóta 4"]
[]
[null,"Creidiúnaithe agus caiteachais fabhraithe",null,null,null,{"$f":"SUM('Detailed Balance Sheet'!F67:F100)","v":0},null,{"$f":"SUM('Detailed Balance Sheet'!H67:H100)","v":0}]
[]
[null,"Dliteanais Fhadtéarmacha",null,null,null,{"$f":"SUM('Detailed Balance Sheet'!F101)","v":0},null,{"$f":"SUM('Detailed Balance Sheet'!H101)","v":0}]
[null,"Iasacht fhadtéarmach"]
[]
[null,"sócmhainní lúide dliteanais",null,null,null,{"$f":"F11+F17-F21-F23","v":0},null,{"$f":"H11+H17-H21-H23","v":0}]
[]
[null,"Caipiteal & Cúlchistí"]
[]
[null,"5. Ranníocaíocht i leith Costas Sócmhainní Seasta",null,null,"Nóta 5,6",{"$f":"SUM('Detailed Balance Sheet'!F106:F125)","v":0},null,{"$f":"SUM('Detailed Balance Sheet'!H106:H125)","v":0}]
[]
[null,"6. Barrachas/Easnamh Tréimhse Reatha ar Chuntas Ioncaim agus Caiteachais",null,null,null,{"$f":"'Income & Exp Account'!F14","v":0},null,{"$f":"'Income & Exp Account'!H14","v":0}]
[]
[null,"7. Barrachas/Easnamh Tréimhsí Roimhe Seo ar Chuntas Ioncaim agus Caiteachais",null,null,null,{"$f":"SUM('Detailed Balance Sheet'!F105)","v":0},null,{"$f":"SUM('Detailed Balance Sheet'!H105)","v":0}]
[]
[null,"Caipiteal Iomlán agus Cúlchist",null,null,null,{"$f":"F30+F32+F34","v":0},null,{"$f":"H30+H32+H34","v":0}]
[]
["Thar ceann an bhoird;"]
[]
[]
[null,"Cathaoirleach",null,null,null,"Cisteoir"]
[]
[]
[null,"Dáta   "]

{"sheet":"Notes to the accounts (1)","index":8,"n_rows":12,"n_cols":8,"rows_kept":12,"cut":false,"hidden":false,"merged":[[10,1,10,5],[10,6,10,8],[10,9,10,10],[11,1,11,5],[11,6,11,8],[11,9,11,10],[7,1,7,5],[7,6,7,8],[7,9,7,10],[8,1,8,5],[9,1,9,5],[9,6,9,8],[9,9,9,10],[5,1,5,5],[5,6,5,8],[5,9,5,10],[6,1,6,5],[6,6,6,8],[6,9,6,10],[1,3,2,3],[1,4,2,4],[1,10,2,10],[3,1,3,6],[4,1,4,5],[4,6,4,8],[4,9,4,10]]}
[null,{"$f":"'Income & Exp Account'!F8","v":"2021/2022"},null,null,null,null,null,"Instructions"]
[null,"Nótaí leis na Ráitis Airgeadais"]
[]
[null,"1. Beartais Chuntasaíochta: Dímheas, Deontais Rialtais Neamhchaite, srl"]
[null,"Beartas Dímheasa"]
[null,"Déantar earraí a luacháil ag costas lúide dímheas bunaithe ar mhodheolaíocht dronlíneach "]
[null,"Déantar Daingneáin, Feistis & Trealamh a dhímheas thar shaolré úsáideach cúig bliana "]
[null,"Déantar trealamh ríomhaireachta/TFC a dhímheas thar shaolré úsáideach trí bliana."]
[null,"Déantar Mótarfheithiclí a dhímheas thar shaolré úsáideach cúig bliana."]
[]
[null,"Deontais Neamhchaite"]
[null,"Ní chuirtear siar Deontais Rialtais ar leith ach amháin má tá comhlíonadh na gcoinníollacha neamhiomlán i.e. ní féidir é a aithint sa bhliain ina bhfaightear é mura bhfuil an t-airgead leithdháilte i gcoinne na cúise gur tugadh an deontas"]

{"sheet":"Notes to the accounts (2)","index":9,"n_rows":19,"n_cols":9,"rows_kept":19,"cut":false,"hidden":false,"merged":[]}
[null,{"$f":"'Balance Sheet'!F5","v":"2021/2022"},null,null,null,null,null,"Instructions"]
["2. Sócmhainní Seasta:"]
[]
["Sampla: "]
[null,"\nTalamh & Foirgnimh","\nDaingneáin, Feistis agus Trealamh","\nMionoibreacha Covid Daingneáin, Feistis agus Trealamh","\nFeithiclí Mótair","\nTFC","Mionoibreacha Covid TFC","\nCaipiteal Eile","\nIomlán"]
[]
["Iarmhéid Oscailte","xxx","xxx","xxx","xxx","xxx","xxx","xxx","xxx"]
["Breiseanna","xxx","xxx","xxx","xxx","xxx","xxx","xxx","xxx"]
["Diúscairtí","xxx","xxx","xxx","xxx","xxx","xxx","xxx","xxx"]
["Iarmhéid Deiridh","xxx","xxx","xxx","xxx","xxx","xxx","xxx","xxx"]
[]
["\nDímheas Carntha"]
["Iarmhéid Oscailte","xxx","xxx","xxx","xxx","xxx","xxx","xxx","xxx"]
["Dímheas na Bliana Reatha","xxx","xxx","xxx","xxx","xxx","xxx","xxx","xxx"]
[]
["Dímheas ar Dhiúscairt","xxx","xxx","xxx","xxx","xxx","xxx","xxx","xxx"]
[]
["Dímheas Iarmhéid Deiridh","xxx","xxx","xxx","xxx","xxx","xxx","xxx","xxx"]
["Glanluach Leabhar","xxx","xxx","xxx","xxx","xxx","xxx","xxx","xxx"]

{"sheet":"Notes to the accounts (3)","index":10,"n_rows":51,"n_cols":12,"rows_kept":51,"cut":false,"hidden":false,"merged":[[37,1,37,2],[16,9,16,10],[17,1,18,2],[17,3,18,3],[17,4,18,4],[17,5,18,5],[17,6,18,6],[17,8,18,8],[17,9,18,9],[17,10,18,10],[7,11,8,11],[15,1,15,5],[15,6,15,8],[15,9,15,10],[17,11,18,11],[1,10,2,10],[4,6,4,8],[4,9,4,10],[6,9,6,10],[7,1,8,2],[7,3,8,3],[7,4,8,4],[7,5,8,5],[7,6,8,6],[7,8,8,8],[7,9,8,9],[7,10,8,10],[39,9,40,9],[39,10,40,10],[39,11,40,11],[39,3,40,3],[39,4,40,4],[39,5,40,5],[39,6,40,6],[39,8,40,8],[39,7,40,7]]}
[null,{"$f":"'Income & Exp Account'!F8","v":"2021/2022"},null,null,null,null,null,null,null,"Instructions"]
[]
[null,"3. Féichiúnaithe agus Costais Réamhíoctha"]
[]
[null,"4. Creidiúnaithe agus Costais Fabhraithe"]
[]
[null,"Sampla:"]
[null,"Ioncam Faighte Roimh Ré",null,"Gan chaitheamh 01-Meán Fómhair-XX",null,"Deontais Rialtais a Fuarthas Roimh Ré",null,"Aitheanta san cuntas I&C",null,"Aistriú go Cúlchistí Caipitil",null,"Gan chaitheamh 31-Lúnasa-XX"]
[]
[]
[null,"\nIoncam Scoile Faighte Roimh Ré",null,"xxx",null,"xxx",null,"xxx",null,"xxx",null,"xxx"]
[null,"Deontais a Fuarthas Roimh Ré",null,"xxx",null,"xxx",null,"xxx",null,"xxx",null,"xxx"]
[null,"Deontas Leabhar a Fuarthas Roimh Ré",null,"xxx",null,"xxx",null,"xxx",null,"xxx",null,"xxx"]
[null,"Deontas DEIS Faighte Roimh Ré",null,"xxx",null,"xxx",null,"xxx",null,"xxx",null,"xxx"]
[null,null,null,"xxx",null,"xxx",null,"xxx",null,"xxx",null,"xxx"]
[]
[null,"Sampla:"]
[null,"Ioncam neamhchaite",null,"Gan chaitheamh 01-Meán Fómhair-XX",null,"Deontais Rialtais a Fuarthas Roimh Ré",null,"Aitheanta san cuntas I&C",null,"Aistriú go Cúlchistí Caipitil",null,"Gan chaitheamh 31-Lúnasa-XX"]
[]
[null,"Leabhar Deontas Neamhchaite",null,"xxx",null,"xxx",null,"xxx",null,"xxx",null,"xxx"]
[null,"Deontas Caipitil Leabhair Leabharlainne Scoile Neamhchaite",null,"xxx",null,"xxx",null,"xxx",null,"xxx",null,"xxx"]
[null,"Ábhair/Trealamh na Scéime Tús Luath/Forbairt na dTuismitheoirí Neamhchaite",null,"xxx",null,"xxx",null,"xxx",null,"xxx",null,"xxx"]
[null,"Deontas TFC Neamhchaite",null,"xxx",null,"xxx",null,"xxx",null,"xxx",null,"xxx"]
[null,"Deontas Mionoibreacha Neamhchaite",null,"xxx",null,"xxx",null,"xxx",null,"xxx",null,"xxx"]
[null,"Deontas TSCS Neamhchaite",null,"xxx",null,"xxx",null,"xxx",null,"xxx",null,"xxx"]
[null,"Deontas Buiséid Pá Neamh-Mhúinteoirí Neamhchait",null,"xxx",null,"xxx",null,"xxx",null,"xxx",null,"xxx"]
[null,"Deontas Mionoibreacha COVID Neamhchaite",null,"xxx",null,"xxx",null,"xxx",null,"xxx",null,"xxx"]
[null,"Deontas Maoirseachta agus Ionaid Neamhchaite",null,"xxx",null,"xxx",null,"xxx",null,"xxx",null,"xxx"]
[null,"Deontais Imfhálaithe Eile Neamhchaite*",null,"xxx",null,"xxx",null,"xxx",null,"xxx",null,"xxx"]
[null,"Ioncam Imfhálaithe Eile Neamhchaite",null,"xxx",null,"xxx",null,"xxx",null,"xxx",null,"xxx"]
[null,"Deontas na Roinne Digiteach Neamhchaite",null,"xxx",null,"xxx",null,"xxx",null,"xxx",null,"xxx"]
[null,"Ciste Sármhaitheasa Scoile Neamhchaite",null,"xxx",null,"xxx",null,"xxx",null,"xxx",null,"xxx"]
[null,"Deontas Cúnaimh COVID Neamhchait",null,"xxx",null,"xxx",null,"xxx",null,"xxx",null,"xxx"]
[null,"Caipitíocht COVID do Dheontas TCP Neamhchaite",null,"xxx",null,"xxx",null,"xxx",null,"xxx",null,"xxx"]
[null,"Deontas Maoirseachta Feabhsaithe COVID Neamhchaite",null,"xxx",null,"xxx",null,"xxx",null,"xxx",null,"xxx"]
[null,"Caipitíocht COVID do Dheontas Glantacháin Breise Neamhchaite",null,"xxx",null,"xxx",null,"xxx",null,"xxx",null,"xxx"]
[null,"Uaireanta Athsholáthair COVID Neamhchaite",null,"xxx",null,"xxx",null,"xxx",null,"xxx",null,"xxx"]
[null,null,null,"xxx",null,"xxx",null,"xxx",null,"xxx",null,"xxx"]
[]
[null,"*Deontais Imfhálaithe Eile Neamhchaite",null,"Gan chaitheamh 01-Meán Fómhair-XX",null,"Deontais Rialtais a Fuarthas Roimh Ré",null,"Aitheanta san cuntas I&C",null,"Aistriú go Cúlchistí Caipitil",null,"Gan chaitheamh 31-Lúnasa-XX"]
[]
[null,"Deontas Coimhdeachta Bus",null,"xxx",null,"xxx",null,"xxx",null,"xxx",null,"xxx"]
[null,"Idirchaidreamh Baile Scoile",null,"xxx",null,"xxx",null,"xxx",null,"xxx",null,"xxx"]
[null,"Maoiniú Stáit Eile",null,"xxx",null,"xxx",null,"xxx",null,"xxx",null,"xxx"]
[null,"Deontas Béilí Scoile",null,"xxx",null,"xxx",null,"xxx",null,"xxx",null,"xxx"]
[null,"Deontas Trealaimh Oideachais Speisialta",null,"xxx",null,"xxx",null,"xxx",null,"xxx",null,"xxx"]
[null,"Deontas Tástála Caighdeánaithe",null,"xxx",null,"xxx",null,"xxx",null,"xxx",null,"xxx"]
[null,"Cláir Samhraidh",null,"xxx",null,"xxx",null,"xxx",null,"xxx",null,"xxx"]
[null,"Deontas Cóiríochta ar Cíos Sealadach",null,"xxx",null,"xxx",null,"xxx",null,"xxx",null,"xxx"]
[]
[null,null,null,"xxx",null,"xxx",null,"xxx",null,"xxx",null,"xxx"]

{"sheet":"Notes to the accounts (4)","index":11,"n_rows":33,"n_cols":11,"rows_kept":33,"cut":false,"hidden":false,"merged":[[32,0,32,10]]}
[{"$f":"'Income & Exp Account'!F8","v":"2021/2022"}]
["5. Ranníocaíocht i leith costas Foirgnimh Chaipitiúla: Deontais Chaipitil RO, Tiomsú Airgid, Deontais, Ranníocaíochtaí Pátrúin/Iontaobhaithe, 7rl"]
[]
["5.1 Ranníocaíocht i leith costas Foirgníochta"]
[null,null,"\nFoirgnimh Chaipitil","Foirgnimh Chaipitil","Foirgnimh Chaipitil","Foirgnimh Chaipitil","Foirgnimh Chaipitil","Foirgnimh Chaipitil","Foirgnimh Chaipitil"]
[null,null,"Ranníocaíocht Deontais RO","\nRanníocaíocht Tiomsaithe Airgid","\nRanníocaíocht Tuismitheoirí","Ranníocaíocht Pátrúin/Iontaobhaithe","\nRanníocaíocht Chaipitil Stáit Eile","Ranníocaíocht Mionoibreacha Covid","Ranníocaíocht Síntiús Caipitiúil",null,"\nIomlán"]
["Ioncam"]
["Iarmhéid Oscailte",null,"xxx","xxx","xxx","xxx","xxx","xxx","xxx",null,"xxx"]
["Faighte i rith na bliana",null,"xxx","xxx","xxx","xxx","xxx","xxx","xxx"]
["Aistrithe chuig an gCuntas Ciste Foirgníochta i rith na bliana",null,"xxx","xxx","xxx","xxx","xxx","xxx","xxx",null,"xxx"]
["Iarmhéid Deiridh",null,"xxx","xxx","xxx","xxx","xxx","xxx","xxx",null,"xxx"]
["Caiteachas"]
["Iarmhéid Oscailte",null,"xxx","xxx","xxx","xxx","xxx","xxx","xxx",null,"xxx"]
["Caitheadh ​​i rith na bliana",null,"xxx","xxx","xxx","xxx","xxx","xxx","xxx",null,"xxx"]
["Aistrithe chuig an gCuntas Ciste Foirgníochta i rith na bliana",null,"xxx","xxx","xxx","xxx","xxx","xxx","xxx",null,"xxx"]
["Iarmhéid Deiridh",null,"xxxxx","xxxxx","xxxxx","xxxxx","xxxxx","xxxxx","xxxxx",null,"xxxxx"]
["Glan-ranníocaíocht Tógáil",null,"xxxxx","xxxxx","xxxxx","xxxxx","xxxxx","xxxxx","xxxxx",null,"xxxxx"]
[]
["5.2 Cuntas Ciste Foirgníochta"]
[null,null,"\nFoirgnimh Chaipitil","\nFoirgnimh Chaipitil","\nFoirgnimh Chaipitil","\nFoirgnimh Chaipitil","\nFoirgnimh Chaipitil","\nFoirgnimh Chaipitil","\nFoirgnimh Chaipitil"]
[null,null,"Ranníocaíocht Deontais RO","\nRanníocaíocht Tiomsaithe Airgid","\nRanníocaíocht Tuismitheoirí","Ranníocaíocht Pátrúin/Iontaobhaithe","\nRanníocaíocht Chaipitil Stáit Eile","Ranníocaíocht Mionoibreacha Covid","Ranníocaíocht Síntiús Caipitiúil",null,"\nIomlán"]
["Ioncam"]
["Iarmhéid Oscailte",null,"xxx","xxx","xxx","xxx","xxx","xxx","xxx",null,"xxx"]
["Aistrithe ó Ranníocaíocht i dtreo chostas Tógála",null,"xxx","xxx","xxx","xxx","xxx","xxx","xxx",null,"xxx"]
["Iarmhéid Deiridh",null,"xxx","xxx","xxx","xxx","xxx","xxx","xxx",null,"xxx"]
["Caiteachas"]
["Iarmhéid Oscailte",null,"xxx","xxx","xxx","xxx","xxx","xxx","xxx",null,"xxx"]
["Aistrithe ó Ranníocaíocht i dtreo chostas Tógála",null,"xxx","xxx","xxx","xxx","xxx","xxx","xxx",null,"xxx"]
["Iarmhéid Deiridh",null,"xxxxx","xxxxx","xxxxx","xxxxx","xxxxx","xxxxx","xxxxx",null,"xxxxx"]
["Glanchuntas Ciste Foirgníochta",null,"xxxxx","xxxxx","xxxxx","xxxxx","xxxxx","xxxxx","xxxxx",null,"xxxxx"]
[]
["\nTionscadail Chaipitil"]
["Sa bhliain tar éis críochnú na n-oibreacha tógála caipitil, tá an t-iarmhéid sa Ranníocaíocht i dtreo chostas na gcód Foirgnimh Chaipitil : Deontais Chaipitil RO, Tiomsú Airgid, Síntiúis, Ranníocaíochtaí Pátrúin/Iontaobhaithe, srl le haistriú chuig an gcuntas Ciste Foirgníochta."]

{"sheet":"Notes to the accounts (5)","index":12,"n_rows":23,"n_cols":10,"rows_kept":23,"cut":false,"hidden":false,"merged":[]}
[null,{"$f":"'Income & Exp Account'!F8","v":"2021/2022"},null,null,null,null,"Instructions"]
[]
[null,"5.3 Amúchadh Deontas Caipitil neamh-fhoirgnimh"]
[null,"Daingneáin, Feistis agus Trealamh agus Caipiteal TFC Iomlán",null,null,null,"Fixtures, Fittings and Equipment",null,"ICT Equipment",null,"Total"]
[null,"Deontais a fuarthas"]
[null,"Iarmhéid Oscailte ",null,null,null,"xxx",null,"xxx",null,"xxx"]
[null,"Faighte i rith na bliana",null,null,null,"xxx",null,"xxx",null,"xxx"]
[null,"Iarmhéid Deiridh ",null,null,null,"xxx",null,"xxx",null,"xxx"]
[null,"Amúchadh "]
[null,"Iarmhéid Oscailte ",null,null,null,"xxx",null,"xxx",null,"xxx"]
[null,"Amortisation for the year  ",null,null,null,"xxx",null,"xxx",null,"xxx"]
[null,"Iarmhéid Deiridh",null,null,null,"xxx",null,"xxx",null,"xxx"]
[null,"Glan-Ranníocaíocht    ",null,null,null,"xxx",null,"xxx",null,"xxx"]
[]
[]
[null,"5.4 Achoimre"]
[null,"Ranníocaíocht i leith costas Sócmhainní Seasta"]
[null,null,null,null,null,"20XX",null,"20XX"]
[5.0999999999999996,"Ranníocaíocht i leith costas Foirgníochta",null,null,null,"xxx",null,"xxx"]
[5.2,"Cuntas Ciste Foirgníochta",null,null,null,"xxx",null,"xxx"]
[5.3,"Deontais Chaipitiúla Neamhfhoirgníochta",null,null,null,"xxx",null,"xxx"]
[null,"Caipiteal Eile",null,null,null,"xxx",null,"xxx"]
[null,null,null,null,null,"xxx",null,"xxx"]

{"sheet":"Income Account","index":13,"n_rows":100,"n_cols":10,"rows_kept":100,"cut":false,"hidden":false,"merged":[[1,0,1,5]]}
[null,{"$f":"'General Information'!E4","v":"Scoil Shamplach"},null,null,null,null,"Instructions"]
["Cuntas Mionsonraithe Ioncaim agus Caiteachais don bhliain dar críoch",null,null,null,null,null,{"$f":"'Accountants'' Report'!G25","v":"Lúnasa 31, "},{"$f":"'Accountants'' Report'!H25","v":"2022"}]
[null,"Ioncam",null,null,null,"Iarbhír  Reatha              ",null,"\nÍarbhír Anuraidh"]
[null,null,null,null,null,{"$f":"'Balance Sheet'!F5","v":"2021/2022"},null,{"$f":"'Balance Sheet'!H5","v":"2020/2021"}]
[null,"1. An Roinn Oideachais                                                                   "]
[3010,"Buiséad Caipitíochta/Neamhphá",null,null,null,{"$f":"-IFERROR(VLOOKUP(A6,Nominal_Code_LT3[],2,FALSE),0)","v":0},null,{"$f":"-IFERROR(VLOOKUP(A6,Nominal_Code_LT[],2,FALSE),0)","v":0},null,{"$f":"IF(AND(F6=0,H6=0),\"N\",\"Y\")","v":"N"}]
[3020,"Deontas DEIS",null,null,null,{"$f":"-IFERROR(VLOOKUP(A7,Nominal_Code_LT3[],2,FALSE),0)","v":0},null,{"$f":"-IFERROR(VLOOKUP(A7,Nominal_Code_LT[],2,FALSE),0)","v":0},null,{"$f":"IF(AND(F7=0,H7=0),\"N\",\"Y\")","v":"N"}]
[3030,"Buiséad Pá Neamhtheagaisc",null,null,null,{"$f":"-IFERROR(VLOOKUP(A8,Nominal_Code_LT3[],2,FALSE),0)","v":0},null,{"$f":"-IFERROR(VLOOKUP(A8,Nominal_Code_LT[],2,FALSE),0)","v":0},null,"N"]
[3050,"Deontas um Sheirbhísí Tacaíochta/Tánaisteach do Scoileanna",null,null,null,{"$f":"-IFERROR(VLOOKUP(A9,Nominal_Code_LT3[],2,FALSE),0)","v":0},null,{"$f":"-IFERROR(VLOOKUP(A9,Nominal_Code_LT[],2,FALSE),0)","v":0},null,"N"]
[3100,"Deontas Rúnaíochta",null,null,null,{"$f":"-IFERROR(VLOOKUP(A10,Nominal_Code_LT3[],2,FALSE),0)","v":0},null,{"$f":"-IFERROR(VLOOKUP(A10,Nominal_Code_LT[],2,FALSE),0)","v":0},null,"N"]
[3130,"Deontas d’Fheighlithe",null,null,null,{"$f":"-IFERROR(VLOOKUP(A11,Nominal_Code_LT3[],2,FALSE),0)","v":0},null,{"$f":"-IFERROR(VLOOKUP(A11,Nominal_Code_LT[],2,FALSE),0)","v":0},null,"N"]
[3140,"Deontas do Threalamh Oideachais Speisialta",null,null,null,{"$f":"-IFERROR(VLOOKUP(A12,Nominal_Code_LT3[],2,FALSE),0)","v":0},null,{"$f":"-IFERROR(VLOOKUP(A12,Nominal_Code_LT[],2,FALSE),0)","v":0},null,"N"]
[3150,"Ioncam ó Dheontas na Leabhar",null,null,null,{"$f":"-IFERROR(VLOOKUP(A13,Nominal_Code_LT3[],2,FALSE),0)","v":0},null,{"$f":"-IFERROR(VLOOKUP(A13,Nominal_Code_LT[],2,FALSE),0)","v":0},null,"N"]
[3155,"Deontas Caipitil faoi chomhair Leabhair don Leabharlann Scoile",null,null,null,{"$f":"-IFERROR(VLOOKUP(A14,Nominal_Code_LT3[],2,FALSE),0)","v":0},null,{"$f":"-IFERROR(VLOOKUP(A14,Nominal_Code_LT[],2,FALSE),0)","v":0},null,"N"]
[3160,"Deontas na Scéime Leabhar ar Cíos",null,null,null,{"$f":"-IFERROR(VLOOKUP(A15,Nominal_Code_LT3[],2,FALSE),0)","v":0},null,{"$f":"-IFERROR(VLOOKUP(A15,Nominal_Code_LT[],2,FALSE),0)","v":0},null,"N"]
[3170,"Deontas na nÁbhar Speisialta",null,null,null,{"$f":"-IFERROR(VLOOKUP(A16,Nominal_Code_LT3[],2,FALSE),0)","v":0},null,{"$f":"-IFERROR(VLOOKUP(A16,Nominal_Code_LT[],2,FALSE),0)","v":0},null,"N"]
[3190,"Deontas Chlár Scoile an Teastais Shóisearaigh",null,null,null,{"$f":"-IFERROR(VLOOKUP(A17,Nominal_Code_LT3[],2,FALSE),0)","v":0},null,{"$f":"-IFERROR(VLOOKUP(A17,Nominal_Code_LT[],2,FALSE),0)","v":0},null,"N"]
[3200,"Deontas Idirbhliana",null,null,null,{"$f":"-IFERROR(VLOOKUP(A18,Nominal_Code_LT3[],2,FALSE),0)","v":0},null,{"$f":"-IFERROR(VLOOKUP(A18,Nominal_Code_LT[],2,FALSE),0)","v":0},null,"N"]
[3210,"Deontas na hArdteistiméireachta Feidhmí",null,null,null,{"$f":"-IFERROR(VLOOKUP(A19,Nominal_Code_LT3[],2,FALSE),0)","v":0},null,{"$f":"-IFERROR(VLOOKUP(A19,Nominal_Code_LT[],2,FALSE),0)","v":0},null,"N"]
[3220,"Deontas Daltaí ar Taistealaithe iad",null,null,null,{"$f":"-IFERROR(VLOOKUP(A20,Nominal_Code_LT3[],2,FALSE),0)","v":0},null,{"$f":"-IFERROR(VLOOKUP(A20,Nominal_Code_LT[],2,FALSE),0)","v":0},null,"N"]
[3225,"Amúchadh Deontas Trealamh RO",null,null,null,{"$f":"-IFERROR(VLOOKUP(A21,Nominal_Code_LT3[],2,FALSE),0)","v":0},null,{"$f":"-IFERROR(VLOOKUP(A21,Nominal_Code_LT[],2,FALSE),0)","v":0},null,"N"]
[3226,"Amúchadh Deontas TFC RO",null,null,null,{"$f":"-IFERROR(VLOOKUP(A22,Nominal_Code_LT3[],2,FALSE),0)","v":0},null,{"$f":"-IFERROR(VLOOKUP(A22,Nominal_Code_LT[],2,FALSE),0)","v":0},null,"N"]
[3227,"Amúchadh Deontas Eile RO",null,null,null,{"$f":"-IFERROR(VLOOKUP(A23,Nominal_Code_LT3[],2,FALSE),0)","v":0},null,{"$f":"-IFERROR(VLOOKUP(A23,Nominal_Code_LT[],2,FALSE),0)","v":0},null,"N"]
[3230,"Deontas TFC Neamhchaipitiúil",null,null,null,{"$f":"-IFERROR(VLOOKUP(A24,Nominal_Code_LT3[],2,FALSE),0)","v":0},null,{"$f":"-IFERROR(VLOOKUP(A24,Nominal_Code_LT[],2,FALSE),0)","v":0},null,"N"]
[3240,"Deontas Maoirseachta agus Ionadaíochta",null,null,null,{"$f":"-IFERROR(VLOOKUP(A25,Nominal_Code_LT3[],2,FALSE),0)","v":0},null,{"$f":"-IFERROR(VLOOKUP(A25,Nominal_Code_LT[],2,FALSE),0)","v":0},null,"N"]
[3245,"Deontas Fisice/Ceimice",null,null,null,{"$f":"-IFERROR(VLOOKUP(A26,Nominal_Code_LT3[],2,FALSE),0)","v":0},null,{"$f":"-IFERROR(VLOOKUP(A26,Nominal_Code_LT[],2,FALSE),0)","v":0},null,"N"]
[3255,"Ioncam Scrúduithe Stáit",null,null,null,{"$f":"-IFERROR(VLOOKUP(A27,Nominal_Code_LT3[],2,FALSE),0)","v":0},null,{"$f":"-IFERROR(VLOOKUP(A27,Nominal_Code_LT[],2,FALSE),0)","v":0},null,"N"]
[3260,"Ioncam ón gCiste Barr Feabhais Scoileanna",null,null,null,{"$f":"-IFERROR(VLOOKUP(A28,Nominal_Code_LT3[],2,FALSE),0)","v":0},null,{"$f":"-IFERROR(VLOOKUP(A28,Nominal_Code_LT[],2,FALSE),0)","v":0},null,"N"]
[3270,"Deontas Lárionaid Spóirt",null,null,null,{"$f":"-IFERROR(VLOOKUP(A29,Nominal_Code_LT3[],2,FALSE),0)","v":0},null,{"$f":"-IFERROR(VLOOKUP(A29,Nominal_Code_LT[],2,FALSE),0)","v":0},null,"N"]
[3275,"Deontas Mionoibreacha Neamhchaipitiúla",null,null,null,{"$f":"-IFERROR(VLOOKUP(A30,Nominal_Code_LT3[],2,FALSE),0)","v":0},null,{"$f":"-IFERROR(VLOOKUP(A30,Nominal_Code_LT[],2,FALSE),0)","v":0},null,"N"]
[3276,"Ioncam ón Deontas Cóiríochta Sealadaí",null,null,null,{"$f":"-IFERROR(VLOOKUP(A31,Nominal_Code_LT3[],2,FALSE),0)","v":0},null,{"$f":"-IFERROR(VLOOKUP(A31,Nominal_Code_LT[],2,FALSE),0)","v":0},null,"N"]
[3277,"Deontas i leith Mionoibreacha COVID           ",null,null,null,{"$f":"-IFERROR(VLOOKUP(A32,Nominal_Code_LT3[],2,FALSE),0)","v":0},null,{"$f":"-IFERROR(VLOOKUP(A32,Nominal_Code_LT[],2,FALSE),0)","v":0},null,"N"]
[3280,"Deontas Chúntóir COVID",null,null,null,{"$f":"-IFERROR(VLOOKUP(A33,Nominal_Code_LT3[],2,FALSE),0)","v":0},null,{"$f":"-IFERROR(VLOOKUP(A33,Nominal_Code_LT[],2,FALSE),0)","v":0},null,"N"]
[3281,"Deontas Caipitíochta COVID le haghaidh PPE",null,null,null,{"$f":"-IFERROR(VLOOKUP(A34,Nominal_Code_LT3[],2,FALSE),0)","v":0},null,{"$f":"-IFERROR(VLOOKUP(A34,Nominal_Code_LT[],2,FALSE),0)","v":0},null,"N"]
[3282,"Deontas Mhaoirseacht Fheabhsaithe COVID",null,null,null,{"$f":"-IFERROR(VLOOKUP(A35,Nominal_Code_LT3[],2,FALSE),0)","v":0},null,{"$f":"-IFERROR(VLOOKUP(A35,Nominal_Code_LT[],2,FALSE),0)","v":0},null,"N"]
[3283,"Deontas Caipitíochta COVID um Ghlantachán Breise",null,null,null,{"$f":"-IFERROR(VLOOKUP(A36,Nominal_Code_LT3[],2,FALSE),0)","v":0},null,{"$f":"-IFERROR(VLOOKUP(A36,Nominal_Code_LT[],2,FALSE),0)","v":0},null,"N"]
[3284,"Maoiniú COVID le haghaidh Uaireanta Feighlí Ionaid",null,null,null,{"$f":"-IFERROR(VLOOKUP(A37,Nominal_Code_LT3[],2,FALSE),0)","v":0},null,{"$f":"-IFERROR(VLOOKUP(A37,Nominal_Code_LT[],2,FALSE),0)","v":0},null,"N"]
[3285,"Maoiniú COVID le haghaidh Uaireanta Rúnaí Ionaid",null,null,null,{"$f":"-IFERROR(VLOOKUP(A38,Nominal_Code_LT3[],2,FALSE),0)","v":0},null,{"$f":"-IFERROR(VLOOKUP(A38,Nominal_Code_LT[],2,FALSE),0)","v":0},null,"N"]
[3286,"Maoiniú COVID le haghaidh Uaireanta Glantóra Ionaid",null,null,null,{"$f":"-IFERROR(VLOOKUP(A39,Nominal_Code_LT3[],2,FALSE),0)","v":0},null,{"$f":"-IFERROR(VLOOKUP(A39,Nominal_Code_LT[],2,FALSE),0)","v":0},null,"N"]
[3287,"Maoiniú COVID le haghaidh Uaireanta Tionlacaí Ionaid Bus",null,null,null,{"$f":"-IFERROR(VLOOKUP(A40,Nominal_Code_LT3[],2,FALSE),0)","v":0},null,{"$f":"-IFERROR(VLOOKUP(A40,Nominal_Code_LT[],2,FALSE),0)","v":0},null,"N"]
[3290,"Ioncam Deontais Neamhchaipitil Eile RO                           ",null,null,null,{"$f":"-IFERROR(VLOOKUP(A41,Nominal_Code_LT3[],2,FALSE),0)","v":0},null,{"$f":"-IFERROR(VLOOKUP(A41,Nominal_Code_LT[],2,FALSE),0)","v":0},null,"N"]
[3292,"Deontas Trialacha Caighdeánaithe",null,null,null,{"$f":"-IFERROR(VLOOKUP(A42,Nominal_Code_LT3[],2,FALSE),0)","v":0},null,{"$f":"-IFERROR(VLOOKUP(A42,Nominal_Code_LT[],2,FALSE),0)","v":0},null,"N"]
[3293,"Deontas Soláthair Samhraidh                         ",null,null,null,{"$f":"-IFERROR(VLOOKUP(A43,Nominal_Code_LT3[],2,FALSE),0)","v":0},null,{"$f":"-IFERROR(VLOOKUP(A43,Nominal_Code_LT[],2,FALSE),0)","v":0},null,"N"]
[3294,"Deontas le haghaidh Tionlacaithe Bus",null,null,null,{"$f":"-IFERROR(VLOOKUP(A44,Nominal_Code_LT3[],2,FALSE),0)","v":0},null,{"$f":"-IFERROR(VLOOKUP(A44,Nominal_Code_LT[],2,FALSE),0)","v":0},null,{"$f":"IF(AND(F44=0,H44=0),\"N\",\"Y\")","v":"N"}]
[null,"Ioncam Iomlán ón Roinn Oideachais",null,null,null,{"$f":"SUM(F6:F44)","v":0},null,{"$f":"SUM(H6:H44)","v":0}]
[null,"2. Ioncam Eile ón Stát                                                                        "]
[3295,"Ioncam ón Roinn Leanaí agus Gnóthaí Óige",null,null,null,{"$f":"-IFERROR(VLOOKUP(A47,Nominal_Code_LT3[],2,FALSE),0)","v":0},null,{"$f":"-IFERROR(VLOOKUP(A47,Nominal_Code_LT[],2,FALSE),0)","v":0},null,{"$f":"IF(AND(F47=0,H47=0),\"N\",\"Y\")","v":"N"}]
[3296,"Deontas le haghaidh Béilí Scoile ó RGFCS",null,null,null,{"$f":"-IFERROR(VLOOKUP(A48,Nominal_Code_LT3[],2,FALSE),0)","v":0},null,{"$f":"-IFERROR(VLOOKUP(A48,Nominal_Code_LT[],2,FALSE),0)","v":0},null,{"$f":"IF(AND(F48=0,H48=0),\"N\",\"Y\")","v":"N"}]
[3297,"Ioncam Erasmus",null,null,null,{"$f":"-IFERROR(VLOOKUP(A49,Nominal_Code_LT3[],2,FALSE),0)","v":0},null,{"$f":"-IFERROR(VLOOKUP(A49,Nominal_Code_LT[],2,FALSE),0)","v":0},null,"N"]
[3298,"Maoiniú ó FSS",null,null,null,{"$f":"-IFERROR(VLOOKUP(A50,Nominal_Code_LT3[],2,FALSE),0)","v":0},null,{"$f":"-IFERROR(VLOOKUP(A50,Nominal_Code_LT[],2,FALSE),0)","v":0},null,"N"]
[3299,"Maoiniú Stáit Eile",null,null,null,{"$f":"-IFERROR(VLOOKUP(A51,Nominal_Code_LT3[],2,FALSE),0)","v":0},null,{"$f":"-IFERROR(VLOOKUP(A51,Nominal_Code_LT[],2,FALSE),0)","v":0},null,"N"]
[null,"Iomlán Ioncam eile ón Stát",null,null,null,{"$f":"SUM(F47:F51)","v":0},null,{"$f":"SUM(H47:H51)","v":0}]
[null,"3. Ioncam arna Ghiniúint ag an Scoil                                               "]
[3300,"Táillí Oideachais (Scoileanna Táille)",null,null,null,{"$f":"-IFERROR(VLOOKUP(A54,Nominal_Code_LT3[],2,FALSE),0)","v":0},null,{"$f":"-IFERROR(VLOOKUP(A54,Nominal_Code_LT[],2,FALSE),0)","v":0},null,{"$f":"IF(AND(F54=0,H54=0),\"N\",\"Y\")","v":"N"}]
[3310,"Ioncam Idirbhliana",null,null,null,{"$f":"-IFERROR(VLOOKUP(A55,Nominal_Code_LT3[],2,FALSE),0)","v":0},null,{"$f":"-IFERROR(VLOOKUP(A55,Nominal_Code_LT[],2,FALSE),0)","v":0},null,"N"]
[3330,"Ioncam ó Scéim na Leabhar ar Cíos",null,null,null,{"$f":"-IFERROR(VLOOKUP(A56,Nominal_Code_LT3[],2,FALSE),0)","v":0},null,{"$f":"-IFERROR(VLOOKUP(A56,Nominal_Code_LT[],2,FALSE),0)","v":0},null,"N"]
[3335,"Ioncam ó Leabhair Seomra Ranga",null,null,null,{"$f":"-IFERROR(VLOOKUP(A57,Nominal_Code_LT3[],2,FALSE),0)","v":0},null,{"$f":"-IFERROR(VLOOKUP(A57,Nominal_Code_LT[],2,FALSE),0)","v":0},null,"N"]
[3350,"Ioncam Cíosa ó Áiseanna a Ligean ar Fhruiliú",null,null,null,{"$f":"-IFERROR(VLOOKUP(A58,Nominal_Code_LT3[],2,FALSE),0)","v":0},null,{"$f":"-IFERROR(VLOOKUP(A58,Nominal_Code_LT[],2,FALSE),0)","v":0},null,"N"]
[3360,"Ioncam le haghaidh Lárionaid Spóirt",null,null,null,{"$f":"-IFERROR(VLOOKUP(A59,Nominal_Code_LT3[],2,FALSE),0)","v":0},null,{"$f":"-IFERROR(VLOOKUP(A59,Nominal_Code_LT[],2,FALSE),0)","v":0},null,"N"]
[3370,"Ioncam ó Thaisceadáin",null,null,null,{"$f":"-IFERROR(VLOOKUP(A60,Nominal_Code_LT3[],2,FALSE),0)","v":0},null,{"$f":"-IFERROR(VLOOKUP(A60,Nominal_Code_LT[],2,FALSE),0)","v":0},null,"N"]
[3375,"Ioncam ó Dhialanna agus Bliainirisí",null,null,null,{"$f":"-IFERROR(VLOOKUP(A61,Nominal_Code_LT3[],2,FALSE),0)","v":0},null,{"$f":"-IFERROR(VLOOKUP(A61,Nominal_Code_LT[],2,FALSE),0)","v":0},null,"N"]
[3390,"Táillí riaracháin scoile",null,null,null,{"$f":"-IFERROR(VLOOKUP(A62,Nominal_Code_LT3[],2,FALSE),0)","v":0},null,{"$f":"-IFERROR(VLOOKUP(A62,Nominal_Code_LT[],2,FALSE),0)","v":0},null,"N"]
[3395,"Ioncam le haghaidh Ábhair Phraiticiúla",null,null,null,{"$f":"-IFERROR(VLOOKUP(A63,Nominal_Code_LT3[],2,FALSE),0)","v":0},null,{"$f":"-IFERROR(VLOOKUP(A63,Nominal_Code_LT[],2,FALSE),0)","v":0},null,"N"]
[3410,"Ioncam Oideachais Aosaigh",null,null,null,{"$f":"-IFERROR(VLOOKUP(A64,Nominal_Code_LT3[],2,FALSE),0)","v":0},null,{"$f":"-IFERROR(VLOOKUP(A64,Nominal_Code_LT[],2,FALSE),0)","v":0},null,"N"]
[3420,"Ioncam ó Cheaintíní",null,null,null,{"$f":"-IFERROR(VLOOKUP(A65,Nominal_Code_LT3[],2,FALSE),0)","v":0},null,{"$f":"-IFERROR(VLOOKUP(A65,Nominal_Code_LT[],2,FALSE),0)","v":0},null,"N"]
[3430,"Ioncam ó Shiopaí Sólaistí",null,null,null,{"$f":"-IFERROR(VLOOKUP(A66,Nominal_Code_LT3[],2,FALSE),0)","v":0},null,{"$f":"-IFERROR(VLOOKUP(A66,Nominal_Code_LT[],2,FALSE),0)","v":0},null,"N"]
[3440,"Ioncam ó Éidí Scoile",null,null,null,{"$f":"-IFERROR(VLOOKUP(A67,Nominal_Code_LT3[],2,FALSE),0)","v":0},null,{"$f":"-IFERROR(VLOOKUP(A67,Nominal_Code_LT[],2,FALSE),0)","v":0},null,"N"]
[3460,"Ioncam Reiligiúin/Éitis",null,null,null,{"$f":"-IFERROR(VLOOKUP(A68,Nominal_Code_LT3[],2,FALSE),0)","v":0},null,{"$f":"-IFERROR(VLOOKUP(A68,Nominal_Code_LT[],2,FALSE),0)","v":0},null,"N"]
[3450,"Ioncam le haghaidh Treoir Ghairme",null,null,null,{"$f":"-IFERROR(VLOOKUP(A69,Nominal_Code_LT3[],2,FALSE),0)","v":0},null,{"$f":"-IFERROR(VLOOKUP(A69,Nominal_Code_LT[],2,FALSE),0)","v":0},null,"N"]
[3490,"Ioncam Club/Staidéir Iarscoile",null,null,null,{"$f":"-IFERROR(VLOOKUP(A70,Nominal_Code_LT3[],2,FALSE),0)","v":0},null,{"$f":"-IFERROR(VLOOKUP(A70,Nominal_Code_LT[],2,FALSE),0)","v":0},null,"N"]
[3495,"Ioncam ó Bhréagscrúduithe",null,null,null,{"$f":"-IFERROR(VLOOKUP(A71,Nominal_Code_LT3[],2,FALSE),0)","v":0},null,{"$f":"-IFERROR(VLOOKUP(A71,Nominal_Code_LT[],2,FALSE),0)","v":0},null,"N"]
[3500,"Ioncam ó Chluichí",null,null,null,{"$f":"-IFERROR(VLOOKUP(A72,Nominal_Code_LT3[],2,FALSE),0)","v":0},null,{"$f":"-IFERROR(VLOOKUP(A72,Nominal_Code_LT[],2,FALSE),0)","v":0},null,"N"]
[3510,"Ioncam ón Bhusanna",null,null,null,{"$f":"-IFERROR(VLOOKUP(A73,Nominal_Code_LT3[],2,FALSE),0)","v":0},null,{"$f":"-IFERROR(VLOOKUP(A73,Nominal_Code_LT[],2,FALSE),0)","v":0},null,"N"]
[3520,"Ioncam ó Cheoldrámaí/Dhrámaí Scoile",null,null,null,{"$f":"-IFERROR(VLOOKUP(A74,Nominal_Code_LT3[],2,FALSE),0)","v":0},null,{"$f":"-IFERROR(VLOOKUP(A74,Nominal_Code_LT[],2,FALSE),0)","v":0},null,"N"]
[3530,"Ioncam ó Thurais Scoile",null,null,null,{"$f":"-IFERROR(VLOOKUP(A75,Nominal_Code_LT3[],2,FALSE),0)","v":0},null,{"$f":"-IFERROR(VLOOKUP(A75,Nominal_Code_LT[],2,FALSE),0)","v":0},null,"N"]
[3531,"Ioncam ó Snámh Scoile",null,null,null,{"$f":"-IFERROR(VLOOKUP(A76,Nominal_Code_LT3[],2,FALSE),0)","v":0},null,{"$f":"-IFERROR(VLOOKUP(A76,Nominal_Code_LT[],2,FALSE),0)","v":0},null,"N"]
[3535,"Ioncam ó Árachas Daltaí",null,null,null,{"$f":"-IFERROR(VLOOKUP(A77,Nominal_Code_LT3[],2,FALSE),0)","v":0},null,{"$f":"-IFERROR(VLOOKUP(A77,Nominal_Code_LT[],2,FALSE),0)","v":0},null,"N"]
[3540,"Ioncam Réamhscoile",null,null,null,{"$f":"-IFERROR(VLOOKUP(A78,Nominal_Code_LT3[],2,FALSE),0)","v":0},null,{"$f":"-IFERROR(VLOOKUP(A78,Nominal_Code_LT[],2,FALSE),0)","v":0},null,"N"]
[3545,"Ioncam ó Champaí Samhraidh",null,null,null,{"$f":"-IFERROR(VLOOKUP(A79,Nominal_Code_LT3[],2,FALSE),0)","v":0},null,{"$f":"-IFERROR(VLOOKUP(A79,Nominal_Code_LT[],2,FALSE),0)","v":0},null,"N"]
[3550,"Ioncam In-Aisíoctha",null,null,null,{"$f":"-IFERROR(VLOOKUP(A80,Nominal_Code_LT3[],2,FALSE),0)","v":0},null,{"$f":"-IFERROR(VLOOKUP(A80,Nominal_Code_LT[],2,FALSE),0)","v":0},null,"N"]
[3570,"Ioncam Eile arna Ghiniúint ag an Scoil",null,null,null,{"$f":"-IFERROR(VLOOKUP(A81,Nominal_Code_LT3[],2,FALSE),0)","v":0},null,{"$f":"-IFERROR(VLOOKUP(A81,Nominal_Code_LT[],2,FALSE),0)","v":0},null,"N"]
[3572,"Ioncam Ealaíon agus Ceardaíochta Scoile",null,null,null,{"$f":"-IFERROR(VLOOKUP(A82,Nominal_Code_LT3[],2,FALSE),0)","v":0},null,{"$f":"-IFERROR(VLOOKUP(A82,Nominal_Code_LT[],2,FALSE),0)","v":0},null,"N"]
[3573,"Ioncam Damhsa Scoile                                                                ",null,null,null,{"$f":"-IFERROR(VLOOKUP(A83,Nominal_Code_LT3[],2,FALSE),0)","v":0},null,{"$f":"-IFERROR(VLOOKUP(A83,Nominal_Code_LT[],2,FALSE),0)","v":0},null,"N"]
[3574,"Tiomsú Airgid Srianta Scoile (Neamhchaipitiúil)",null,null,null,{"$f":"-IFERROR(VLOOKUP(A84,Nominal_Code_LT3[],2,FALSE),0)","v":0},null,{"$f":"-IFERROR(VLOOKUP(A84,Nominal_Code_LT[],2,FALSE),0)","v":0},null,"N"]
[3575,"Tiomsú Airgid Neamhshrianta Scoile (Neamhchaipitiúil)",null,null,null,{"$f":"-IFERROR(VLOOKUP(A85,Nominal_Code_LT3[],2,FALSE),0)","v":0},null,{"$f":"-IFERROR(VLOOKUP(A85,Nominal_Code_LT[],2,FALSE),0)","v":0},null,"N"]
[3580,"Lascainí Tugtha",null,null,null,{"$f":"-IFERROR(VLOOKUP(A86,Nominal_Code_LT3[],2,FALSE),0)","v":0},null,{"$f":"-IFERROR(VLOOKUP(A86,Nominal_Code_LT[],2,FALSE),0)","v":0},null,"N"]
[null,"Iomlán an  Ioncam arna Ghiniúint ag an Scoil",null,null,null,{"$f":"SUM(F54:F86)","v":0},null,{"$f":"SUM(H54:H86)","v":0}]
[null,"4. Ioncam Eile                                                         "]
[3650,"Ranníocaíochtaí Saorálacha",null,null,null,{"$f":"-IFERROR(VLOOKUP(A89,Nominal_Code_LT3[],2,FALSE),0)","v":0},null,{"$f":"-IFERROR(VLOOKUP(A89,Nominal_Code_LT[],2,FALSE),0)","v":0},null,"N"]
[3700,"Ioncam ó Chumann na dTuismitheoirí",null,null,null,{"$f":"-IFERROR(VLOOKUP(A90,Nominal_Code_LT3[],2,FALSE),0)","v":0},null,{"$f":"-IFERROR(VLOOKUP(A90,Nominal_Code_LT[],2,FALSE),0)","v":0},null,"N"]
[3770,"Ioncam ó Éilimh Árachais",null,null,null,{"$f":"-IFERROR(VLOOKUP(A91,Nominal_Code_LT3[],2,FALSE),0)","v":0},null,{"$f":"-IFERROR(VLOOKUP(A91,Nominal_Code_LT[],2,FALSE),0)","v":0},null,"N"]
[3800,"Ús Bainc Faighte",null,null,null,{"$f":"-IFERROR(VLOOKUP(A92,Nominal_Code_LT3[],2,FALSE),0)","v":0},null,{"$f":"-IFERROR(VLOOKUP(A92,Nominal_Code_LT[],2,FALSE),0)","v":0},null,"N"]
[3840,"Amúchadh Maoinithe nach bhFuarthas ón RO                                             ",null,null,null,{"$f":"-IFERROR(VLOOKUP(A93,Nominal_Code_LT3[],2,FALSE),0)","v":0},null,{"$f":"-IFERROR(VLOOKUP(A93,Nominal_Code_LT[],2,FALSE),0)","v":0},null,"N"]
[3850,"Ioncam Eile",null,null,null,{"$f":"-IFERROR(VLOOKUP(A94,Nominal_Code_LT3[],2,FALSE),0)","v":0},null,{"$f":"-IFERROR(VLOOKUP(A94,Nominal_Code_LT[],2,FALSE),0)","v":0},null,"N"]
[3851,"Ioncam Ainmnithe (Neamhchaipitiúil)",null,null,null,{"$f":"-IFERROR(VLOOKUP(A95,Nominal_Code_LT3[],2,FALSE),0)","v":0},null,{"$f":"-IFERROR(VLOOKUP(A95,Nominal_Code_LT[],2,FALSE),0)","v":0},null,"N"]
[3852,"Tiomsú Airgid Srianta Seachtrach  (Neamhchaipitiúil)",null,null,null,{"$f":"-IFERROR(VLOOKUP(A96,Nominal_Code_LT3[],2,FALSE),0)","v":0},null,{"$f":"-IFERROR(VLOOKUP(A96,Nominal_Code_LT[],2,FALSE),0)","v":0},null,"N"]
[3853,"Tiomsú Airgid Neamhshrianta Seachtrach (Neamhchaipitiúil)",null,null,null,{"$f":"-IFERROR(VLOOKUP(A97,Nominal_Code_LT3[],2,FALSE),0)","v":0},null,{"$f":"-IFERROR(VLOOKUP(A97,Nominal_Code_LT[],2,FALSE),0)","v":0},null,"N"]
[null,"Iomlán Ioncam Eile  ",null,null,null,{"$f":"SUM(F89:F97)","v":0},null,{"$f":"SUM(H89:H97)","v":0}]
[]
[null,"IONCAM IOMLÁN",null,null,null,{"$f":"F45+F52+F87+F98","v":0},null,{"$f":"H45+H52+H87+H98","v":0}]

{"sheet":"Expenditure Account (1)","index":14,"n_rows":79,"n_cols":10,"rows_kept":79,"cut":false,"hidden":false,"merged":[[1,0,1,5]]}
[null,{"$f":"'General Information'!E4","v":"Scoil Shamplach"},null,null,null,null,"Instructions"]
["Cuntas Mionsonraithe Ioncaim agus Caiteachais don bhliain dar críoch",null,null,null,null,null,{"$f":"'Accountants'' Report'!G25","v":"Lúnasa 31, "},{"$f":"'Accountants'' Report'!H25","v":"2022"}]
[null,"Caiteachas",null,null,null,"Iarbhír                ",null,"Iarbhír    "]
[null,null,null,null,null,{"$f":"'Balance Sheet'!F5","v":"2021/2022"},null,{"$f":"'Balance Sheet'!H5","v":"2020/2021"}]
[null,"5. Tuarastal Oideachais                                               "]
[4110,"Costas Múinteoirí Ionaid",null,null,null,{"$f":"IFERROR(VLOOKUP(A6,Nominal_Code_LT3[],2,FALSE),0)","v":0},null,{"$f":"IFERROR(VLOOKUP(A6,Nominal_Code_LT[],2,FALSE),0)","v":0},null,{"$f":"IF(AND(F6=0,H6=0),\"N\",\"Y\")","v":"N"}]
[4111,"Costas Múinteoirí a Íoctar go Príobháideach",null,null,null,{"$f":"IFERROR(VLOOKUP(A7,Nominal_Code_LT3[],2,FALSE),0)","v":0},null,{"$f":"IFERROR(VLOOKUP(A7,Nominal_Code_LT[],2,FALSE),0)","v":0},null,{"$f":"IF(AND(F7=0,H7=0),\"N\",\"Y\")","v":"N"}]
[4112,"Costais Tuarastail Séiplínigh",null,null,null,{"$f":"IFERROR(VLOOKUP(A8,Nominal_Code_LT3[],2,FALSE),0)","v":0},null,{"$f":"IFERROR(VLOOKUP(A8,Nominal_Code_LT[],2,FALSE),0)","v":0},null,"N"]
[4150,"Costas Tuarastal Maoirseachta agus Ionadaithe",null,null,null,{"$f":"IFERROR(VLOOKUP(A9,Nominal_Code_LT3[],2,FALSE),0)","v":0},null,{"$f":"IFERROR(VLOOKUP(A9,Nominal_Code_LT[],2,FALSE),0)","v":0},null,"N"]
[4155,"Costais Tuarastail Scrúdaithe Stáit",null,null,null,{"$f":"IFERROR(VLOOKUP(A10,Nominal_Code_LT3[],2,FALSE),0)","v":0},null,{"$f":"IFERROR(VLOOKUP(A10,Nominal_Code_LT[],2,FALSE),0)","v":0},null,"N"]
[4170,"Costas Tuarastal Oideachais Aosaigh",null,null,null,{"$f":"IFERROR(VLOOKUP(A11,Nominal_Code_LT3[],2,FALSE),0)","v":0},null,{"$f":"IFERROR(VLOOKUP(A11,Nominal_Code_LT[],2,FALSE),0)","v":0},null,"N"]
[4180,"Costais Tuarastail Cóitseála Spóirt",null,null,null,{"$f":"IFERROR(VLOOKUP(A12,Nominal_Code_LT3[],2,FALSE),0)","v":0},null,{"$f":"IFERROR(VLOOKUP(A12,Nominal_Code_LT[],2,FALSE),0)","v":0},null,"N"]
[4181,"Costais Thuarastail an Cheaintín",null,null,null,{"$f":"IFERROR(VLOOKUP(A13,Nominal_Code_LT3[],2,FALSE),0)","v":0},null,{"$f":"IFERROR(VLOOKUP(A13,Nominal_Code_LT[],2,FALSE),0)","v":0},null,"N"]
[4190,"Costas Tuarastal Staidéir/Club Iarscoile",null,null,null,{"$f":"IFERROR(VLOOKUP(A14,Nominal_Code_LT3[],2,FALSE),0)","v":0},null,{"$f":"IFERROR(VLOOKUP(A14,Nominal_Code_LT[],2,FALSE),0)","v":0},null,"N"]
[4191,"Costais Tuarastail Campaí Samhraidh",null,null,null,{"$f":"IFERROR(VLOOKUP(A15,Nominal_Code_LT3[],2,FALSE),0)","v":0},null,{"$f":"IFERROR(VLOOKUP(A15,Nominal_Code_LT[],2,FALSE),0)","v":0},null,"N"]
[4196,"Costas Tuarastail Tionlacaithe Bus",null,null,null,{"$f":"IFERROR(VLOOKUP(A16,Nominal_Code_LT3[],2,FALSE),0)","v":0},null,{"$f":"IFERROR(VLOOKUP(A16,Nominal_Code_LT[],2,FALSE),0)","v":0},null,"N"]
[4197,"Maoiniú COVID le haghaidh Costas maidir le hUaireanta Tionlacaí Ionaid Bus",null,null,null,{"$f":"IFERROR(VLOOKUP(A17,Nominal_Code_LT3[],2,FALSE),0)","v":0},null,{"$f":"IFERROR(VLOOKUP(A17,Nominal_Code_LT[],2,FALSE),0)","v":0},null,"N"]
[4198,"Costais Tuarastail Oideachais Eile",null,null,null,{"$f":"IFERROR(VLOOKUP(A18,Nominal_Code_LT3[],2,FALSE),0)","v":0},null,{"$f":"IFERROR(VLOOKUP(A18,Nominal_Code_LT[],2,FALSE),0)","v":0},null,"N"]
[4199,"Costais Tuarastail Maoinithe ag FSS",null,null,null,{"$f":"IFERROR(VLOOKUP(A19,Nominal_Code_LT3[],2,FALSE),0)","v":0},null,{"$f":"IFERROR(VLOOKUP(A19,Nominal_Code_LT[],2,FALSE),0)","v":0},null,"N"]
[null,"Iomlán an Tuarastal Oideachais ",null,null,null,{"$f":"SUM(F5:F19)","v":0},null,{"$f":"SUM(H5:H19)","v":0}]
[null,"6. Caiteachas Oideachais Eile"]
[4310,"Costas Áiseanna Teagaisc",null,null,null,{"$f":"IFERROR(VLOOKUP(A22,Nominal_Code_LT3[],2,FALSE),0)","v":0},null,{"$f":"IFERROR(VLOOKUP(A22,Nominal_Code_LT[],2,FALSE),0)","v":0},null,{"$f":"IF(AND(F22=0,H22=0),\"N\",\"Y\")","v":"N"}]
[4330,"Costas maidir le Reiligiún/hÉiteas",null,null,null,{"$f":"IFERROR(VLOOKUP(A23,Nominal_Code_LT3[],2,FALSE),0)","v":0},null,{"$f":"IFERROR(VLOOKUP(A23,Nominal_Code_LT[],2,FALSE),0)","v":0},null,"N"]
[4350,"Costas Ealaíne",null,null,null,{"$f":"IFERROR(VLOOKUP(A24,Nominal_Code_LT3[],2,FALSE),0)","v":0},null,{"$f":"IFERROR(VLOOKUP(A24,Nominal_Code_LT[],2,FALSE),0)","v":0},null,"N"]
[4370,"Costas Eacnamaíochta Baile",null,null,null,{"$f":"IFERROR(VLOOKUP(A25,Nominal_Code_LT3[],2,FALSE),0)","v":0},null,{"$f":"IFERROR(VLOOKUP(A25,Nominal_Code_LT[],2,FALSE),0)","v":0},null,"N"]
[4390,"Costas Eolaíochta",null,null,null,{"$f":"IFERROR(VLOOKUP(A26,Nominal_Code_LT3[],2,FALSE),0)","v":0},null,{"$f":"IFERROR(VLOOKUP(A26,Nominal_Code_LT[],2,FALSE),0)","v":0},null,{"$f":"IF(AND(F26=0,H26=0),\"N\",\"Y\")","v":"N"}]
[4410," Costais Deontais Neamhchaipitil TFC                   ",null,null,null,{"$f":"IFERROR(VLOOKUP(A27,Nominal_Code_LT3[],2,FALSE),0)","v":0},null,{"$f":"IFERROR(VLOOKUP(A27,Nominal_Code_LT[],2,FALSE),0)","v":0},null,"N"]
[4420,"Costais Cothabhála & Tacaíochta Ríomhaireachta",null,null,null,{"$f":"IFERROR(VLOOKUP(A28,Nominal_Code_LT3[],2,FALSE),0)","v":0},null,{"$f":"IFERROR(VLOOKUP(A28,Nominal_Code_LT[],2,FALSE),0)","v":0},null,"N"]
[4430,"Costas Adhmadóireachta / Foirgníochta",null,null,null,{"$f":"IFERROR(VLOOKUP(A29,Nominal_Code_LT3[],2,FALSE),0)","v":0},null,{"$f":"IFERROR(VLOOKUP(A29,Nominal_Code_LT[],2,FALSE),0)","v":0},null,"N"]
[4450,"Costas Miotalóireachta/Innealtóireachta",null,null,null,{"$f":"IFERROR(VLOOKUP(A30,Nominal_Code_LT3[],2,FALSE),0)","v":0},null,{"$f":"IFERROR(VLOOKUP(A30,Nominal_Code_LT[],2,FALSE),0)","v":0},null,"N"]
[4470,"Costas Teicneolaíochta",null,null,null,{"$f":"IFERROR(VLOOKUP(A31,Nominal_Code_LT3[],2,FALSE),0)","v":0},null,{"$f":"IFERROR(VLOOKUP(A31,Nominal_Code_LT[],2,FALSE),0)","v":0},null,"N"]
[4490,"Costas d’Ábhair Eile",null,null,null,{"$f":"IFERROR(VLOOKUP(A32,Nominal_Code_LT3[],2,FALSE),0)","v":0},null,{"$f":"IFERROR(VLOOKUP(A32,Nominal_Code_LT[],2,FALSE),0)","v":0},null,"N"]
[4550,"Costas don Ardteistiméireacht Fheidhmeach",null,null,null,{"$f":"IFERROR(VLOOKUP(A33,Nominal_Code_LT3[],2,FALSE),0)","v":0},null,{"$f":"IFERROR(VLOOKUP(A33,Nominal_Code_LT[],2,FALSE),0)","v":0},null,"N"]
[4570,"Costas do Ghairmchlár na hArdteistiméireachta",null,null,null,{"$f":"IFERROR(VLOOKUP(A34,Nominal_Code_LT3[],2,FALSE),0)","v":0},null,{"$f":"IFERROR(VLOOKUP(A34,Nominal_Code_LT[],2,FALSE),0)","v":0},null,"N"]
[4590,"Costas na hIdirbhliana",null,null,null,{"$f":"IFERROR(VLOOKUP(A35,Nominal_Code_LT3[],2,FALSE),0)","v":0},null,{"$f":"IFERROR(VLOOKUP(A35,Nominal_Code_LT[],2,FALSE),0)","v":0},null,"N"]
[4610,"Costas na Tacaíochta Foghlama",null,null,null,{"$f":"IFERROR(VLOOKUP(A36,Nominal_Code_LT3[],2,FALSE),0)","v":0},null,{"$f":"IFERROR(VLOOKUP(A36,Nominal_Code_LT[],2,FALSE),0)","v":0},null,"N"]
[4620,"Costas Inseirbhíse agus Oiliúna Múinteoirí",null,null,null,{"$f":"IFERROR(VLOOKUP(A37,Nominal_Code_LT3[],2,FALSE),0)","v":0},null,{"$f":"IFERROR(VLOOKUP(A37,Nominal_Code_LT[],2,FALSE),0)","v":0},null,"N"]
[4630,"Costas Gairmthreorach",null,null,null,{"$f":"IFERROR(VLOOKUP(A38,Nominal_Code_LT3[],2,FALSE),0)","v":0},null,{"$f":"IFERROR(VLOOKUP(A38,Nominal_Code_LT[],2,FALSE),0)","v":0},null,"N"]
[4635,"Costais i leith Folláine Mac Léinn",null,null,null,{"$f":"IFERROR(VLOOKUP(A39,Nominal_Code_LT3[],2,FALSE),0)","v":0},null,{"$f":"IFERROR(VLOOKUP(A39,Nominal_Code_LT[],2,FALSE),0)","v":0},null,"N"]
[4640,"Costas Leabharlainne nach Maoinítear Deontas",null,null,null,{"$f":"IFERROR(VLOOKUP(A40,Nominal_Code_LT3[],2,FALSE),0)","v":0},null,{"$f":"IFERROR(VLOOKUP(A40,Nominal_Code_LT[],2,FALSE),0)","v":0},null,"N"]
[4641,"Costas a bhaineann leis an Deontas Caipitil faoi chomhair Leabhair don Leabharlann Scoile",null,null,null,{"$f":"IFERROR(VLOOKUP(A41,Nominal_Code_LT3[],2,FALSE),0)","v":0},null,{"$f":"IFERROR(VLOOKUP(A41,Nominal_Code_LT[],2,FALSE),0)","v":0},null,"N"]
[4650,"Costas Corpoideachais",null,null,null,{"$f":"IFERROR(VLOOKUP(A42,Nominal_Code_LT3[],2,FALSE),0)","v":0},null,{"$f":"IFERROR(VLOOKUP(A42,Nominal_Code_LT[],2,FALSE),0)","v":0},null,"N"]
[4670,"Costas Cluichí (gan taisteal san áireamh)",null,null,null,{"$f":"IFERROR(VLOOKUP(A43,Nominal_Code_LT3[],2,FALSE),0)","v":0},null,{"$f":"IFERROR(VLOOKUP(A43,Nominal_Code_LT[],2,FALSE),0)","v":0},null,"N"]
[4671,"Costas Taistil go Cluichí",null,null,null,{"$f":"IFERROR(VLOOKUP(A44,Nominal_Code_LT3[],2,FALSE),0)","v":0},null,{"$f":"IFERROR(VLOOKUP(A44,Nominal_Code_LT[],2,FALSE),0)","v":0},null,"N"]
[4690,"Costas Fruilithe Busanna",null,null,null,{"$f":"IFERROR(VLOOKUP(A45,Nominal_Code_LT3[],2,FALSE),0)","v":0},null,{"$f":"IFERROR(VLOOKUP(A45,Nominal_Code_LT[],2,FALSE),0)","v":0},null,"N"]
[4710,"Costas Turas Scoile",null,null,null,{"$f":"IFERROR(VLOOKUP(A46,Nominal_Code_LT3[],2,FALSE),0)","v":0},null,{"$f":"IFERROR(VLOOKUP(A46,Nominal_Code_LT[],2,FALSE),0)","v":0},null,"N"]
[4720,"Costas Ceoldráma/Dráma Scoile",null,null,null,{"$f":"IFERROR(VLOOKUP(A47,Nominal_Code_LT3[],2,FALSE),0)","v":0},null,{"$f":"IFERROR(VLOOKUP(A47,Nominal_Code_LT[],2,FALSE),0)","v":0},null,"N"]
[4730,"Costas Dheontas na Leabhar",null,null,null,{"$f":"IFERROR(VLOOKUP(A48,Nominal_Code_LT3[],2,FALSE),0)","v":0},null,{"$f":"IFERROR(VLOOKUP(A48,Nominal_Code_LT[],2,FALSE),0)","v":0},null,"N"]
[4740,"Costas Scéim na Leabhar ar Cíos",null,null,null,{"$f":"IFERROR(VLOOKUP(A49,Nominal_Code_LT3[],2,FALSE),0)","v":0},null,{"$f":"IFERROR(VLOOKUP(A49,Nominal_Code_LT[],2,FALSE),0)","v":0},null,"N"]
[4741,"Costais Leabhar Seomra Ranga",null,null,null,{"$f":"IFERROR(VLOOKUP(A50,Nominal_Code_LT3[],2,FALSE),0)","v":0},null,{"$f":"IFERROR(VLOOKUP(A50,Nominal_Code_LT[],2,FALSE),0)","v":0},null,"N"]
[4750,"Costas Bréagscrúduithe",null,null,null,{"$f":"IFERROR(VLOOKUP(A51,Nominal_Code_LT3[],2,FALSE),0)","v":0},null,{"$f":"IFERROR(VLOOKUP(A51,Nominal_Code_LT[],2,FALSE),0)","v":0},null,"N"]
[4760,"Costas Bliainirisí/Dialanna Scoile",null,null,null,{"$f":"IFERROR(VLOOKUP(A52,Nominal_Code_LT3[],2,FALSE),0)","v":0},null,{"$f":"IFERROR(VLOOKUP(A52,Nominal_Code_LT[],2,FALSE),0)","v":0},null,"N"]
[4770,"Costas Trófaithe agus Duaiseanna",null,null,null,{"$f":"IFERROR(VLOOKUP(A53,Nominal_Code_LT3[],2,FALSE),0)","v":0},null,{"$f":"IFERROR(VLOOKUP(A53,Nominal_Code_LT[],2,FALSE),0)","v":0},null,"N"]
[4780,"Costas Éidí",null,null,null,{"$f":"IFERROR(VLOOKUP(A54,Nominal_Code_LT3[],2,FALSE),0)","v":0},null,{"$f":"IFERROR(VLOOKUP(A54,Nominal_Code_LT[],2,FALSE),0)","v":0},null,"N"]
[4810,"Costas na Teagmhála idir an Baile agus an Scoil",null,null,null,{"$f":"IFERROR(VLOOKUP(A55,Nominal_Code_LT3[],2,FALSE),0)","v":0},null,{"$f":"IFERROR(VLOOKUP(A55,Nominal_Code_LT[],2,FALSE),0)","v":0},null,{"$f":"IF(AND(F55=0,H55=0),\"N\",\"Y\")","v":"N"}]
[4815,"Costas an Chiste Barr Feabhais Scoileanna",null,null,null,{"$f":"IFERROR(VLOOKUP(A56,Nominal_Code_LT3[],2,FALSE),0)","v":0},null,{"$f":"IFERROR(VLOOKUP(A56,Nominal_Code_LT[],2,FALSE),0)","v":0},null,"N"]
[4850,"Costas Chomhairle na Mac Léinn",null,null,null,{"$f":"IFERROR(VLOOKUP(A57,Nominal_Code_LT3[],2,FALSE),0)","v":0},null,{"$f":"IFERROR(VLOOKUP(A57,Nominal_Code_LT[],2,FALSE),0)","v":0},null,"N"]
[4908,"Costais Eile Campaí Samhraidh",null,null,null,{"$f":"IFERROR(VLOOKUP(A58,Nominal_Code_LT3[],2,FALSE),0)","v":0},null,{"$f":"IFERROR(VLOOKUP(A58,Nominal_Code_LT[],2,FALSE),0)","v":0},null,"N"]
[4909,"Costais Sholáthar Eile Samhraidh",null,null,null,{"$f":"IFERROR(VLOOKUP(A59,Nominal_Code_LT3[],2,FALSE),0)","v":0},null,{"$f":"IFERROR(VLOOKUP(A59,Nominal_Code_LT[],2,FALSE),0)","v":0},null,"N"]
[4910,"Costas Oideachais Eile",null,null,null,{"$f":"IFERROR(VLOOKUP(A60,Nominal_Code_LT3[],2,FALSE),0)","v":0},null,{"$f":"IFERROR(VLOOKUP(A60,Nominal_Code_LT[],2,FALSE),0)","v":0},null,"N"]
[4911,"Costas Ghníomhaíochtaí na Roinne Leanaí agus Gnóthaí Óige",null,null,null,{"$f":"IFERROR(VLOOKUP(A61,Nominal_Code_LT3[],2,FALSE),0)","v":0},null,{"$f":"IFERROR(VLOOKUP(A61,Nominal_Code_LT[],2,FALSE),0)","v":0},null,"N"]
[4912,"Costais Bia Béilí Scoileanna na Roinne Coimirce Sóisialaí                       ",null,null,null,{"$f":"IFERROR(VLOOKUP(A62,Nominal_Code_LT3[],2,FALSE),0)","v":0},null,{"$f":"IFERROR(VLOOKUP(A62,Nominal_Code_LT[],2,FALSE),0)","v":0},null,"N"]
[4913,"Costas Erasmus",null,null,null,{"$f":"IFERROR(VLOOKUP(A63,Nominal_Code_LT3[],2,FALSE),0)","v":0},null,{"$f":"IFERROR(VLOOKUP(A63,Nominal_Code_LT[],2,FALSE),0)","v":0},null,"N"]
[4914,"Costais Deontais Neamhchaipitil Eile RO                       ",null,null,null,{"$f":"IFERROR(VLOOKUP(A64,Nominal_Code_LT3[],2,FALSE),0)","v":0},null,{"$f":"IFERROR(VLOOKUP(A64,Nominal_Code_LT[],2,FALSE),0)","v":0},null,"N"]
[4915,"Costais Eile Ceaintín",null,null,null,{"$f":"IFERROR(VLOOKUP(A65,Nominal_Code_LT3[],2,FALSE),0)","v":0},null,{"$f":"IFERROR(VLOOKUP(A65,Nominal_Code_LT[],2,FALSE),0)","v":0},null,"N"]
[4916,"Costas Árachais Daltaí",null,null,null,{"$f":"IFERROR(VLOOKUP(A66,Nominal_Code_LT3[],2,FALSE),0)","v":0},null,{"$f":"IFERROR(VLOOKUP(A66,Nominal_Code_LT[],2,FALSE),0)","v":0},null,"N"]
[4917,"Costas Trialacha Caighdeánaithe",null,null,null,{"$f":"IFERROR(VLOOKUP(A67,Nominal_Code_LT3[],2,FALSE),0)","v":0},null,{"$f":"IFERROR(VLOOKUP(A67,Nominal_Code_LT[],2,FALSE),0)","v":0},null,"N"]
[4918,"Caiteachas Ainmnithe (Neamhchaipitiúil)",null,null,null,{"$f":"IFERROR(VLOOKUP(A68,Nominal_Code_LT3[],2,FALSE),0)","v":0},null,{"$f":"IFERROR(VLOOKUP(A68,Nominal_Code_LT[],2,FALSE),0)","v":0},null,"N"]
[4919,"Costas Trealaimh Oideachais Speisialta (Neamhchaipitiúil)",null,null,null,{"$f":"IFERROR(VLOOKUP(A69,Nominal_Code_LT3[],2,FALSE),0)","v":0},null,{"$f":"IFERROR(VLOOKUP(A69,Nominal_Code_LT[],2,FALSE),0)","v":0},null,"N"]
[4920,"Costas Damhsa na Scoile                                               ",null,null,null,{"$f":"IFERROR(VLOOKUP(A70,Nominal_Code_LT3[],2,FALSE),0)","v":0},null,{"$f":"IFERROR(VLOOKUP(A70,Nominal_Code_LT[],2,FALSE),0)","v":0},null,"N"]
[4921,"Costas Snámha Scoile",null,null,null,{"$f":"IFERROR(VLOOKUP(A71,Nominal_Code_LT3[],2,FALSE),0)","v":0},null,{"$f":"IFERROR(VLOOKUP(A71,Nominal_Code_LT[],2,FALSE),0)","v":0},null,"N"]
[4922,"Costais a bhaineann le Tiomsú Airgid Srianta Scoile  (Neamhchaipitiúil)",null,null,null,{"$f":"IFERROR(VLOOKUP(A72,Nominal_Code_LT3[],2,FALSE),0)","v":0},null,{"$f":"IFERROR(VLOOKUP(A72,Nominal_Code_LT[],2,FALSE),0)","v":0},null,"N"]
[4923,"Costais a bhaineann le Tiomsú Airgid Srianta Seachtrach  (Neamhchaipitiúil)",null,null,null,{"$f":"IFERROR(VLOOKUP(A73,Nominal_Code_LT3[],2,FALSE),0)","v":0},null,{"$f":"IFERROR(VLOOKUP(A73,Nominal_Code_LT[],2,FALSE),0)","v":0},null,"N"]
[4924,"Costais a bhaineann le Tiomsú Airgid Neamhshrianta Seachtrach (Neamhchaipitiúil)",null,null,null,{"$f":"IFERROR(VLOOKUP(A74,Nominal_Code_LT3[],2,FALSE),0)","v":0},null,{"$f":"IFERROR(VLOOKUP(A74,Nominal_Code_LT[],2,FALSE),0)","v":0},null,"N"]
[4925,"Costais Tiomsaithe Airgid Neamhshrianta Scoile (Neamhchaipitiúil)",null,null,null,{"$f":"IFERROR(VLOOKUP(A75,Nominal_Code_LT3[],2,FALSE),0)","v":0},null,{"$f":"IFERROR(VLOOKUP(A75,Nominal_Code_LT[],2,FALSE),0)","v":0},null,"N"]
[4927,"Costais Ealaíon agus Ceardaíochta Scoile",null,null,null,{"$f":"IFERROR(VLOOKUP(A76,Nominal_Code_LT3[],2,FALSE),0)","v":0},null,{"$f":"IFERROR(VLOOKUP(A76,Nominal_Code_LT[],2,FALSE),0)","v":0},null,"N"]
[4928,"Costais Eile FSS",null,null,null,{"$f":"IFERROR(VLOOKUP(A77,Nominal_Code_LT3[],2,FALSE),0)","v":0},null,{"$f":"IFERROR(VLOOKUP(A77,Nominal_Code_LT[],2,FALSE),0)","v":0},null,"N"]
[4930,"Costas Réamhscoile",null,null,null,{"$f":"IFERROR(VLOOKUP(A78,Nominal_Code_LT3[],2,FALSE),0)","v":0},null,{"$f":"IFERROR(VLOOKUP(A78,Nominal_Code_LT[],2,FALSE),0)","v":0},null,"N"]
[null,"Iomlán  Caiteachas Oideachais Eile",null,null,null,{"$f":"SUM(F22:F78)","v":0},null,{"$f":"SUM(H22:H78)","v":0}]

{"sheet":"Expenditure Account (2)","index":15,"n_rows":85,"n_cols":10,"rows_kept":85,"cut":false,"hidden":false,"merged":[[1,0,1,5],[36,1,36,3],[65,1,65,2],[74,1,74,2]]}
[null,{"$f":"'General Information'!E4","v":"Scoil Shamplach"},null,null,null,null,"Instructions"]
["Cuntas Mionsonraithe Ioncaim agus Caiteachais don bhliain dar críoch",null,null,null,null,null,{"$f":"'Accountants'' Report'!G25","v":"Lúnasa 31, "},{"$f":"'Accountants'' Report'!H25","v":"2022"}]
[null,"Caiteachas",null,null,null,"Iarbhír                ",null,"Iarbhír                "]
[null,null,null,null,null,{"$f":"'Balance Sheet'!F5","v":"2021/2022"},null,{"$f":"'Balance Sheet'!H5","v":"2020/2021"}]
[null,"7. Deisiúcháin, Cothabháil agus Bunú                                    "]
[5010,"Costas Pá Feighlí",null,null,null,{"$f":"IFERROR(VLOOKUP(A6,Nominal_Code_LT3[],2,FALSE),0)","v":0},null,{"$f":"IFERROR(VLOOKUP(A6,Nominal_Code_LT[],2,FALSE),0)","v":0},null,{"$f":"IF(AND(F6=0,H6=0),\"N\",\"Y\")","v":"N"}]
[5011,"Maoiniú COVID le haghaidh Caiteachas maidir le hUaireanta Feighlí Ionaid",null,null,null,{"$f":"IFERROR(VLOOKUP(A7,Nominal_Code_LT3[],2,FALSE),0)","v":0},null,{"$f":"IFERROR(VLOOKUP(A7,Nominal_Code_LT[],2,FALSE),0)","v":0},null,{"$f":"IF(AND(F7=0,H7=0),\"N\",\"Y\")","v":"N"}]
[5020,"Costas Pá Feighlí Ionaid Spóirt",null,null,null,{"$f":"IFERROR(VLOOKUP(A8,Nominal_Code_LT3[],2,FALSE),0)","v":0},null,{"$f":"IFERROR(VLOOKUP(A8,Nominal_Code_LT[],2,FALSE),0)","v":0},null,"N"]
[5030,"Costas Pinsin na bhFeighlithe",null,null,null,{"$f":"IFERROR(VLOOKUP(A9,Nominal_Code_LT3[],2,FALSE),0)","v":0},null,{"$f":"IFERROR(VLOOKUP(A9,Nominal_Code_LT[],2,FALSE),0)","v":0},null,"N"]
[5110,"Costas Pá Glantóirí",null,null,null,{"$f":"IFERROR(VLOOKUP(A10,Nominal_Code_LT3[],2,FALSE),0)","v":0},null,{"$f":"IFERROR(VLOOKUP(A10,Nominal_Code_LT[],2,FALSE),0)","v":0},null,"N"]
[5111,"Maoiniú COVID le haghaidh Caiteachas maidir le hUaireanta Glantóra Ionaid",null,null,null,{"$f":"IFERROR(VLOOKUP(A11,Nominal_Code_LT3[],2,FALSE),0)","v":0},null,{"$f":"IFERROR(VLOOKUP(A11,Nominal_Code_LT[],2,FALSE),0)","v":0},null,"N"]
[5112,"Costas Pinsin Glantóirí",null,null,null,{"$f":"IFERROR(VLOOKUP(A12,Nominal_Code_LT3[],2,FALSE),0)","v":0},null,{"$f":"IFERROR(VLOOKUP(A12,Nominal_Code_LT[],2,FALSE),0)","v":0},null,"N"]
[5150,"Costas Glantóirí ar Conradh",null,null,null,{"$f":"IFERROR(VLOOKUP(A13,Nominal_Code_LT3[],2,FALSE),0)","v":0},null,{"$f":"IFERROR(VLOOKUP(A13,Nominal_Code_LT[],2,FALSE),0)","v":0},null,"N"]
[5170,"Costas Ábhar Glantacháin",null,null,null,{"$f":"IFERROR(VLOOKUP(A14,Nominal_Code_LT3[],2,FALSE),0)","v":0},null,{"$f":"IFERROR(VLOOKUP(A14,Nominal_Code_LT[],2,FALSE),0)","v":0},null,"N"]
[5175,"Costais Ghlantacháin agus Sláintíochta Eile",null,null,null,{"$f":"IFERROR(VLOOKUP(A15,Nominal_Code_LT3[],2,FALSE),0)","v":0},null,{"$f":"IFERROR(VLOOKUP(A15,Nominal_Code_LT[],2,FALSE),0)","v":0},null,"N"]
[5310,"Costas Deisiúchán ar Fhoirgnimh agus Thailte",null,null,null,{"$f":"IFERROR(VLOOKUP(A16,Nominal_Code_LT3[],2,FALSE),0)","v":0},null,{"$f":"IFERROR(VLOOKUP(A16,Nominal_Code_LT[],2,FALSE),0)","v":0},null,"N"]
[5315,"Costas Deontas Mionoibreacha (Neamhchaipitiúil)",null,null,null,{"$f":"IFERROR(VLOOKUP(A17,Nominal_Code_LT3[],2,FALSE),0)","v":0},null,{"$f":"IFERROR(VLOOKUP(A17,Nominal_Code_LT[],2,FALSE),0)","v":0},null,"N"]
[5316,"Costas Deontais le haghaidh Mionoibreacha COVID    ",null,null,null,{"$f":"IFERROR(VLOOKUP(A18,Nominal_Code_LT3[],2,FALSE),0)","v":0},null,{"$f":"IFERROR(VLOOKUP(A18,Nominal_Code_LT[],2,FALSE),0)","v":0},null,"N"]
[5350,"Costas Deisiúchán ar Throscán, Feistis agus Trealamh",null,null,null,{"$f":"IFERROR(VLOOKUP(A19,Nominal_Code_LT3[],2,FALSE),0)","v":0},null,{"$f":"IFERROR(VLOOKUP(A19,Nominal_Code_LT[],2,FALSE),0)","v":0},null,"N"]
[5400,"Gnáthchostas Slándála                                                        ",null,null,null,{"$f":"IFERROR(VLOOKUP(A20,Nominal_Code_LT3[],2,FALSE),0)","v":0},null,{"$f":"IFERROR(VLOOKUP(A20,Nominal_Code_LT[],2,FALSE),0)","v":0},null,"N"]
[5450,"Costas Árachais Ghinearálta                                                   ",null,null,null,{"$f":"IFERROR(VLOOKUP(A21,Nominal_Code_LT3[],2,FALSE),0)","v":0},null,{"$f":"IFERROR(VLOOKUP(A21,Nominal_Code_LT[],2,FALSE),0)","v":0},null,"N"]
[5510,"Costas Téimh",null,null,null,{"$f":"IFERROR(VLOOKUP(A22,Nominal_Code_LT3[],2,FALSE),0)","v":0},null,{"$f":"IFERROR(VLOOKUP(A22,Nominal_Code_LT[],2,FALSE),0)","v":0},null,"N"]
[5550,"Costas Soilse agus Cumhachta",null,null,null,{"$f":"IFERROR(VLOOKUP(A23,Nominal_Code_LT3[],2,FALSE),0)","v":0},null,{"$f":"IFERROR(VLOOKUP(A23,Nominal_Code_LT[],2,FALSE),0)","v":0},null,"N"]
[5551,"Costas Cíosa Cóiríochta Sealadaí",null,null,null,{"$f":"IFERROR(VLOOKUP(A24,Nominal_Code_LT3[],2,FALSE),0)","v":0},null,{"$f":"IFERROR(VLOOKUP(A24,Nominal_Code_LT[],2,FALSE),0)","v":0},null,"N"]
[5552,"Costais Cíosa Eile",null,null,null,{"$f":"IFERROR(VLOOKUP(A25,Nominal_Code_LT3[],2,FALSE),0)","v":0},null,{"$f":"IFERROR(VLOOKUP(A25,Nominal_Code_LT[],2,FALSE),0)","v":0},null,"N"]
[5610,"Costas Bruscair                          ",null,null,null,{"$f":"IFERROR(VLOOKUP(A26,Nominal_Code_LT3[],2,FALSE),0)","v":0},null,{"$f":"IFERROR(VLOOKUP(A26,Nominal_Code_LT[],2,FALSE),0)","v":0},null,"N"]
[5611,"Costais Rátaí Uisce",null,null,null,{"$f":"IFERROR(VLOOKUP(A27,Nominal_Code_LT3[],2,FALSE),0)","v":0},null,{"$f":"IFERROR(VLOOKUP(A27,Nominal_Code_LT[],2,FALSE),0)","v":0},null,"N"]
[5700,"Costas na Táille Ceadúnais don Phátrún/Iontaobhaí",null,null,null,{"$f":"IFERROR(VLOOKUP(A28,Nominal_Code_LT3[],2,FALSE),0)","v":0},null,{"$f":"IFERROR(VLOOKUP(A28,Nominal_Code_LT[],2,FALSE),0)","v":0},null,"N"]
[5710,"Costas Deisiúcháin & Cothabháil an Ionaid Spóirt                               ",null,null,null,{"$f":"IFERROR(VLOOKUP(A29,Nominal_Code_LT3[],2,FALSE),0)","v":0},null,{"$f":"IFERROR(VLOOKUP(A29,Nominal_Code_LT[],2,FALSE),0)","v":0},null,"N"]
[5800,"Costas Deisiúcháin agus Cothabhála Eile",null,null,null,{"$f":"IFERROR(VLOOKUP(A30,Nominal_Code_LT3[],2,FALSE),0)","v":0},null,{"$f":"IFERROR(VLOOKUP(A30,Nominal_Code_LT[],2,FALSE),0)","v":0},null,"N"]
[5801,"Costas Pá faoin Deontas do Chúntóir COVID",null,null,null,{"$f":"IFERROR(VLOOKUP(A31,Nominal_Code_LT3[],2,FALSE),0)","v":0},null,{"$f":"IFERROR(VLOOKUP(A31,Nominal_Code_LT[],2,FALSE),0)","v":0},null,"N"]
[5802,"Deontas Caipitíochta COVID le haghaidh na gCostas a bhaineann le PPE",null,null,null,{"$f":"IFERROR(VLOOKUP(A32,Nominal_Code_LT3[],2,FALSE),0)","v":0},null,{"$f":"IFERROR(VLOOKUP(A32,Nominal_Code_LT[],2,FALSE),0)","v":0},null,"N"]
[5803,"Costas Pá ón Deontas Mhaoirseacht Fheabhsaithe COVID",null,null,null,{"$f":"IFERROR(VLOOKUP(A33,Nominal_Code_LT3[],2,FALSE),0)","v":0},null,{"$f":"IFERROR(VLOOKUP(A33,Nominal_Code_LT[],2,FALSE),0)","v":0},null,"N"]
[5804,"Deontas Caipitíochta COVID le haghaidh Chostas Pá Glantacháin",null,null,null,{"$f":"IFERROR(VLOOKUP(A34,Nominal_Code_LT3[],2,FALSE),0)","v":0},null,{"$f":"IFERROR(VLOOKUP(A34,Nominal_Code_LT[],2,FALSE),0)","v":0},null,"N"]
[5805,"Deontas Caipitíochta COVID le haghaidh Costas Glantacháin Neamhphá",null,null,null,{"$f":"IFERROR(VLOOKUP(A35,Nominal_Code_LT3[],2,FALSE),0)","v":0},null,{"$f":"IFERROR(VLOOKUP(A35,Nominal_Code_LT[],2,FALSE),0)","v":0},null,"N"]
[null,"Iomlán Deisiúcháin, Cothabháil agus Bunú",null,null,null,{"$f":"SUM(F6:F35)","v":0},null,{"$f":"SUM(H6:H35)","v":0}]
[null,"8. Riarachán"]
[6010,"Costas Pá Oifigeach Cléireachais/Rúnaíochta",null,null,null,{"$f":"IFERROR(VLOOKUP(A38,Nominal_Code_LT3[],2,FALSE),0)","v":0},null,{"$f":"IFERROR(VLOOKUP(A38,Nominal_Code_LT[],2,FALSE),0)","v":0},null,{"$f":"IF(AND(F38=0,H38=0),\"N\",\"Y\")","v":"N"}]
[6011,"Maoiniú COVID le haghaidh Caiteachas maidir le hUaireanta Rúnaí Ionaid",null,null,null,{"$f":"IFERROR(VLOOKUP(A39,Nominal_Code_LT3[],2,FALSE),0)","v":0},null,{"$f":"IFERROR(VLOOKUP(A39,Nominal_Code_LT[],2,FALSE),0)","v":0},null,"N"]
[6050,"Costas Pinsin Oifigeach Cléireachais/Rúnaíochta",null,null,null,{"$f":"IFERROR(VLOOKUP(A40,Nominal_Code_LT3[],2,FALSE),0)","v":0},null,{"$f":"IFERROR(VLOOKUP(A40,Nominal_Code_LT[],2,FALSE),0)","v":0},null,"N"]
[6070,"Costais Phá Riaracháin an Ionaid Spóirt",null,null,null,{"$f":"IFERROR(VLOOKUP(A41,Nominal_Code_LT3[],2,FALSE),0)","v":0},null,{"$f":"IFERROR(VLOOKUP(A41,Nominal_Code_LT[],2,FALSE),0)","v":0},null,"N"]
[6100,"Costas Earcaíochta",null,null,null,{"$f":"IFERROR(VLOOKUP(A42,Nominal_Code_LT3[],2,FALSE),0)","v":0},null,{"$f":"IFERROR(VLOOKUP(A42,Nominal_Code_LT[],2,FALSE),0)","v":0},null,"N"]
[6150,"Costas Fógraíochta / Caidrimh Phoiblí",null,null,null,{"$f":"IFERROR(VLOOKUP(A43,Nominal_Code_LT3[],2,FALSE),0)","v":0},null,{"$f":"IFERROR(VLOOKUP(A43,Nominal_Code_LT[],2,FALSE),0)","v":0},null,"N"]
[6210,"Costas Postais",null,null,null,{"$f":"IFERROR(VLOOKUP(A44,Nominal_Code_LT3[],2,FALSE),0)","v":0},null,{"$f":"IFERROR(VLOOKUP(A44,Nominal_Code_LT[],2,FALSE),0)","v":0},null,"N"]
[6250,"Costas Gutháin / SMS",null,null,null,{"$f":"IFERROR(VLOOKUP(A45,Nominal_Code_LT3[],2,FALSE),0)","v":0},null,{"$f":"IFERROR(VLOOKUP(A45,Nominal_Code_LT[],2,FALSE),0)","v":0},null,"N"]
[6300,"Costas Clódóireachta agus Páipéarachais",null,null,null,{"$f":"IFERROR(VLOOKUP(A46,Nominal_Code_LT3[],2,FALSE),0)","v":0},null,{"$f":"IFERROR(VLOOKUP(A46,Nominal_Code_LT[],2,FALSE),0)","v":0},null,"N"]
[6305,"Costas Fótachóipeála",null,null,null,{"$f":"IFERROR(VLOOKUP(A47,Nominal_Code_LT3[],2,FALSE),0)","v":0},null,{"$f":"IFERROR(VLOOKUP(A47,Nominal_Code_LT[],2,FALSE),0)","v":0},null,"N"]
[6350,"Costas Trealaimh Oifige (Neamhchaipitiúil)",null,null,null,{"$f":"IFERROR(VLOOKUP(A48,Nominal_Code_LT3[],2,FALSE),0)","v":0},null,{"$f":"IFERROR(VLOOKUP(A48,Nominal_Code_LT[],2,FALSE),0)","v":0},null,"N"]
[6355,"Costas Ríomhairí Oifige nach bhFuarthas Deontas TFC ina leith        ",null,null,null,{"$f":"IFERROR(VLOOKUP(A49,Nominal_Code_LT3[],2,FALSE),0)","v":0},null,{"$f":"IFERROR(VLOOKUP(A49,Nominal_Code_LT[],2,FALSE),0)","v":0},null,"N"]
[6400,"Costas Cuntasaíochta / Iniúchóireachta",null,null,null,{"$f":"IFERROR(VLOOKUP(A50,Nominal_Code_LT3[],2,FALSE),0)","v":0},null,{"$f":"IFERROR(VLOOKUP(A50,Nominal_Code_LT[],2,FALSE),0)","v":0},null,"N"]
[6450,"Costas Táillí Gairmiúla Eile",null,null,null,{"$f":"IFERROR(VLOOKUP(A51,Nominal_Code_LT3[],2,FALSE),0)","v":0},null,{"$f":"IFERROR(VLOOKUP(A51,Nominal_Code_LT[],2,FALSE),0)","v":0},null,"N"]
[6500,"Costas Taistil agus Cothaithe",null,null,null,{"$f":"IFERROR(VLOOKUP(A52,Nominal_Code_LT3[],2,FALSE),0)","v":0},null,{"$f":"IFERROR(VLOOKUP(A52,Nominal_Code_LT[],2,FALSE),0)","v":0},null,"N"]
[6600,"Costais an Phríomhoide",null,null,null,{"$f":"IFERROR(VLOOKUP(A53,Nominal_Code_LT3[],2,FALSE),0)","v":0},null,{"$f":"IFERROR(VLOOKUP(A53,Nominal_Code_LT[],2,FALSE),0)","v":0},null,"N"]
[6650,"Costas an Bhoird Bainistíocha",null,null,null,{"$f":"IFERROR(VLOOKUP(A54,Nominal_Code_LT3[],2,FALSE),0)","v":0},null,{"$f":"IFERROR(VLOOKUP(A54,Nominal_Code_LT[],2,FALSE),0)","v":0},null,"N"]
[6700,"Costas na Síntiús Bliantúil",null,null,null,{"$f":"IFERROR(VLOOKUP(A55,Nominal_Code_LT3[],2,FALSE),0)","v":0},null,{"$f":"IFERROR(VLOOKUP(A55,Nominal_Code_LT[],2,FALSE),0)","v":0},null,"N"]
[6730,"Costas an Chórais Riaracháin Inscoile",null,null,null,{"$f":"IFERROR(VLOOKUP(A56,Nominal_Code_LT3[],2,FALSE),0)","v":0},null,{"$f":"IFERROR(VLOOKUP(A56,Nominal_Code_LT[],2,FALSE),0)","v":0},null,"N"]
[6731,"Costais Bogearraí Cuntasaíochta / Bogearraí Párolla",null,null,null,{"$f":"IFERROR(VLOOKUP(A57,Nominal_Code_LT3[],2,FALSE),0)","v":0},null,{"$f":"IFERROR(VLOOKUP(A57,Nominal_Code_LT[],2,FALSE),0)","v":0},null,"N"]
[6750,"Tabhartais do Charthanais",null,null,null,{"$f":"IFERROR(VLOOKUP(A58,Nominal_Code_LT3[],2,FALSE),0)","v":0},null,{"$f":"IFERROR(VLOOKUP(A58,Nominal_Code_LT[],2,FALSE),0)","v":0},null,"N"]
[6755,"Costas Leighis agus Garchabhrach",null,null,null,{"$f":"IFERROR(VLOOKUP(A59,Nominal_Code_LT3[],2,FALSE),0)","v":0},null,{"$f":"IFERROR(VLOOKUP(A59,Nominal_Code_LT[],2,FALSE),0)","v":0},null,"N"]
[6780,"Costais an tSeomra Foirne",null,null,null,{"$f":"IFERROR(VLOOKUP(A60,Nominal_Code_LT3[],2,FALSE),0)","v":0},null,{"$f":"IFERROR(VLOOKUP(A60,Nominal_Code_LT[],2,FALSE),0)","v":0},null,"N"]
[6800,"Costas Fáilteachais",null,null,null,{"$f":"IFERROR(VLOOKUP(A61,Nominal_Code_LT3[],2,FALSE),0)","v":0},null,{"$f":"IFERROR(VLOOKUP(A61,Nominal_Code_LT[],2,FALSE),0)","v":0},null,"N"]
[6830,"Costas Siopa Milseán",null,null,null,{"$f":"IFERROR(VLOOKUP(A62,Nominal_Code_LT3[],2,FALSE),0)","v":0},null,{"$f":"IFERROR(VLOOKUP(A62,Nominal_Code_LT[],2,FALSE),0)","v":0},null,"N"]
[6870,"Costais Riaracháin an Ionaid Spóirt",null,null,null,{"$f":"IFERROR(VLOOKUP(A63,Nominal_Code_LT3[],2,FALSE),0)","v":0},null,{"$f":"IFERROR(VLOOKUP(A63,Nominal_Code_LT[],2,FALSE),0)","v":0},null,"N"]
[6900,"Costais Riaracháin Eile",null,null,null,{"$f":"IFERROR(VLOOKUP(A64,Nominal_Code_LT3[],2,FALSE),0)","v":0},null,{"$f":"IFERROR(VLOOKUP(A64,Nominal_Code_LT[],2,FALSE),0)","v":0},null,"N"]
[null,"Iomlán Riarachán",null,null,null,{"$f":"SUM(F38:F64)","v":0},null,{"$f":"SUM(H38:H64)","v":0}]
[null,"9. Airgeadas"]
[7300,"Costais Léasaithe",null,null,null,{"$f":"IFERROR(VLOOKUP(A67,Nominal_Code_LT3[],2,FALSE),0)","v":0},null,{"$f":"IFERROR(VLOOKUP(A67,Nominal_Code_LT[],2,FALSE),0)","v":0},null,{"$f":"IF(AND(F67=0,H67=0),\"N\",\"Y\")","v":"N"}]
[7320,"Costas Táillí Iasachta",null,null,null,{"$f":"IFERROR(VLOOKUP(A68,Nominal_Code_LT3[],2,FALSE),0)","v":0},null,{"$f":"IFERROR(VLOOKUP(A68,Nominal_Code_LT[],2,FALSE),0)","v":0},null,"N"]
[7400,"Costas Úis Bainc",null,null,null,{"$f":"IFERROR(VLOOKUP(A69,Nominal_Code_LT3[],2,FALSE),0)","v":0},null,{"$f":"IFERROR(VLOOKUP(A69,Nominal_Code_LT[],2,FALSE),0)","v":0},null,"N"]
[7450,"Costas Táillí Bainc",null,null,null,{"$f":"IFERROR(VLOOKUP(A70,Nominal_Code_LT3[],2,FALSE),0)","v":0},null,{"$f":"IFERROR(VLOOKUP(A70,Nominal_Code_LT[],2,FALSE),0)","v":0},null,"N"]
[7500,"Costas Párolla Pinsinéirí",null,null,null,{"$f":"IFERROR(VLOOKUP(A71,Nominal_Code_LT3[],2,FALSE),0)","v":0},null,{"$f":"IFERROR(VLOOKUP(A71,Nominal_Code_LT[],2,FALSE),0)","v":0},null,"N"]
[7800,"Costais In-Aisíoctha",null,null,null,{"$f":"IFERROR(VLOOKUP(A72,Nominal_Code_LT3[],2,FALSE),0)","v":0},null,{"$f":"IFERROR(VLOOKUP(A72,Nominal_Code_LT[],2,FALSE),0)","v":0},null,"N"]
[7850,"Lascainí Faighte",null,null,null,{"$f":"IFERROR(VLOOKUP(A73,Nominal_Code_LT3[],2,FALSE),0)","v":0},null,{"$f":"IFERROR(VLOOKUP(A73,Nominal_Code_LT[],2,FALSE),0)","v":0},null,"N"]
[null,"Costaisí Airgeadais Iomlán",null,null,null,{"$f":"SUM(F67:F73)","v":0},null,{"$f":"SUM(H67:H73)","v":0}]
[null,"10. Dímheas"]
[8000,"Dímheas Bliantúil: Foirgnimh",null,null,null,{"$f":"IFERROR(VLOOKUP(A76,Nominal_Code_LT3[],2,FALSE),0)","v":0},null,{"$f":"IFERROR(VLOOKUP(A76,Nominal_Code_LT[],2,FALSE),0)","v":0},null,{"$f":"IF(AND(F76=0,H76=0),\"N\",\"Y\")","v":"N"}]
[8020,"Dímheas Bliantúil: Daingneáin, Feistis agus Trealamh",null,null,null,{"$f":"IFERROR(VLOOKUP(A77,Nominal_Code_LT3[],2,FALSE),0)","v":0},null,{"$f":"IFERROR(VLOOKUP(A77,Nominal_Code_LT[],2,FALSE),0)","v":0},null,"N"]
[8040,"Dímheas Bliantúil: Mótarfheithiclí",null,null,null,{"$f":"IFERROR(VLOOKUP(A78,Nominal_Code_LT3[],2,FALSE),0)","v":0},null,{"$f":"IFERROR(VLOOKUP(A78,Nominal_Code_LT[],2,FALSE),0)","v":0},null,"N"]
[8060,"Dímheas Bliantúil: TFC",null,null,null,{"$f":"IFERROR(VLOOKUP(A79,Nominal_Code_LT3[],2,FALSE),0)","v":0},null,{"$f":"IFERROR(VLOOKUP(A79,Nominal_Code_LT[],2,FALSE),0)","v":0},null,"N"]
[8080,"Dímheas Bliantúil: Eile",null,null,null,{"$f":"IFERROR(VLOOKUP(A80,Nominal_Code_LT3[],2,FALSE),0)","v":0},null,{"$f":"IFERROR(VLOOKUP(A80,Nominal_Code_LT[],2,FALSE),0)","v":0},null,"N"]
[null,"Dímheas Iomlán",null,null,null,{"$f":"SUM(F76:F80)","v":0},null,{"$f":"SUM(H76:H80)","v":0}]
[]
[null,"CAITEACHAS IOMLÁN  ",null,null,null,{"$f":"SUM('Expenditure Account (1)'!F20+'Expenditure Account (1)'!F79+F36+F65+F74+F81)","v":0},null,{"$f":"SUM('Expenditure Account (1)'!H20+'Expenditure Account (1)'!H79+H36+H65+H74+H81)","v":0}]
[]
[null,"BARRACHAS / EASNAMH  ",null,null,null,{"$f":"SUM('Income Account'!F100)-('Expenditure Account (2)'!F83)","v":0},null,{"$f":"SUM('Income Account'!H100-'Expenditure Account (2)'!H83)","v":0}]

{"sheet":"Detailed Balance Sheet","index":16,"n_rows":126,"n_cols":10,"rows_kept":126,"cut":false,"hidden":false,"merged":[[1,1,1,4]]}
[null,{"$f":"'General Information'!E4","v":"Scoil Shamplach"},null,null,null,null,"Instructions"]
[null,"Clár Comhardaithe mionsonraithe don bhliain dar críoch",null,null,null,{"$f":"'Accountants'' Report'!G25","v":"Lúnasa 31, "},{"$f":"'Accountants'' Report'!H25","v":"2022"}]
[null,null,null,null,null,"Iarbhír                ",null,"Iarbhír                "]
[null,null,null,null,null,{"$f":"'Balance Sheet'!F5","v":"2021/2022"},null,{"$f":"'Balance Sheet'!H5","v":"2020/2021"}]
[null,"Sócmhainn Sheasta"]
[1400,"Costas Caipitil Talún agus Foirgnimh - tugtha ar aghaidh",null,null,null,{"$f":"IFERROR(VLOOKUP(A6,Nominal_Code_LT3[],2,FALSE),0)","v":0},null,{"$f":"IFERROR(VLOOKUP(A6,Nominal_Code_LT[],2,FALSE),0)","v":0},null,{"$f":"IF(AND(F6=0,H6=0),\"N\",\"Y\")","v":"N"}]
[1401,"Caipiteal: Breiseanna Talún agus Foirgneamh",null,null,null,{"$f":"IFERROR(VLOOKUP(A7,Nominal_Code_LT3[],2,FALSE),0)","v":0},null,{"$f":"IFERROR(VLOOKUP(A7,Nominal_Code_LT[],2,FALSE),0)","v":0},null,{"$f":"IF(AND(F7=0,H7=0),\"N\",\"Y\")","v":"N"}]
[1402,"Caipiteal: Diúscairtí Talún agus Foirgnimh",null,null,null,{"$f":"IFERROR(VLOOKUP(A8,Nominal_Code_LT3[],2,FALSE),0)","v":0},null,{"$f":"IFERROR(VLOOKUP(A8,Nominal_Code_LT[],2,FALSE),0)","v":0},null,"N"]
[1410,"Dímheas Carntha: Talún agus Foirgnimh - tugtha ar aghaidh     ",null,null,null,{"$f":"IFERROR(VLOOKUP(A9,Nominal_Code_LT3[],2,FALSE),0)","v":0},null,{"$f":"IFERROR(VLOOKUP(A9,Nominal_Code_LT[],2,FALSE),0)","v":0},null,"N"]
[1411,"Dímheas: Talún agus Foirgnimh An Bhliain Reatha",null,null,null,{"$f":"IFERROR(VLOOKUP(A10,Nominal_Code_LT3[],2,FALSE),0)","v":0},null,{"$f":"IFERROR(VLOOKUP(A10,Nominal_Code_LT[],2,FALSE),0)","v":0},null,"N"]
[1412,"Dímheas: Talún agus Foirgnimh ar Dhiúscairt",null,null,null,{"$f":"IFERROR(VLOOKUP(A11,Nominal_Code_LT3[],2,FALSE),0)","v":0},null,{"$f":"IFERROR(VLOOKUP(A11,Nominal_Code_LT[],2,FALSE),0)","v":0},null,"N"]
[1420,"Caipiteal: Costas Daingneáin, Feisteas agus Trealamh - tugtha ar aghaidh",null,null,null,{"$f":"IFERROR(VLOOKUP(A12,Nominal_Code_LT3[],2,FALSE),0)","v":0},null,{"$f":"IFERROR(VLOOKUP(A12,Nominal_Code_LT[],2,FALSE),0)","v":0},null,"N"]
[1421,"Caipiteal: Daingneáin, Feistis agus Trealamh - Breiseanna",null,null,null,{"$f":"IFERROR(VLOOKUP(A13,Nominal_Code_LT3[],2,FALSE),0)","v":0},null,{"$f":"IFERROR(VLOOKUP(A13,Nominal_Code_LT[],2,FALSE),0)","v":0},null,"N"]
[1422,"Caipiteal: Daingneáin, Feistis agus Trealamh - Diúscairtí",null,null,null,{"$f":"IFERROR(VLOOKUP(A14,Nominal_Code_LT3[],2,FALSE),0)","v":0},null,{"$f":"IFERROR(VLOOKUP(A14,Nominal_Code_LT[],2,FALSE),0)","v":0},null,"N"]
[1425,"Caipiteal: Mionoibreacha COVID: Daingneáin, Feistis agus Trealamh - tugtha ar aghaidh ",null,null,null,{"$f":"IFERROR(VLOOKUP(A15,Nominal_Code_LT3[],2,FALSE),0)","v":0},null,{"$f":"IFERROR(VLOOKUP(A15,Nominal_Code_LT[],2,FALSE),0)","v":0},null,"N"]
[1426,"Caipiteal: Daingneáin, Feistis agus Trealamh Mionoibreacha Covid - Breiseanna",null,null,null,{"$f":"IFERROR(VLOOKUP(A16,Nominal_Code_LT3[],2,FALSE),0)","v":0},null,{"$f":"IFERROR(VLOOKUP(A16,Nominal_Code_LT[],2,FALSE),0)","v":0},null,"N"]
[1427,"Caipiteal: Daingneáin, Feistis agus Trealamh Mionoibreacha Covid - Diúscairtí",null,null,null,{"$f":"IFERROR(VLOOKUP(A17,Nominal_Code_LT3[],2,FALSE),0)","v":0},null,{"$f":"IFERROR(VLOOKUP(A17,Nominal_Code_LT[],2,FALSE),0)","v":0},null,"N"]
[1430,"Dímheas Carntha: Daingneáin, Feistis agus Trealamh - tugtha ar aghaidh                         ",null,null,null,{"$f":"IFERROR(VLOOKUP(A18,Nominal_Code_LT3[],2,FALSE),0)","v":0},null,{"$f":"IFERROR(VLOOKUP(A18,Nominal_Code_LT[],2,FALSE),0)","v":0},null,"N"]
[1431,"Dímheas: Daingneáin, Feistis agus Trealamh An Bhliain Reatha           ",null,null,null,{"$f":"IFERROR(VLOOKUP(A19,Nominal_Code_LT3[],2,FALSE),0)","v":0},null,{"$f":"IFERROR(VLOOKUP(A19,Nominal_Code_LT[],2,FALSE),0)","v":0},null,"N"]
[1432,"Dímheas: Daingneáin, Feistis agus Trealamh - Diúscairtí            ",null,null,null,{"$f":"IFERROR(VLOOKUP(A20,Nominal_Code_LT3[],2,FALSE),0)","v":0},null,{"$f":"IFERROR(VLOOKUP(A20,Nominal_Code_LT[],2,FALSE),0)","v":0},null,"N"]
[1435,"Dímheas Carntha: Daingneáin, Feistis agus Trealamh Mionoibreacha Covid - tugtha ar aghaidh           ",null,null,null,{"$f":"IFERROR(VLOOKUP(A21,Nominal_Code_LT3[],2,FALSE),0)","v":0},null,{"$f":"IFERROR(VLOOKUP(A21,Nominal_Code_LT[],2,FALSE),0)","v":0},null,"N"]
[1436,"Dímheas: Daingneáin, Feistis agus Trealamh Mionoibreacha Covid An Bhliain Reatha",null,null,null,{"$f":"IFERROR(VLOOKUP(A22,Nominal_Code_LT3[],2,FALSE),0)","v":0},null,{"$f":"IFERROR(VLOOKUP(A22,Nominal_Code_LT[],2,FALSE),0)","v":0},null,"N"]
[1437,"Dímheas:  Daingneáin, Feistis agus Trealamh Mionoibreacha Covid - Diúscairtí",null,null,null,{"$f":"IFERROR(VLOOKUP(A23,Nominal_Code_LT3[],2,FALSE),0)","v":0},null,{"$f":"IFERROR(VLOOKUP(A23,Nominal_Code_LT[],2,FALSE),0)","v":0},null,"N"]
[1440,"Caipiteal: Costas Mótarfheithiclí - tugtha ar aghaidh                                                                                        ",null,null,null,{"$f":"IFERROR(VLOOKUP(A24,Nominal_Code_LT3[],2,FALSE),0)","v":0},null,{"$f":"IFERROR(VLOOKUP(A24,Nominal_Code_LT[],2,FALSE),0)","v":0},null,"N"]
[1441,"Caipiteal: Breiseanna Mótarfheithiclí",null,null,null,{"$f":"IFERROR(VLOOKUP(A25,Nominal_Code_LT3[],2,FALSE),0)","v":0},null,{"$f":"IFERROR(VLOOKUP(A25,Nominal_Code_LT[],2,FALSE),0)","v":0},null,"N"]
[1442,"Caipiteal: Diúscartaí Mótarfheithiclí",null,null,null,{"$f":"IFERROR(VLOOKUP(A26,Nominal_Code_LT3[],2,FALSE),0)","v":0},null,{"$f":"IFERROR(VLOOKUP(A26,Nominal_Code_LT[],2,FALSE),0)","v":0},null,"N"]
[1450,"Dímheas Carntha: Mótarfheithiclí - tugtha ar aghaidh                                                               ",null,null,null,{"$f":"IFERROR(VLOOKUP(A27,Nominal_Code_LT3[],2,FALSE),0)","v":0},null,{"$f":"IFERROR(VLOOKUP(A27,Nominal_Code_LT[],2,FALSE),0)","v":0},null,"N"]
[1451,"Dímheas: Mótarfheithiclí An Bhliain Reatha",null,null,null,{"$f":"IFERROR(VLOOKUP(A28,Nominal_Code_LT3[],2,FALSE),0)","v":0},null,{"$f":"IFERROR(VLOOKUP(A28,Nominal_Code_LT[],2,FALSE),0)","v":0},null,"N"]
[1452,"Dímheas: Diúscairt Mhótarfheithiclí",null,null,null,{"$f":"IFERROR(VLOOKUP(A29,Nominal_Code_LT3[],2,FALSE),0)","v":0},null,{"$f":"IFERROR(VLOOKUP(A29,Nominal_Code_LT[],2,FALSE),0)","v":0},null,"N"]
[1460,"Caipiteal: Costais TFC - tugtha ar aghaidh                                                                                                                 ",null,null,null,{"$f":"IFERROR(VLOOKUP(A30,Nominal_Code_LT3[],2,FALSE),0)","v":0},null,{"$f":"IFERROR(VLOOKUP(A30,Nominal_Code_LT[],2,FALSE),0)","v":0},null,"N"]
[1461,"Caipiteal: Breiseanna TFC",null,null,null,{"$f":"IFERROR(VLOOKUP(A31,Nominal_Code_LT3[],2,FALSE),0)","v":0},null,{"$f":"IFERROR(VLOOKUP(A31,Nominal_Code_LT[],2,FALSE),0)","v":0},null,"N"]
[1462,"Caipiteal: Diúscairtí TFC",null,null,null,{"$f":"IFERROR(VLOOKUP(A32,Nominal_Code_LT3[],2,FALSE),0)","v":0},null,{"$f":"IFERROR(VLOOKUP(A32,Nominal_Code_LT[],2,FALSE),0)","v":0},null,"N"]
[1465,"Caipiteal: Costais TFC Mionoibreacha Covid - tugtha ar aghaidh                                                                        ",null,null,null,{"$f":"IFERROR(VLOOKUP(A33,Nominal_Code_LT3[],2,FALSE),0)","v":0},null,{"$f":"IFERROR(VLOOKUP(A33,Nominal_Code_LT[],2,FALSE),0)","v":0},null,"N"]
[1466,"Caipiteal: Breiseanna TFC Mionoibreacha Covid",null,null,null,{"$f":"IFERROR(VLOOKUP(A34,Nominal_Code_LT3[],2,FALSE),0)","v":0},null,{"$f":"IFERROR(VLOOKUP(A34,Nominal_Code_LT[],2,FALSE),0)","v":0},null,"N"]
[1467,"Caipiteal: Diúscairtí TFC Mionoibreacha Covid",null,null,null,{"$f":"IFERROR(VLOOKUP(A35,Nominal_Code_LT3[],2,FALSE),0)","v":0},null,{"$f":"IFERROR(VLOOKUP(A35,Nominal_Code_LT[],2,FALSE),0)","v":0},null,"N"]
[1470,"Dímheas Carntha: Costais TFC - tugtha ar aghaidh                                                                         ",null,null,null,{"$f":"IFERROR(VLOOKUP(A36,Nominal_Code_LT3[],2,FALSE),0)","v":0},null,{"$f":"IFERROR(VLOOKUP(A36,Nominal_Code_LT[],2,FALSE),0)","v":0},null,"N"]
[1471,"Dímheas: TFC An Bhliain Reatha",null,null,null,{"$f":"IFERROR(VLOOKUP(A37,Nominal_Code_LT3[],2,FALSE),0)","v":0},null,{"$f":"IFERROR(VLOOKUP(A37,Nominal_Code_LT[],2,FALSE),0)","v":0},null,"N"]
[1472,"Dímheas: Diúscairt TFC",null,null,null,{"$f":"IFERROR(VLOOKUP(A38,Nominal_Code_LT3[],2,FALSE),0)","v":0},null,{"$f":"IFERROR(VLOOKUP(A38,Nominal_Code_LT[],2,FALSE),0)","v":0},null,"N"]
[1475,"Dímheas Carntha: TFC Mionoibreacha Covid - tugtha ar aghaidh                                           ",null,null,null,{"$f":"IFERROR(VLOOKUP(A39,Nominal_Code_LT3[],2,FALSE),0)","v":0},null,{"$f":"IFERROR(VLOOKUP(A39,Nominal_Code_LT[],2,FALSE),0)","v":0},null,"N"]
[1476,"Dímheas: TFC Mionoibreacha Covid an Bhliain Reatha",null,null,null,{"$f":"IFERROR(VLOOKUP(A40,Nominal_Code_LT3[],2,FALSE),0)","v":0},null,{"$f":"IFERROR(VLOOKUP(A40,Nominal_Code_LT[],2,FALSE),0)","v":0},null,"N"]
[1477,"Dímheas: Diúscairtí TFC Mionoibreacha Covid",null,null,null,{"$f":"IFERROR(VLOOKUP(A41,Nominal_Code_LT3[],2,FALSE),0)","v":0},null,{"$f":"IFERROR(VLOOKUP(A41,Nominal_Code_LT[],2,FALSE),0)","v":0},null,"N"]
[1480,"Caipiteal: Costais Eile - tugtha ar aghaidh                                                                                                           ",null,null,null,{"$f":"IFERROR(VLOOKUP(A42,Nominal_Code_LT3[],2,FALSE),0)","v":0},null,{"$f":"IFERROR(VLOOKUP(A42,Nominal_Code_LT[],2,FALSE),0)","v":0},null,"N"]
[1481,"Caipiteal: Breiseanna Eile",null,null,null,{"$f":"IFERROR(VLOOKUP(A43,Nominal_Code_LT3[],2,FALSE),0)","v":0},null,{"$f":"IFERROR(VLOOKUP(A43,Nominal_Code_LT[],2,FALSE),0)","v":0},null,"N"]
[1482,"Caipiteal: Diúscairtí Eile",null,null,null,{"$f":"IFERROR(VLOOKUP(A44,Nominal_Code_LT3[],2,FALSE),0)","v":0},null,{"$f":"IFERROR(VLOOKUP(A44,Nominal_Code_LT[],2,FALSE),0)","v":0},null,"N"]
[1490,"Dímheas Carntha Eile - tugtha ar aghaidh                                                                    ",null,null,null,{"$f":"IFERROR(VLOOKUP(A45,Nominal_Code_LT3[],2,FALSE),0)","v":0},null,{"$f":"IFERROR(VLOOKUP(A45,Nominal_Code_LT[],2,FALSE),0)","v":0},null,"N"]
[1491,"Dímheas Carntha ar Bhliain Reatha Eile",null,null,null,{"$f":"IFERROR(VLOOKUP(A46,Nominal_Code_LT3[],2,FALSE),0)","v":0},null,{"$f":"IFERROR(VLOOKUP(A46,Nominal_Code_LT[],2,FALSE),0)","v":0},null,"N"]
[1492,"Dímheas Carntha Diúscairtí Eile",null,null,null,{"$f":"IFERROR(VLOOKUP(A47,Nominal_Code_LT3[],2,FALSE),0)","v":0},null,{"$f":"IFERROR(VLOOKUP(A47,Nominal_Code_LT[],2,FALSE),0)","v":0},null,"N"]
[]
[null,"Sóchmhainn Reatha"]
[1700,"Rialú Mórleabhar Díolachán",null,null,null,{"$f":"IFERROR(VLOOKUP(A50,Nominal_Code_LT3[],2,FALSE),0)","v":0},null,{"$f":"IFERROR(VLOOKUP(A50,Nominal_Code_LT[],2,FALSE),0)","v":0},null,{"$f":"IF(AND(F50=0,H50=0),\"N\",\"Y\")","v":"N"}]
[1710,"Féichiúnaithe",null,null,null,{"$f":"IFERROR(VLOOKUP(A51,Nominal_Code_LT3[],2,FALSE),0)","v":0},null,{"$f":"IFERROR(VLOOKUP(A51,Nominal_Code_LT[],2,FALSE),0)","v":0},null,"N"]
[1705,"Stoc",null,null,null,{"$f":"IFERROR(VLOOKUP(A52,Nominal_Code_LT3[],2,FALSE),0)","v":0},null,{"$f":"IFERROR(VLOOKUP(A52,Nominal_Code_LT[],2,FALSE),0)","v":0},null,"N"]
[1720,"Réamhíocaíochtaí",null,null,null,{"$f":"IFERROR(VLOOKUP(A53,Nominal_Code_LT3[],2,FALSE),0)","v":0},null,{"$f":"IFERROR(VLOOKUP(A53,Nominal_Code_LT[],2,FALSE),0)","v":0},null,"N"]
[1730,"Deontais Dlite",null,null,null,{"$f":"IFERROR(VLOOKUP(A54,Nominal_Code_LT3[],2,FALSE),0)","v":0},null,{"$f":"IFERROR(VLOOKUP(A54,Nominal_Code_LT[],2,FALSE),0)","v":0},null,"N"]
[1800,"Cuntas Reatha 1",null,null,null,{"$f":"IFERROR(VLOOKUP(A55,Nominal_Code_LT3[],2,FALSE),0)","v":0},null,{"$f":"IFERROR(VLOOKUP(A55,Nominal_Code_LT[],2,FALSE),0)","v":0},null,"N"]
[1801,"Cuntas Reatha 2",null,null,null,{"$f":"IFERROR(VLOOKUP(A56,Nominal_Code_LT3[],2,FALSE),0)","v":0},null,{"$f":"IFERROR(VLOOKUP(A56,Nominal_Code_LT[],2,FALSE),0)","v":0},null,"N"]
[1802,"Cuntas Reatha 3",null,null,null,{"$f":"IFERROR(VLOOKUP(A57,Nominal_Code_LT3[],2,FALSE),0)","v":0},null,{"$f":"IFERROR(VLOOKUP(A57,Nominal_Code_LT[],2,FALSE),0)","v":0},null,"N"]
[1803,"Cuntas Bainc Béilí Scoile an RGFCS",null,null,null,{"$f":"IFERROR(VLOOKUP(A58,Nominal_Code_LT3[],2,FALSE),0)","v":0},null,{"$f":"IFERROR(VLOOKUP(A58,Nominal_Code_LT[],2,FALSE),0)","v":0},null,"N"]
[1810,"Cuntas Taisce",null,null,null,{"$f":"IFERROR(VLOOKUP(A59,Nominal_Code_LT3[],2,FALSE),0)","v":0},null,{"$f":"IFERROR(VLOOKUP(A59,Nominal_Code_LT[],2,FALSE),0)","v":0},null,"N"]
[1820,"Cuntas Bainc Chumannn/Chomhairle na dTuismitheoirí",null,null,null,{"$f":"IFERROR(VLOOKUP(A60,Nominal_Code_LT3[],2,FALSE),0)","v":0},null,{"$f":"IFERROR(VLOOKUP(A60,Nominal_Code_LT[],2,FALSE),0)","v":0},null,"N"]
[1850,"Cuntas Cárta Creidmheasa",null,null,null,{"$f":"IFERROR(VLOOKUP(A61,Nominal_Code_LT3[],2,FALSE),0)","v":0},null,{"$f":"IFERROR(VLOOKUP(A61,Nominal_Code_LT[],2,FALSE),0)","v":0},null,"N"]
[1870,"Cuntas Imréitigh um Réiteach Íocaíochtaí ar Líne",null,null,null,{"$f":"IFERROR(VLOOKUP(A62,Nominal_Code_LT3[],2,FALSE),0)","v":0},null,{"$f":"IFERROR(VLOOKUP(A62,Nominal_Code_LT[],2,FALSE),0)","v":0},null,"N"]
[1900,"Cuntas Mionairgid",null,null,null,{"$f":"IFERROR(VLOOKUP(A63,Nominal_Code_LT3[],2,FALSE),0)","v":0},null,{"$f":"IFERROR(VLOOKUP(A63,Nominal_Code_LT[],2,FALSE),0)","v":0},null,"N"]
[1950,"Cuntas Rialaithe Airgid",null,null,null,{"$f":"IFERROR(VLOOKUP(A64,Nominal_Code_LT3[],2,FALSE),0)","v":0},null,{"$f":"IFERROR(VLOOKUP(A64,Nominal_Code_LT[],2,FALSE),0)","v":0},null,"N"]
[]
[null,"Dliteanais Reatha"]
[2100,"Cuntas Rialaithe Creidiúnaithe",null,null,null,{"$f":"-IFERROR(VLOOKUP(A67,Nominal_Code_LT3[],2,FALSE),0)","v":0},null,{"$f":"-IFERROR(VLOOKUP(A67,Nominal_Code_LT[],2,FALSE),0)","v":0},null,"N"]
[2105,"Ioncam Scoile Faighte Roimh Ré",null,null,null,{"$f":"-IFERROR(VLOOKUP(A68,Nominal_Code_LT3[],2,FALSE),0)","v":0},null,{"$f":"-IFERROR(VLOOKUP(A68,Nominal_Code_LT[],2,FALSE),0)","v":0},null,"N"]
[2150,"Deontais Faighte Roimh Ré",null,null,null,{"$f":"-IFERROR(VLOOKUP(A69,Nominal_Code_LT3[],2,FALSE),0)","v":0},null,{"$f":"-IFERROR(VLOOKUP(A69,Nominal_Code_LT[],2,FALSE),0)","v":0},null,"N"]
[2151,"Deontas Leabhar faighte roimh ré",null,null,null,{"$f":"-IFERROR(VLOOKUP(A70,Nominal_Code_LT3[],2,FALSE),0)","v":0},null,{"$f":"-IFERROR(VLOOKUP(A70,Nominal_Code_LT[],2,FALSE),0)","v":0},null,"N"]
[2152,"Deontas DEIS faighte roimh ré",null,null,null,{"$f":"-IFERROR(VLOOKUP(A71,Nominal_Code_LT3[],2,FALSE),0)","v":0},null,{"$f":"-IFERROR(VLOOKUP(A71,Nominal_Code_LT[],2,FALSE),0)","v":0},null,"N"]
[2160,"Deontas Leabhar gan Chaitheamh",null,null,null,{"$f":"-IFERROR(VLOOKUP(A72,Nominal_Code_LT3[],2,FALSE),0)","v":0},null,{"$f":"-IFERROR(VLOOKUP(A72,Nominal_Code_LT[],2,FALSE),0)","v":0},null,"N"]
[2161,"Deontas Caipitil gan Chaitheamh faoi chomhair Leabhair don Leabharlann Scoile",null,null,null,{"$f":"-IFERROR(VLOOKUP(A73,Nominal_Code_LT3[],2,FALSE),0)","v":0},null,{"$f":"-IFERROR(VLOOKUP(A73,Nominal_Code_LT[],2,FALSE),0)","v":0},null,"N"]
[2165,"Deontas TFC gan Chaitheamh",null,null,null,{"$f":"-IFERROR(VLOOKUP(A74,Nominal_Code_LT3[],2,FALSE),0)","v":0},null,{"$f":"-IFERROR(VLOOKUP(A74,Nominal_Code_LT[],2,FALSE),0)","v":0},null,"N"]
[2166,"Deontas i gcomhair Mionoibreacha gan Chaitheamh ",null,null,null,{"$f":"-IFERROR(VLOOKUP(A75,Nominal_Code_LT3[],2,FALSE),0)","v":0},null,{"$f":"-IFERROR(VLOOKUP(A75,Nominal_Code_LT[],2,FALSE),0)","v":0},null,"N"]
[2167,"Deontas JCSP gan Chaitheamh ",null,null,null,{"$f":"-IFERROR(VLOOKUP(A76,Nominal_Code_LT3[],2,FALSE),0)","v":0},null,{"$f":"-IFERROR(VLOOKUP(A76,Nominal_Code_LT[],2,FALSE),0)","v":0},null,"N"]
[2168,"Deontas Buiséid Pá Neamhtheagaisc gan Chaitheamh ",null,null,null,{"$f":"-IFERROR(VLOOKUP(A77,Nominal_Code_LT3[],2,FALSE),0)","v":0},null,{"$f":"-IFERROR(VLOOKUP(A77,Nominal_Code_LT[],2,FALSE),0)","v":0},null,"N"]
[2169,"Deontas i gcomhair Mionoibreacha COVID gan Chaitheamh ",null,null,null,{"$f":"-IFERROR(VLOOKUP(A78,Nominal_Code_LT3[],2,FALSE),0)","v":0},null,{"$f":"-IFERROR(VLOOKUP(A78,Nominal_Code_LT[],2,FALSE),0)","v":0},null,"N"]
[2170,"Deontas Maoirseachta agus Ionadaíochta gan Chaitheamh",null,null,null,{"$f":"-IFERROR(VLOOKUP(A79,Nominal_Code_LT3[],2,FALSE),0)","v":0},null,{"$f":"-IFERROR(VLOOKUP(A79,Nominal_Code_LT[],2,FALSE),0)","v":0},null,"N"]
[2171,"Deontais Eile Imfhálaithe gan Chaitheamh",null,null,null,{"$f":"-IFERROR(VLOOKUP(A80,Nominal_Code_LT3[],2,FALSE),0)","v":0},null,{"$f":"-IFERROR(VLOOKUP(A80,Nominal_Code_LT[],2,FALSE),0)","v":0},null,"N"]
[2172,"Ioncam Eile Imfhálaithe gan Chaitheamh",null,null,null,{"$f":"-IFERROR(VLOOKUP(A81,Nominal_Code_LT3[],2,FALSE),0)","v":0},null,{"$f":"-IFERROR(VLOOKUP(A81,Nominal_Code_LT[],2,FALSE),0)","v":0},null,"N"]
[2179,"Deontas Deighilte Digití gan Chaitheamh",null,null,null,{"$f":"-IFERROR(VLOOKUP(A82,Nominal_Code_LT3[],2,FALSE),0)","v":0},null,{"$f":"-IFERROR(VLOOKUP(A82,Nominal_Code_LT[],2,FALSE),0)","v":0},null,"N"]
[2180,"Ciste Barr Feabhais Scoileanna gan Chaitheamh",null,null,null,{"$f":"-IFERROR(VLOOKUP(A83,Nominal_Code_LT3[],2,FALSE),0)","v":0},null,{"$f":"-IFERROR(VLOOKUP(A83,Nominal_Code_LT[],2,FALSE),0)","v":0},null,"N"]
[2181,"Deontas Chúntóir COVID gan Chaitheamh",null,null,null,{"$f":"-IFERROR(VLOOKUP(A84,Nominal_Code_LT3[],2,FALSE),0)","v":0},null,{"$f":"-IFERROR(VLOOKUP(A84,Nominal_Code_LT[],2,FALSE),0)","v":0},null,"N"]
[2182,"Deontas Caipitíochta COVID le haghaidh PPE gan Chaitheamh",null,null,null,{"$f":"-IFERROR(VLOOKUP(A85,Nominal_Code_LT3[],2,FALSE),0)","v":0},null,{"$f":"-IFERROR(VLOOKUP(A85,Nominal_Code_LT[],2,FALSE),0)","v":0},null,"N"]
[2183,"Deontas Mhaoirseacht Fheabhsaithe COVID gan Chaitheamh",null,null,null,{"$f":"-IFERROR(VLOOKUP(A86,Nominal_Code_LT3[],2,FALSE),0)","v":0},null,{"$f":"-IFERROR(VLOOKUP(A86,Nominal_Code_LT[],2,FALSE),0)","v":0},null,"N"]
[2184,"Deontas Caipitíochta COVID um Ghlantachán Breise gan Chaitheamh",null,null,null,{"$f":"-IFERROR(VLOOKUP(A87,Nominal_Code_LT3[],2,FALSE),0)","v":0},null,{"$f":"-IFERROR(VLOOKUP(A87,Nominal_Code_LT[],2,FALSE),0)","v":0},null,"N"]
[2185,"Uaireanta Athsholáthair COVID nár Caitheadh",null,null,null,{"$f":"-IFERROR(VLOOKUP(A88,Nominal_Code_LT3[],2,FALSE),0)","v":0},null,{"$f":"-IFERROR(VLOOKUP(A88,Nominal_Code_LT[],2,FALSE),0)","v":0},null,"N"]
[2200,"Cuntas Rialaithe Pá Ghlain",null,null,null,{"$f":"-IFERROR(VLOOKUP(A89,Nominal_Code_LT3[],2,FALSE),0)","v":0},null,{"$f":"-IFERROR(VLOOKUP(A89,Nominal_Code_LT[],2,FALSE),0)","v":0},null,"N"]
[2210,"Cuntas Rialaithe Táillí Ceardchumainn",null,null,null,{"$f":"-IFERROR(VLOOKUP(A90,Nominal_Code_LT3[],2,FALSE),0)","v":0},null,{"$f":"-IFERROR(VLOOKUP(A90,Nominal_Code_LT[],2,FALSE),0)","v":0},null,"N"]
[2220,"Cuntas Rialaithe do Scéim Pinsin Aonair na Seirbhíse Poiblí",null,null,null,{"$f":"-IFERROR(VLOOKUP(A91,Nominal_Code_LT3[],2,FALSE),0)","v":0},null,{"$f":"-IFERROR(VLOOKUP(A91,Nominal_Code_LT[],2,FALSE),0)","v":0},null,"N"]
[2230,"Cuntas Rialaithe Ranníocaíochtaí Breise Aoisliúntais",null,null,null,{"$f":"-IFERROR(VLOOKUP(A92,Nominal_Code_LT3[],2,FALSE),0)","v":0},null,{"$f":"-IFERROR(VLOOKUP(A92,Nominal_Code_LT[],2,FALSE),0)","v":0},null,"N"]
[2240,"Cuntas Rialaithe Cuntas Coigiltis Scoir Pearsanta",null,null,null,{"$f":"-IFERROR(VLOOKUP(A93,Nominal_Code_LT3[],2,FALSE),0)","v":0},null,{"$f":"-IFERROR(VLOOKUP(A93,Nominal_Code_LT[],2,FALSE),0)","v":0},null,"N"]
[2250,"Cuntas Rialaithe ÍMAT/ÁSPC/MSU/CMÁ",null,null,null,{"$f":"-IFERROR(VLOOKUP(A94,Nominal_Code_LT3[],2,FALSE),0)","v":0},null,{"$f":"-IFERROR(VLOOKUP(A94,Nominal_Code_LT[],2,FALSE),0)","v":0},null,"N"]
[2260,"Cuntas Rialaithe Ais-CBL",null,null,null,{"$f":"-IFERROR(VLOOKUP(A95,Nominal_Code_LT3[],2,FALSE),0)","v":0},null,{"$f":"-IFERROR(VLOOKUP(A95,Nominal_Code_LT[],2,FALSE),0)","v":0},null,"N"]
[2270,"Cuntas Rialaithe CCI",null,null,null,{"$f":"-IFERROR(VLOOKUP(A96,Nominal_Code_LT3[],2,FALSE),0)","v":0},null,{"$f":"-IFERROR(VLOOKUP(A96,Nominal_Code_LT[],2,FALSE),0)","v":0},null,"N"]
[2310,"Iasachtaí Bainc",null,null,null,{"$f":"-IFERROR(VLOOKUP(A97,Nominal_Code_LT3[],2,FALSE),0)","v":0},null,{"$f":"-IFERROR(VLOOKUP(A97,Nominal_Code_LT[],2,FALSE),0)","v":0},null,"N"]
[2320,"Iasacht Eile",null,null,null,{"$f":"-IFERROR(VLOOKUP(A98,Nominal_Code_LT3[],2,FALSE),0)","v":0},null,{"$f":"-IFERROR(VLOOKUP(A98,Nominal_Code_LT[],2,FALSE),0)","v":0},null,"N"]
[2330,"Léasú",null,null,null,{"$f":"-IFERROR(VLOOKUP(A99,Nominal_Code_LT3[],2,FALSE),0)","v":0},null,{"$f":"-IFERROR(VLOOKUP(A99,Nominal_Code_LT[],2,FALSE),0)","v":0},null,"N"]
[2440,"Fabhruithe",null,null,null,{"$f":"-IFERROR(VLOOKUP(A100,Nominal_Code_LT3[],2,FALSE),0)","v":0},null,{"$f":"-IFERROR(VLOOKUP(A100,Nominal_Code_LT[],2,FALSE),0)","v":0},null,"N"]
[2600,"Iasacht Fhadtéarmach ",null,null,null,{"$f":"-IFERROR(VLOOKUP(A101,Nominal_Code_LT3[],2,FALSE),0)","v":0},null,{"$f":"-IFERROR(VLOOKUP(A101,Nominal_Code_LT[],2,FALSE),0)","v":0},null,"N"]
[null,null,null,null,null,{"$f":"SUM(F6:F45,F50:F64)-SUM(F67:F101)","v":0},null,{"$f":"SUM(H6:H45,H50:H64)-SUM(H67:M101)","v":0}]
[null,"Caipiteal & Cúlchistí"]
[2700,"Barrachas Coinnithe",null,null,null,{"$f":"SUM('Income & Exp Account'!F14)","v":0},null,{"$f":"SUM('Income & Exp Account'!H14)","v":0},null,{"$f":"IF(AND(F104=0,H104=0),\"N\",\"Y\")","v":"N"}]
[2710,"Barrachas Tugtha ar Aghaidh",null,null,null,{"$f":"-IFERROR(VLOOKUP(A105,Nominal_Code_LT3[],2,FALSE),0)","v":0},null,{"$f":"-IFERROR(VLOOKUP(A105,Nominal_Code_LT[],2,FALSE),0)","v":0},null,{"$f":"IF(AND(F105=0,H105=0),\"N\",\"Y\")","v":"N"}]
[3900,"Ioncam Deontais Foirgníochta Caipitil RO                                         ",null,null,null,{"$f":"-IFERROR(VLOOKUP(A106,Nominal_Code_LT3[],2,FALSE),0)","v":0},null,{"$f":"-IFERROR(VLOOKUP(A106,Nominal_Code_LT[],2,FALSE),0)","v":0},null,"N"]
[3901,"Ioncam ó Thiomsú Airgid do Thionscadail Chaipitiúla                                        ",null,null,null,{"$f":"-IFERROR(VLOOKUP(A107,Nominal_Code_LT3[],2,FALSE),0)","v":0},null,{"$f":"-IFERROR(VLOOKUP(A107,Nominal_Code_LT[],2,FALSE),0)","v":0},null,"N"]
[3902,"Ioncam ó Ranníocaíochtaí Tuismitheoirí le Tionscadail Chaipitiúla",null,null,null,{"$f":"-IFERROR(VLOOKUP(A108,Nominal_Code_LT3[],2,FALSE),0)","v":0},null,{"$f":"-IFERROR(VLOOKUP(A108,Nominal_Code_LT[],2,FALSE),0)","v":0},null,"N"]
[3903,"Ioncam ó Ranníocaíochtaí Pátrún/Iontaobhaí le Tionscadal Caipitil    ",null,null,null,{"$f":"-IFERROR(VLOOKUP(A109,Nominal_Code_LT3[],2,FALSE),0)","v":0},null,{"$f":"-IFERROR(VLOOKUP(A109,Nominal_Code_LT[],2,FALSE),0)","v":0},null,"N"]
[3904,"Ioncam ó Tionscadail Chaipitil Eile Stáit                                           ",null,null,null,{"$f":"-IFERROR(VLOOKUP(A110,Nominal_Code_LT3[],2,FALSE),0)","v":0},null,{"$f":"-IFERROR(VLOOKUP(A110,Nominal_Code_LT[],2,FALSE),0)","v":0},null,"N"]
[3905,"Ioncam ó Dheontas Caipitil le haghaidh Mion-Oibreacha Covid",null,null,null,{"$f":"-IFERROR(VLOOKUP(A111,Nominal_Code_LT3[],2,FALSE),0)","v":0},null,{"$f":"-IFERROR(VLOOKUP(A111,Nominal_Code_LT[],2,FALSE),0)","v":0},null,"N"]
[3906,"Ioncam ó Amúchadh Carntha Tógála Caipitiúla",null,null,null,{"$f":"-IFERROR(VLOOKUP(A112,Nominal_Code_LT3[],2,FALSE),0)","v":0},null,{"$f":"-IFERROR(VLOOKUP(A112,Nominal_Code_LT[],2,FALSE),0)","v":0},null,"N"]
[3907,"Ioncam ó Shíntiúis Caipitiúla",null,null,null,{"$f":"-IFERROR(VLOOKUP(A113,Nominal_Code_LT3[],2,FALSE),0)","v":0},null,{"$f":"-IFERROR(VLOOKUP(A113,Nominal_Code_LT[],2,FALSE),0)","v":0},null,"N"]
[3920,"Ioncam Deontais Daingneáin, Feistis & Trealamh RO                                     ",null,null,null,{"$f":"-IFERROR(VLOOKUP(A114,Nominal_Code_LT3[],2,FALSE),0)","v":0},null,{"$f":"-IFERROR(VLOOKUP(A114,Nominal_Code_LT[],2,FALSE),0)","v":0},null,"N"]
[3921,"Ioncam Caipitil ó Deontais TFC RO                                                                   ",null,null,null,{"$f":"-IFERROR(VLOOKUP(A115,Nominal_Code_LT3[],2,FALSE),0)","v":0},null,{"$f":"-IFERROR(VLOOKUP(A115,Nominal_Code_LT[],2,FALSE),0)","v":0},null,"N"]
[3925,"Ioncam ó Amúchadh Carntha ar Threalamh Caipitiúil",null,null,null,{"$f":"-IFERROR(VLOOKUP(A116,Nominal_Code_LT3[],2,FALSE),0)","v":0},null,{"$f":"-IFERROR(VLOOKUP(A116,Nominal_Code_LT[],2,FALSE),0)","v":0},null,"N"]
[3926,"Ioncam ó Amúchadh Carntha ón Deontas TFC Caipitiúil",null,null,null,{"$f":"-IFERROR(VLOOKUP(A117,Nominal_Code_LT3[],2,FALSE),0)","v":0},null,{"$f":"-IFERROR(VLOOKUP(A117,Nominal_Code_LT[],2,FALSE),0)","v":0},null,"N"]
[3940,"Costas Deontas Caipitiúil Tógála RO                                         ",null,null,null,{"$f":"-IFERROR(VLOOKUP(A118,Nominal_Code_LT3[],2,FALSE),0)","v":0},null,{"$f":"-IFERROR(VLOOKUP(A118,Nominal_Code_LT[],2,FALSE),0)","v":0},null,"N"]
[3941,"Mionoibreacha COVID: Costas Tógála",null,null,null,{"$f":"-IFERROR(VLOOKUP(A119,Nominal_Code_LT3[],2,FALSE),0)","v":0},null,{"$f":"-IFERROR(VLOOKUP(A119,Nominal_Code_LT[],2,FALSE),0)","v":0},null,"N"]
[3960,"Costas Tiomsaithe Airgid don Chlár Caipitiúil Tógála                                 ",null,null,null,{"$f":"-IFERROR(VLOOKUP(A120,Nominal_Code_LT3[],2,FALSE),0)","v":0},null,{"$f":"-IFERROR(VLOOKUP(A120,Nominal_Code_LT[],2,FALSE),0)","v":0},null,"N"]
[3970,"Costas Ranníocaíochtaí Tuismitheoirí le Tógáil Chaipitiúil            ",null,null,null,{"$f":"-IFERROR(VLOOKUP(A121,Nominal_Code_LT3[],2,FALSE),0)","v":0},null,{"$f":"-IFERROR(VLOOKUP(A121,Nominal_Code_LT[],2,FALSE),0)","v":0},null,"N"]
[3990,"Costas Ranníocaíochtaí Pátrún/Iontaobhaithe le Tógáil Caipitiúil  ",null,null,null,{"$f":"-IFERROR(VLOOKUP(A122,Nominal_Code_LT3[],2,FALSE),0)","v":0},null,{"$f":"-IFERROR(VLOOKUP(A122,Nominal_Code_LT[],2,FALSE),0)","v":0},null,"N"]
[3991,"Costas Foirgníochta Caipitil Eile Stáit                             ",null,null,null,{"$f":"-IFERROR(VLOOKUP(A123,Nominal_Code_LT3[],2,FALSE),0)","v":0},null,{"$f":"-IFERROR(VLOOKUP(A123,Nominal_Code_LT[],2,FALSE),0)","v":0},null,"N"]
[3992,"Síntiúis Caipitiúla i leith Costais Foirgníochta",null,null,null,{"$f":"-IFERROR(VLOOKUP(A124,Nominal_Code_LT3[],2,FALSE),0)","v":0},null,{"$f":"-IFERROR(VLOOKUP(A124,Nominal_Code_LT[],2,FALSE),0)","v":0},null,"N"]
[3995,"Cuntas Ciste Tógála",null,null,null,{"$f":"-IFERROR(VLOOKUP(A125,Nominal_Code_LT3[],2,FALSE),0)","v":0},null,{"$f":"-IFERROR(VLOOKUP(A125,Nominal_Code_LT[],2,FALSE),0)","v":0},null,"N"]
[null,null,null,null,null,{"$f":"SUM(F104:F125)","v":0},null,{"$f":"SUM(H104:H125)","v":0}]

{"sheet":"Financial Report Parents (1)","index":17,"n_rows":37,"n_cols":8,"rows_kept":37,"cut":false,"hidden":false,"merged":[[3,1,3,5],[33,3,33,5],[34,3,34,5],[18,1,18,2]]}
[null,{"$f":"'General Information'!E4","v":"Scoil Shamplach"},null,null,null,null,"Instructions"]
[null,"Tuarascáil Airgeadais do Thuismitheoirí"]
[]
[null,"Ráiteas Airgeadais Achoimre don Scoilbhliain",null,null,null,null,{"$f":"'Expenditure Account (1)'!F4","v":"2021/2022"}]
[]
[null,"Ioncam",null,null,null,null,null,"€"]
[null,"Maoiniú na Roinne Oideachais",null,null,null,null,null,{"$f":"SUM(PR_DES_Inc)","v":0}]
[null,"Maoiniú stáit eile",null,null,null,null,null,{"$f":"SUM(PR_Oth_State_Fund)","v":0}]
[]
[null,"Ioncam Scoile ",null,null,"Ranníocaí Deonacha Tuismitheora",null,null,{"$f":"SUM('Income Account'!F89)","v":0}]
[null,null,null,null,"Maoin Scoile ar Cíos",null,null,{"$f":"SUM('Income Account'!F58+'Income Account'!F59)","v":0}]
[null,null,null,null,"Tiomsú airgid",null,null,{"$f":"SUM(PR_Fundraising)","v":0}]
[null,null,null,null,"Cumann na dTuismitheoirí",null,null,{"$f":"SUM('Income Account'!F90)","v":0}]
[null,null,null,null,"Ioncam Eile",null,null,{"$f":"SUM(PR_Oth_Inc)","v":0}]
[]
[null,"Ioncam Iomlan",null,null,null,null,null,{"$f":"SUM(H7:H14)","v":0}]
[]
[null,"Caiteachas"]
[null,"Caiteachas Oideachais",null,null,"Ábhair Ranga agus Áiseanna Teagaisc\nGach Caiteachas Eile a Bhaineann le hOideachas",null,null,{"$f":"SUM(PR_Class_Mat_Teach_Aids)","v":0}]
[null,null,null,null,"Gach Caiteachas Eile a Bhaineann le hOideachas",null,null,{"$f":"SUM(PR_All_Oth_Ed_Exp)","v":0}]
[]
[null,"Cothabháil Scoile",null,null,"Solas, Teas agus Cumhacht",null,null,{"$f":"SUM('Expenditure Account (2)'!F22:F23)","v":0}]
[null,null,null,null,"Árachas",null,null,{"$f":"'Expenditure Account (2)'!F21","v":0}]
[null,null,null,null,"Glanadh agus diúíscairt dramhaíola",null,null,{"$f":"SUM('Expenditure Account (2)'!F13:F15)","v":0}]
[null,null,null,null,"Cíos, Rátaí agus Muirir Áitiúla",null,null,{"$f":"SUM('Expenditure Account (2)'!F24:F28)","v":0}]
[null,null,null,null,"Gach Cúram agus Cothabháil Eile",null,null,{"$f":"SUM(PR_All_Oth_Care_Main)","v":0}]
[]
[null,"Riarachán Scoile",null,null,"Clódóireacht, Postas agus Páipéarachas",null,null,{"$f":"SUM('Expenditure Account (2)'!F44+'Expenditure Account (2)'!F46+'Expenditure Account (2)'!F47)","v":0}]
[null,null,null,null,"Córais Riaracháin In-Scoil",null,null,{"$f":"SUM('Expenditure Account (2)'!F56:F57)","v":0}]
[null,null,null,null,"Teileafón/SMS",null,null,{"$f":"'Expenditure Account (2)'!F45","v":0}]
[null,null,null,null,"Gach Costais Riaracháin eile",null,null,{"$f":"SUM(PR_All_oth_Admin_Exp)","v":0}]
[]
[null,"Airgeadais",null,null,"Costaisí Bainc, Ús, Léasú",null,null,{"$f":"SUM('Expenditure Account (2)'!F67:F73)","v":0}]
[]
[null,"Caiteachas Iomlán",null,null,null,null,null,{"$f":"SUM(H19:H34)","v":0}]
[]
[null,"Barrachas (Easnamh) don bhliain",null,null,null,null,null,{"$f":"SUM('Financial Report Parents (1)'!H16-'Financial Report Parents (1)'!H35)","v":0}]

{"sheet":"Financial Report Parents (2)","index":18,"n_rows":22,"n_cols":8,"rows_kept":22,"cut":false,"hidden":false,"merged":[[5,1,5,5],[31,3,31,5],[32,3,32,5],[15,0,21,0],[21,1,21,4]]}
[null,{"$f":"'General Information'!E4","v":"Scoil Shamplach"},null,null,null,null,"Instructions"]
[]
[null,"Tuarascáil Airgeadais do Thuismitheoirí"]
[]
[]
[null,"Ráiteas Airgeadais Achoimre don Scoilbhliain",null,null,null,null,{"$f":"'Expenditure Account (1)'!F4","v":"2021/2022"}]
[]
[]
[null,"Tionscadail Chaipitiúla Tógála Leanúnacha"]
[]
[]
[null,"Ioncam",null,null,"Ioncam Deontais Chaipitil na Roinne",null,null,{"$f":"'Detailed Balance Sheet'!F106","v":0}]
[null,null,null,null,"Ioncam Caipitil Eile",null,null,{"$f":"SUM('Detailed Balance Sheet'!F107+'Detailed Balance Sheet'!F108+'Detailed Balance Sheet'!F109+'Detailed Balance Sheet'!F113)","v":0}]
[null,null,null,null,"Ioncam Caipitil Stáit Eile",null,null,{"$f":"SUM('Detailed Balance Sheet'!F110)","v":0}]
[null,null,null,null,null,null,null,{"$f":"SUM(H12:H14)","v":0}]
[null,"Lúide Caiteachas ",null,null,"Caiteachas Deontais Chaipitil na Roinne",null,null,{"$f":"-SUM('Detailed Balance Sheet'!F118)","v":0}]
[null,null,null,null,"Caiteachas Caipitil Eile",null,null,{"$f":"-SUM('Detailed Balance Sheet'!F120+'Detailed Balance Sheet'!F121+'Detailed Balance Sheet'!F122+'Detailed Balance Sheet'!F124)","v":0}]
[null,null,null,null,"Caiteachas Caipitil Eile Stáit",null,null,{"$f":"-SUM('Detailed Balance Sheet'!F123)","v":0}]
[null,null,null,null,null,null,null,{"$f":"SUM(H16:H18)","v":0}]
[]
[]
[null,"Barrachas (Easnamh) don bhliain",null,null,null,null,null,{"$f":"SUM(H15-H19)","v":0}]

{"sheet":"Cash Flow Statement","index":19,"n_rows":35,"n_cols":7,"rows_kept":35,"cut":false,"hidden":false,"merged":[[33,1,33,2],[34,1,34,2],[3,5,6,5],[30,1,30,3],[30,5,30,7],[31,1,31,3],[31,5,31,7]]}
[null,{"$f":"'General Information'!E4","v":"Scoil Shamplach"},null,null,null,null,"Instructions"]
[]
[null,"Ráiteas faoi Shreabhadh Airgid don bhliain dar críoch (Roghnach)",null,null,"Lúnasa 31, ",{"$f":"'Accountants'' Report'!H25","v":"2022"}]
[null,null,null,null,"20XX",null,"    20XX"]
[null,null,"Nóta",null,"€",null,"€"]
[]
[null,"Sreabhadh airgid ó ghníomhaíochtaí oibriúcháin"]
[null,"(Easnamh) don bhliain"]
[null,"Coigeartuithe:"]
[null,"Dímheas"]
[null,"Amúchadh na nDeontas Caipitil"]
[null,"Laghdú / (méadú) ar fhéichiúnaithe"]
[null,"\n(Laghdú) / Méadú ar Chreidiúnaithe"]
[null,"Glan-insreabhadh airgid ó ghníomhaíochtaí scoile"]
[null,"Sreabhadh airgid ó ghníomhaíochtaí infheistíochta"]
[null,"Caiteachas caipitil"]
[null,"Ranníocaíochtaí Cistí Amach Anseo"]
[null,"Glan-insreabhadh airgid ó ghníomhaíochtaí infheistíochta"]
[]
[]
[]
[null,"\nMéadú ar airgead tirim"]
[null,"Airgead tirim agus coibhéisí airgid an 1 Meán Fómhair 20XX"]
[null,"Airgead tirim agus coibhéisí airgid ag 31 Lúnasa 20XX"]
[]
[]
[]
[]
[null,"Thar ceann an bhoird;"]
[]
[]
[null,"Cathaoirleach",null,null,null,"Ball den Bhord"]
[]
[]
[null,"Dáta   "]

{"sheet":"Import","index":20,"n_rows":344,"n_cols":3,"rows_kept":344,"cut":false,"hidden":false,"merged":[]}
["Roll No","12345G","Instructions"]
["Nominal Code"]
["Nominal Code","Final Accounts ","Description"]
[3010,0,"Buiséad Caipitíochta/Neamhphá"]
[3020,0,"Deontas DEIS"]
[3030,0,"Buiséad Pá Neamhtheagaisc"]
[3050,0,"Deontas um Sheirbhísí Tacaíochta/Tánaisteach do Scoileanna"]
[3100,0,"Deontas Rúnaíochta"]
[3130,0,"Deontas d’Fheighlithe"]
[3140,0,"Deontas do Threalamh Oideachais Speisialta"]
[3150,0,"Ioncam ó Dheontas na Leabhar"]
[3155,0,"Deontas Caipitil faoi chomhair Leabhair don Leabharlann Scoile"]
[3160,0,"Deontas na Scéime Leabhar ar Cíos"]
[3170,0,"Deontas na nÁbhar Speisialta"]
[3190,0,"Deontas Chlár Scoile an Teastais Shóisearaigh"]
[3200,0,"Deontas Idirbhliana"]
[3210,0,"Deontas na hArdteistiméireachta Feidhmí"]
[3220,0,"Deontas Daltaí ar Taistealaithe iad"]
[3225,0,"Amúchadh Deontas Trealamh RO"]
[3226,0,"Amúchadh Deontas TFC RO"]
[3227,0,"Amúchadh Deontas Eile RO"]
[3230,0,"Deontas TFC Neamhchaipitiúil"]
[3240,0,"Deontas Maoirseachta agus Ionadaíochta"]
[3245,0,"Deontas Fisice/Ceimice"]
[3255,0,"Ioncam Scrúduithe Stáit"]
[3260,0,"Ioncam ón gCiste Barr Feabhais Scoileanna"]
[3270,0,"Deontas Lárionaid Spóirt"]
[3275,0,"Deontas Mionoibreacha Neamhchaipitiúla"]
[3276,0,"Ioncam ón Deontas Cóiríochta Sealadaí"]
[3277,0,"Deontas i leith Mionoibreacha COVID           "]
[3280,0,"Deontas Chúntóir COVID"]
[3281,0,"Deontas Caipitíochta COVID le haghaidh PPE"]
[3282,0,"Deontas Mhaoirseacht Fheabhsaithe COVID"]
[3283,0,"Deontas Caipitíochta COVID um Ghlantachán Breise"]
[3284,0,"Maoiniú COVID le haghaidh Uaireanta Feighlí Ionaid"]
[3285,0,"Maoiniú COVID le haghaidh Uaireanta Rúnaí Ionaid"]
[3286,0,"Maoiniú COVID le haghaidh Uaireanta Glantóra Ionaid"]
[3287,0,"Maoiniú COVID le haghaidh Uaireanta Tionlacaí Ionaid Bus"]
[3290,0,"Ioncam Deontais Neamhchaipitil Eile RO                           "]
[3292,0,"Deontas Trialacha Caighdeánaithe"]
[3293,0,"Deontas Soláthair Samhraidh                         "]
[3294,0,"Deontas le haghaidh Tionlacaithe Bus"]
[3295,0,"Ioncam ón Roinn Leanaí agus Gnóthaí Óige"]
[3296,0,"Deontas le haghaidh Béilí Scoile ó RGFCS"]
[3297,0,"Ioncam Erasmus"]
[3298,0,"Maoiniú ó FSS"]
[3299,0,"Maoiniú Stáit Eile"]
[3300,0,"Táillí Oideachais (Scoileanna Táille)"]
[3310,0,"Ioncam Idirbhliana"]
[3330,0,"Ioncam ó Scéim na Leabhar ar Cíos"]
[3335,0,"Ioncam ó Leabhair Seomra Ranga"]
[3350,0,"Ioncam Cíosa ó Áiseanna a Ligean ar Fhruiliú"]
[3360,0,"Ioncam le haghaidh Lárionaid Spóirt"]
[3370,0,"Ioncam ó Thaisceadáin"]
[3375,0,"Ioncam ó Dhialanna agus Bliainirisí"]
[3390,0,"Táillí riaracháin scoile"]
[3395,0,"Ioncam le haghaidh Ábhair Phraiticiúla"]
[3410,0,"Ioncam Oideachais Aosaigh"]
[3420,0,"Ioncam ó Cheaintíní"]
[3430,0,"Ioncam ó Shiopaí Sólaistí"]
[3440,0,"Ioncam ó Éidí Scoile"]
[3450,0,"Ioncam Reiligiúin/Éitis"]
[3460,0,"Ioncam le haghaidh Treoir Ghairme"]
[3490,0,"Ioncam Club/Staidéir Iarscoile"]
[3495,0,"Ioncam ó Bhréagscrúduithe"]
[3500,0,"Ioncam ó Chluichí"]
[3510,0,"Ioncam ón Bhusanna"]
[3520,0,"Ioncam ó Cheoldrámaí/Dhrámaí Scoile"]
[3530,0,"Ioncam ó Thurais Scoile"]
[3531,0,"Ioncam ó Snámh Scoile"]
[3535,0,"Ioncam ó Árachas Daltaí"]
[3540,0,"Ioncam Réamhscoile"]
[3545,0,"Ioncam ó Champaí Samhraidh"]
[3550,0,"Ioncam In-Aisíoctha"]
[3570,0,"Ioncam Eile arna Ghiniúint ag an Scoil"]
[3572,0,"Ioncam Ealaíon agus Ceardaíochta Scoile"]
[3573,0,"Ioncam Damhsa Scoile                                                                "]
[3574,0,"Tiomsú Airgid Srianta Scoile (Neamhchaipitiúil)"]
[3575,0,"Tiomsú Airgid Neamhshrianta Scoile (Neamhchaipitiúil)"]
[3580,0,"Lascainí Tugtha"]
[3650,0,"Ranníocaíochtaí Saorálacha"]
[3700,0,"Ioncam ó Chumann na dTuismitheoirí"]
[3770,0,"Ioncam ó Éilimh Árachais"]
[3800,0,"Ús Bainc Faighte"]
[3840,0,"Amúchadh Maoinithe nach bhFuarthas ón RO                                             "]
[3850,0,"Ioncam Eile"]
[3851,0,"Ioncam Ainmnithe (Neamhchaipitiúil)"]
[3852,0,"Tiomsú Airgid Srianta Seachtrach  (Neamhchaipitiúil)"]
[3853,0,"Tiomsú Airgid Neamhshrianta Seachtrach (Neamhchaipitiúil)"]
[4110,0,"Costas Múinteoirí Ionaid"]
[4111,0,"Costas Múinteoirí a Íoctar go Príobháideach"]
[4112,0,"Costais Tuarastail Séiplínigh"]
[4150,0,"Costas Tuarastal Maoirseachta agus Ionadaithe"]
[4155,0,"Costais Tuarastail Scrúdaithe Stáit"]
[4170,0,"Costas Tuarastal Oideachais Aosaigh"]
[4180,0,"Costais Tuarastail Cóitseála Spóirt"]
[4181,0,"Costais Thuarastail an Cheaintín"]
[4190,0,"Costas Tuarastal Staidéir/Club Iarscoile"]
[4191,0,"Costais Tuarastail Campaí Samhraidh"]
[4196,0,"Costas Tuarastail Tionlacaithe Bus"]
[4197,0,"Maoiniú COVID le haghaidh Costas maidir le hUaireanta Tionlacaí Ionaid Bus"]
[4198,0,"Costais Tuarastail Oideachais Eile"]
[4199,0,"Costais Tuarastail Maoinithe ag FSS"]
[4310,0,"Costas Áiseanna Teagaisc"]
[4330,0,"Costas maidir le Reiligiún/hÉiteas"]
[4350,0,"Costas Ealaíne"]
[4370,0,"Costas Eacnamaíochta Baile"]
[4390,0,"Costas Eolaíochta"]
[4410,0," Costais Deontais Neamhchaipitil TFC                   "]
[4420,0,"Costais Cothabhála & Tacaíochta Ríomhaireachta"]
[4430,0,"Costas Adhmadóireachta / Foirgníochta"]
[4450,0,"Costas Miotalóireachta/Innealtóireachta"]
[4470,0,"Costas Teicneolaíochta"]
[4490,0,"Costas d’Ábhair Eile"]
[4550,0,"Costas don Ardteistiméireacht Fheidhmeach"]
[4570,0,"Costas do Ghairmchlár na hArdteistiméireachta"]
[4590,0,"Costas na hIdirbhliana"]
[4610,0,"Costas na Tacaíochta Foghlama"]
[4620,0,"Costas Inseirbhíse agus Oiliúna Múinteoirí"]
[4630,0,"Costas Gairmthreorach"]
[4635,0,"Costais i leith Folláine Mac Léinn"]
[4640,0,"Costas Leabharlainne nach Maoinítear Deontas"]
[4641,0,"Costas a bhaineann leis an Deontas Caipitil faoi chomhair Leabhair don Leabharlann Scoile"]
[4650,0,"Costas Corpoideachais"]
[4670,0,"Costas Cluichí (gan taisteal san áireamh)"]
[4671,0,"Costas Taistil go Cluichí"]
[4690,0,"Costas Fruilithe Busanna"]
[4710,0,"Costas Turas Scoile"]
[4720,0,"Costas Ceoldráma/Dráma Scoile"]
[4730,0,"Costas Dheontas na Leabhar"]
[4740,0,"Costas Scéim na Leabhar ar Cíos"]
[4741,0,"Costais Leabhar Seomra Ranga"]
[4750,0,"Costas Bréagscrúduithe"]
[4760,0,"Costas Bliainirisí/Dialanna Scoile"]
[4770,0,"Costas Trófaithe agus Duaiseanna"]
[4780,0,"Costas Éidí"]
[4810,0,"Costas na Teagmhála idir an Baile agus an Scoil"]
[4815,0,"Costas an Chiste Barr Feabhais Scoileanna"]
[4850,0,"Costas Chomhairle na Mac Léinn"]
[4908,0,"Costais Eile Campaí Samhraidh"]
[4909,0,"Costais Sholáthar Eile Samhraidh"]
[4910,0,"Costas Oideachais Eile"]
[4911,0,"Costas Ghníomhaíochtaí na Roinne Leanaí agus Gnóthaí Óige"]
[4912,0,"Costais Bia Béilí Scoileanna na Roinne Coimirce Sóisialaí                       "]
[4913,0,"Costas Erasmus"]
[4914,0,"Costais Deontais Neamhchaipitil Eile RO                       "]
[4915,0,"Costais Eile Ceaintín"]
[4916,0,"Costas Árachais Daltaí"]
[4917,0,"Costas Trialacha Caighdeánaithe"]
[4918,0,"Caiteachas Ainmnithe (Neamhchaipitiúil)"]
[4919,0,"Costas Trealaimh Oideachais Speisialta (Neamhchaipitiúil)"]
[4920,0,"Costas Damhsa na Scoile                                               "]
[4921,0,"Costas Snámha Scoile"]
[4922,0,"Costais a bhaineann le Tiomsú Airgid Srianta Scoile  (Neamhchaipitiúil)"]
[4923,0,"Costais a bhaineann le Tiomsú Airgid Srianta Seachtrach  (Neamhchaipitiúil)"]
[4924,0,"Costais a bhaineann le Tiomsú Airgid Neamhshrianta Seachtrach (Neamhchaipitiúil)"]
[4925,0,"Costais Tiomsaithe Airgid Neamhshrianta Scoile (Neamhchaipitiúil)"]
[4927,0,"Costais Ealaíon agus Ceardaíochta Scoile"]
[4928,0,"Costais Eile FSS"]
[4930,0,"Costas Réamhscoile"]
[5010,0,"Costas Pá Feighlí"]
[5011,0,"Maoiniú COVID le haghaidh Caiteachas maidir le hUaireanta Feighlí Ionaid"]
[5020,0,"Costas Pá Feighlí Ionaid Spóirt"]
[5030,0,"Costas Pinsin na bhFeighlithe"]
[5110,0,"Costas Pá Glantóirí"]
[5111,0,"Maoiniú COVID le haghaidh Caiteachas maidir le hUaireanta Glantóra Ionaid"]
[5112,0,"Costas Pinsin Glantóirí"]
[5150,0,"Costas Glantóirí ar Conradh"]
[5170,0,"Costas Ábhar Glantacháin"]
[5175,0,"Costais Ghlantacháin agus Sláintíochta Eile"]
[5310,0,"Costas Deisiúchán ar Fhoirgnimh agus Thailte"]
[5315,0,"Costas Deontas Mionoibreacha (Neamhchaipitiúil)"]
[5316,0,"Costas Deontais le haghaidh Mionoibreacha COVID    "]
[5350,0,"Costas Deisiúchán ar Throscán, Feistis agus Trealamh"]
[5400,0,"Gnáthchostas Slándála                                                        "]
[5450,0,"Costas Árachais Ghinearálta                                                   "]
[5510,0,"Costas Téimh"]
[5550,0,"Costas Soilse agus Cumhachta"]
[5551,0,"Costas Cíosa Cóiríochta Sealadaí"]
[5552,0,"Costais Cíosa Eile"]
[5610,0,"Costas Bruscair                          "]
[5611,0,"Costais Rátaí Uisce"]
[5700,0,"Costas na Táille Ceadúnais don Phátrún/Iontaobhaí"]
[5710,0,"Costas Deisiúcháin & Cothabháil an Ionaid Spóirt                               "]
[5800,0,"Costas Deisiúcháin agus Cothabhála Eile"]
[5801,0,"Costas Pá faoin Deontas do Chúntóir COVID"]
[5802,0,"Deontas Caipitíochta COVID le haghaidh na gCostas a bhaineann le PPE"]
[5803,0,"Costas Pá ón Deontas Mhaoirseacht Fheabhsaithe COVID"]
[5804,0,"Deontas Caipitíochta COVID le haghaidh Chostas Pá Glantacháin"]
[5805,0,"Deontas Caipitíochta COVID le haghaidh Costas Glantacháin Neamhphá"]
[6010,0,"Costas Pá Oifigeach Cléireachais/Rúnaíochta"]
[6011,0,"Maoiniú COVID le haghaidh Caiteachas maidir le hUaireanta Rúnaí Ionaid"]
[6050,0,"Costas Pinsin Oifigeach Cléireachais/Rúnaíochta"]
[6070,0,"Costais Phá Riaracháin an Ionaid Spóirt"]
[6100,0,"Costas Earcaíochta"]
[6150,0,"Costas Fógraíochta / Caidrimh Phoiblí"]
[6210,0,"Costas Postais"]
[6250,0,"Costas Gutháin / SMS"]
[6300,0,"Costas Clódóireachta agus Páipéarachais"]
[6305,0,"Costas Fótachóipeála"]
[6350,0,"Costas Trealaimh Oifige (Neamhchaipitiúil)"]
[6355,0,"Costas Ríomhairí Oifige nach bhFuarthas Deontas TFC ina leith        "]
[6400,0,"Costas Cuntasaíochta / Iniúchóireachta"]
[6450,0,"Costas Táillí Gairmiúla Eile"]
[6500,0,"Costas Taistil agus Cothaithe"]
[6600,0,"Costais an Phríomhoide"]
[6650,0,"Costas an Bhoird Bainistíocha"]
[6700,0,"Costas na Síntiús Bliantúil"]
[6730,0,"Costas an Chórais Riaracháin Inscoile"]
[6731,0,"Costais Bogearraí Cuntasaíochta / Bogearraí Párolla"]
[6750,0,"Tabhartais do Charthanais"]
[6755,0,"Costas Leighis agus Garchabhrach"]
[6780,0,"Costais an tSeomra Foirne"]
[6800,0,"Costas Fáilteachais"]
[6830,0,"Costas Siopa Milseán"]
[6870,0,"Costais Riaracháin an Ionaid Spóirt"]
[6900,0,"Costais Riaracháin Eile"]
[7300,0,"Costais Léasaithe"]
[7320,0,"Costas Táillí Iasachta"]
[7400,0,"Costas Úis Bainc"]
[7450,0,"Costas Táillí Bainc"]
[7500,0,"Costas Párolla Pinsinéirí"]
[7800,0,"Costais In-Aisíoctha"]
[7850,0,"Lascainí Faighte"]
[8000,0,"Dímheas Bliantúil: Foirgnimh"]
[8020,0,"Dímheas Bliantúil: Daingneáin, Feistis agus Trealamh"]
[8040,0,"Dímheas Bliantúil: Mótarfheithiclí"]
[8060,0,"Dímheas Bliantúil: TFC"]
[8080,0,"Dímheas Bliantúil: Eile"]
[1400,0,"Costas Caipitil Talún agus Foirgnimh - tugtha ar aghaidh"]
[1401,0,"Caipiteal: Breiseanna Talún agus Foirgneamh"]
[1402,0,"Caipiteal: Diúscairtí Talún agus Foirgnimh"]
[1410,0,"Dímheas Carntha: Talún agus Foirgnimh - tugtha ar aghaidh     "]
[1411,0,"Dímheas: Talún agus Foirgnimh An Bhliain Reatha"]
[1412,0,"Dímheas: Talún agus Foirgnimh ar Dhiúscairt"]
[1420,0,"Caipiteal: Costas Daingneáin, Feisteas agus Trealamh - tugtha ar aghaidh"]
[1421,0,"Caipiteal: Daingneáin, Feistis agus Trealamh - Breiseanna"]
[1422,0,"Caipiteal: Daingneáin, Feistis agus Trealamh - Diúscairtí"]
[1425,0,"Caipiteal: Mionoibreacha COVID: Daingneáin, Feistis agus Trealamh - tugtha ar aghaidh "]
[1426,0,"Caipiteal: Daingneáin, Feistis agus Trealamh Mionoibreacha Covid - Breiseanna"]
[1427,0,"Caipiteal: Daingneáin, Feistis agus Trealamh Mionoibreacha Covid - Diúscairtí"]
[1430,0,"Dímheas Carntha: Daingneáin, Feistis agus Trealamh - tugtha ar aghaidh                         "]
[1431,0,"Dímheas: Daingneáin, Feistis agus Trealamh An Bhliain Reatha           "]
[1432,0,"Dímheas: Daingneáin, Feistis agus Trealamh - Diúscairtí            "]
[1435,0,"Dímheas Carntha: Daingneáin, Feistis agus Trealamh Mionoibreacha Covid - tugtha ar aghaidh           "]
[1436,0,"Dímheas: Daingneáin, Feistis agus Trealamh Mionoibreacha Covid An Bhliain Reatha"]
[1437,0,"Dímheas:  Daingneáin, Feistis agus Trealamh Mionoibreacha Covid - Diúscairtí"]
[1440,0,"Caipiteal: Costas Mótarfheithiclí - tugtha ar aghaidh                                                                                        "]
[1441,0,"Caipiteal: Breiseanna Mótarfheithiclí"]
[1442,0,"Caipiteal: Diúscartaí Mótarfheithiclí"]
[1450,0,"Dímheas Carntha: Mótarfheithiclí - tugtha ar aghaidh                                                               "]
[1451,0,"Dímheas: Mótarfheithiclí An Bhliain Reatha"]
[1452,0,"Dímheas: Diúscairt Mhótarfheithiclí"]
[1460,0,"Caipiteal: Costais TFC - tugtha ar aghaidh                                                                                                                 "]
[1461,0,"Caipiteal: Breiseanna TFC"]
[1462,0,"Caipiteal: Diúscairtí TFC"]
[1465,0,"Caipiteal: Costais TFC Mionoibreacha Covid - tugtha ar aghaidh                                                                        "]
[1466,0,"Caipiteal: Breiseanna TFC Mionoibreacha Covid"]
[1467,0,"Caipiteal: Diúscairtí TFC Mionoibreacha Covid"]
[1470,0,"Dímheas Carntha: Costais TFC - tugtha ar aghaidh                                                                         "]
[1471,0,"Dímheas: TFC An Bhliain Reatha"]
[1472,0,"Dímheas: Diúscairt TFC"]
[1475,0,"Dímheas Carntha: TFC Mionoibreacha Covid - tugtha ar aghaidh                                           "]
[1476,0,"Dímheas: TFC Mionoibreacha Covid an Bhliain Reatha"]
[1477,0,"Dímheas: Diúscairtí TFC Mionoibreacha Covid"]
[1480,0,"Caipiteal: Costais Eile - tugtha ar aghaidh                                                                                                           "]
[1481,0,"Caipiteal: Breiseanna Eile"]
[1482,0,"Caipiteal: Diúscairtí Eile"]
[1490,0,"Dímheas Carntha Eile - tugtha ar aghaidh                                                                    "]
[1491,0,"Dímheas Carntha ar Bhliain Reatha Eile"]
[1492,0,"Dímheas Carntha Diúscairtí Eile"]
[1700,0,"Rialú Mórleabhar Díolachán"]
[1705,0,"Féichiúnaithe"]
[1710,0,"Stoc"]
[1720,0,"Réamhíocaíochtaí"]
[1730,0,"Deontais Dlite"]
[1800,0,"Cuntas Reatha 1"]
[1801,0,"Cuntas Reatha 2"]
[1802,0,"Cuntas Reatha 3"]
[1803,0,"Cuntas Bainc Béilí Scoile an RGFCS"]
[1810,0,"Cuntas Taisce"]
[1820,0,"Cuntas Bainc Chumannn/Chomhairle na dTuismitheoirí"]
[1850,0,"Cuntas Cárta Creidmheasa"]
[1870,0,"Cuntas Imréitigh um Réiteach Íocaíochtaí ar Líne"]
[1900,0,"Cuntas Mionairgid"]
[1950,0,"Cuntas Rialaithe Airgid"]
[2100,0,"Cuntas Rialaithe Creidiúnaithe"]
[2105,0,"Ioncam Scoile Faighte Roimh Ré"]
[2150,0,"Deontais Faighte Roimh Ré"]
[2151,0,"Deontas Leabhar faighte roimh ré"]
[2152,0,"Deontas DEIS faighte roimh ré"]
[2160,0,"Deontas Leabhar gan Chaitheamh"]
[2161,0,"Deontas Caipitil gan Chaitheamh faoi chomhair Leabhair don Leabharlann Scoile"]
[2165,0,"Deontas TFC gan Chaitheamh"]
[2166,0,"Deontas i gcomhair Mionoibreacha gan Chaitheamh "]
[2167,0,"Deontas JCSP gan Chaitheamh "]
[2168,0,"Deontas Buiséid Pá Neamhtheagaisc gan Chaitheamh "]
[2169,0,"Deontas i gcomhair Mionoibreacha COVID gan Chaitheamh "]
[2170,0,"Deontas Maoirseachta agus Ionadaíochta gan Chaitheamh"]
[2171,0,"Deontais Eile Imfhálaithe gan Chaitheamh"]
[2172,0,"Ioncam Eile Imfhálaithe gan Chaitheamh"]
[2179,0,"Deontas Deighilte Digití gan Chaitheamh"]
[2180,0,"Ciste Barr Feabhais Scoileanna gan Chaitheamh"]
[2181,0,"Deontas Chúntóir COVID gan Chaitheamh"]
[2182,0,"Deontas Caipitíochta COVID le haghaidh PPE gan Chaitheamh"]
[2183,0,"Deontas Mhaoirseacht Fheabhsaithe COVID gan Chaitheamh"]
[2184,0,"Deontas Caipitíochta COVID um Ghlantachán Breise gan Chaitheamh"]
[2185,0,"Uaireanta Athsholáthair COVID nár Caitheadh"]
[2200,0,"Cuntas Rialaithe Pá Ghlain"]
[2210,0,"Cuntas Rialaithe Táillí Ceardchumainn"]
[2220,0,"Cuntas Rialaithe do Scéim Pinsin Aonair na Seirbhíse Poiblí"]
[2230,0,"Cuntas Rialaithe Ranníocaíochtaí Breise Aoisliúntais"]
[2240,0,"Cuntas Rialaithe Cuntas Coigiltis Scoir Pearsanta"]
[2250,0,"Cuntas Rialaithe ÍMAT/ÁSPC/MSU/CMÁ"]
[2260,0,"Cuntas Rialaithe Ais-CBL"]
[2270,0,"Cuntas Rialaithe CCI"]
[2310,0,"Iasachtaí Bainc"]
[2320,0,"Iasacht Eile"]
[2330,0,"Léasú"]
[2440,0,"Fabhruithe"]
[2600,0,"Iasacht Fhadtéarmach "]
[2700,0,"Barrachas Coinnithe"]
[2710,0,"Barrachas Tugtha ar Aghaidh"]
[3900,0,"Ioncam Deontais Foirgníochta Caipitil RO                                         "]
[3901,0,"Ioncam ó Thiomsú Airgid do Thionscadail Chaipitiúla                                        "]
[3902,0,"Ioncam ó Ranníocaíochtaí Tuismitheoirí le Tionscadail Chaipitiúla"]
[3903,0,"Ioncam ó Ranníocaíochtaí Pátrún/Iontaobhaí le Tionscadal Caipitil    "]
[3904,0,"Ioncam ó Tionscadail Chaipitil Eile Stáit                                           "]
[3905,0,"Ioncam ó Dheontas Caipitil le haghaidh Mion-Oibreacha Covid"]
[3906,0,"Ioncam ó Amúchadh Carntha Tógála Caipitiúla"]
[3907,0,"Ioncam ó Shíntiúis Caipitiúla"]
[3920,0,"Ioncam Deontais Daingneáin, Feistis & Trealamh RO                                     "]
[3921,0,"Ioncam Caipitil ó Deontais TFC RO                                                                   "]
[3925,0,"Ioncam ó Amúchadh Carntha ar Threalamh Caipitiúil"]
[3926,0,"Ioncam ó Amúchadh Carntha ón Deontas TFC Caipitiúil"]
[3940,0,"Costas Deontas Caipitiúil Tógála RO                                         "]
[3941,0,"Mionoibreacha COVID: Costas Tógála"]
[3960,0,"Costas Tiomsaithe Airgid don Chlár Caipitiúil Tógála                                 "]
[3970,0,"Costas Ranníocaíochtaí Tuismitheoirí le Tógáil Chaipitiúil            "]
[3990,0,"Costas Ranníocaíochtaí Pátrún/Iontaobhaithe le Tógáil Caipitiúil  "]
[3991,0,"Costas Foirgníochta Caipitil Eile Stáit                             "]
[3992,0,"Síntiúis Caipitiúla i leith Costais Foirgníochta"]
[3995,0,"Cuntas Ciste Tógála"]
["Check",{"$f":"SUM(Nominal_Code_LT3[[Final Accounts ]])","v":0}]

{"sheet":"Import From Manual","index":21,"n_rows":346,"n_cols":7,"rows_kept":346,"cut":false,"hidden":true,"merged":[]}
["Roll No","12345G",null,null,"Instructions",null,"Do not delete"]
["Nominal Code"]
["Nominal Code","Final Accounts "]
[null,0,null,null,3010,{"$f":"IFERROR(VLOOKUP(E4,Import_From_Manual_LT,2,FALSE),0)","v":0}]
[null,0,null,null,3020,{"$f":"IFERROR(VLOOKUP(E5,Import_From_Manual_LT,2,FALSE),0)","v":0}]
[null,0,null,null,3030,0]
[null,0,null,null,3050,0]
[null,0,null,null,3100,0]
[null,0,null,null,3130,0]
[null,0,null,null,3140,0]
[null,0,null,null,3150,0]
[null,0,null,null,3155,0]
[null,0,null,null,3160,0]
[null,0,null,null,3170,0]
[null,0,null,null,3190,0]
[null,0,null,null,3200,0]
[null,0,null,null,3210,0]
[null,0,null,null,3220,0]
[null,0,null,null,3225,0]
[null,0,null,null,3226,0]
[null,0,null,null,3227,0]
[null,0,null,null,3230,0]
[null,0,null,null,3240,0]
[null,0,null,null,3245,0]
[null,0,null,null,3255,0]
[null,0,null,null,3260,0]
[null,0,null,null,3270,0]
[null,0,null,null,3275,0]
[null,0,null,null,3276,0]
[null,0,null,null,3277,0]
[null,0,null,null,3280,0]
[null,0,null,null,3281,0]
[null,0,null,null,3282,0]
[null,0,null,null,3283,0]
[null,0,null,null,3284,0]
[null,0,null,null,3285,0]
[null,0,null,null,3286,0]
[null,0,null,null,3287,0]
[null,0,null,null,3290,0]
[null,0,null,null,3292,0]
[null,0,null,null,3293,0]
[null,0,null,null,3294,0]
[null,0,null,null,3295,0]
[null,0,null,null,3296,0]
[null,0,null,null,3297,0]
[null,0,null,null,3298,0]
[null,0,null,null,3299,0]
[null,0,null,null,3300,0]
[null,0,null,null,3310,0]
[null,0,null,null,3330,0]
[null,0,null,null,3335,0]
[null,0,null,null,3350,0]
[null,0,null,null,3360,0]
[null,0,null,null,3370,0]
[null,0,null,null,3375,0]
[null,0,null,null,3390,0]
[null,0,null,null,3395,0]
[null,0,null,null,3410,0]
[null,0,null,null,3420,0]
[null,0,null,null,3430,0]
[null,0,null,null,3440,0]
[null,0,null,null,3450,0]
[null,0,null,null,3460,0]
[null,0,null,null,3490,0]
[null,0,null,null,3495,0]
[null,0,null,null,3500,0]
[null,0,null,null,3510,0]
[null,0,null,null,3520,{"$f":"IFERROR(VLOOKUP(E68,Import_From_Manual_LT,2,FALSE),0)","v":0}]
[null,0,null,null,3530,0]
[null,0,null,null,3531,0]
[null,0,null,null,3535,0]
[null,0,null,null,3540,0]
[null,0,null,null,3545,0]
[null,0,null,null,3550,0]
[null,0,null,null,3570,0]
[null,0,null,null,3572,0]
[null,0,null,null,3573,0]
[null,0,null,null,3574,0]
[null,0,null,null,3575,0]
[null,0,null,null,3580,0]
[null,0,null,null,3650,0]
[null,0,null,null,3700,0]
[null,0,null,null,3770,0]
[null,0,null,null,3800,0]
[null,0,null,null,3840,0]
[null,0,null,null,3850,0]
[null,0,null,null,3851,0]
[null,0,null,null,3852,0]
[null,0,null,null,3853,0]
[null,0,null,null,4110,0]
[null,0,null,null,4111,0]
[null,0,null,null,4112,0]
[null,0,null,null,4150,0]
[null,0,null,null,4155,0]
[null,0,null,null,4170,0]
[null,0,null,null,4180,0]
[null,0,null,null,4181,0]
[null,0,null,null,4190,0]
[null,0,null,null,4191,0]
[null,0,null,null,4196,0]
[null,0,null,null,4197,0]
[null,0,null,null,4198,0]
[null,0,null,null,4199,0]
[null,0,null,null,4310,0]
[null,0,null,null,4330,0]
[null,0,null,null,4350,0]
[null,0,null,null,4370,0]
[null,0,null,null,4390,0]
[null,0,null,null,4410,0]
[null,0,null,null,4420,0]
[null,0,null,null,4430,0]
[null,0,null,null,4450,0]
[null,0,null,null,4470,0]
[null,0,null,null,4490,0]
[null,0,null,null,4550,0]
[null,0,null,null,4570,0]
[null,0,null,null,4590,0]
[null,0,null,null,4610,0]
[null,0,null,null,4620,0]
[null,0,null,null,4630,0]
[null,0,null,null,4635,0]
[null,0,null,null,4640,0]
[null,0,null,null,4641,0]
[null,0,null,null,4650,0]
[null,0,null,null,4670,0]
[null,0,null,null,4671,0]
[null,0,null,null,4690,0]
[null,0,null,null,4710,0]
[null,0,null,null,4720,0]
[null,0,null,null,4730,0]
[null,0,null,null,4740,0]
[null,0,null,null,4741,{"$f":"IFERROR(VLOOKUP(E132,Import_From_Manual_LT,2,FALSE),0)","v":0}]
[null,0,null,null,4750,0]
[null,0,null,null,4760,0]
[null,0,null,null,4770,0]
[null,0,null,null,4780,0]
[null,0,null,null,4810,0]
[null,0,null,null,4815,0]
[null,0,null,null,4850,0]
[null,0,null,null,4908,0]
[null,0,null,null,4909,0]
[null,0,null,null,4910,0]
[null,0,null,null,4911,0]
[null,0,null,null,4912,0]
[null,0,null,null,4913,0]
[null,0,null,null,4914,0]
[null,0,null,null,4915,0]
[null,0,null,null,4916,0]
[null,0,null,null,4917,0]
[null,0,null,null,4918,0]
[null,0,null,null,4919,0]
[null,0,null,null,4920,0]
[null,0,null,null,4921,0]
[null,0,null,null,4922,0]
[null,0,null,null,4923,0]
[null,0,null,null,4924,0]
[null,0,null,null,4925,0]
[null,0,null,null,4927,0]
[null,0,null,null,4928,0]
[null,0,null,null,4930,0]
[null,0,null,null,5010,0]
[null,0,null,null,5011,0]
[null,0,null,null,5020,0]
[null,0,null,null,5030,0]
[null,0,null,null,5110,0]
[null,0,null,null,5111,0]
[null,0,null,null,5112,0]
[null,0,null,null,5150,0]
[null,0,null,null,5170,0]
[null,0,null,null,5175,0]
[null,0,null,null,5310,0]
[null,0,null,null,5315,0]
[null,0,null,null,5316,0]
[null,0,null,null,5350,0]
[null,0,null,null,5400,0]
[null,0,null,null,5450,0]
[null,0,null,null,5510,0]
[null,0,null,null,5550,0]
[null,0,null,null,5551,0]
[null,0,null,null,5552,0]
[null,0,null,null,5610,0]
[null,0,null,null,5611,0]
[null,0,null,null,5700,0]
[null,0,null,null,5710,0]
[null,0,null,null,5800,0]
[null,0,null,null,5801,0]
[null,0,null,null,5802,0]
[null,0,null,null,5803,0]
[null,0,null,null,5804,0]
[null,0,null,null,5805,0]
[null,0,null,null,6010,0]
[null,0,null,null,6011,0]
[null,0,null,null,6050,0]
[null,0,null,null,6070,0]
[null,0,null,null,6100,0]
[null,0,null,null,6150,{"$f":"IFERROR(VLOOKUP(E196,Import_From_Manual_LT,2,FALSE),0)","v":0}]
[null,0,null,null,6210,0]
[null,0,null,null,6250,0]
[null,0,null,null,6300,0]
[null,0,null,null,6305,0]
[null,0,null,null,6350,0]
[null,0,null,null,6355,0]
[null,0,null,null,6400,0]
[null,0,null,null,6450,0]
[null,0,null,null,6500,0]
[null,0,null,null,6600,0]
[null,0,null,null,6650,0]
[null,0,null,null,6700,0]
[null,0,null,null,6730,0]
[null,0,null,null,6731,0]
[null,0,null,null,6750,0]
[null,0,null,null,6755,0]
[null,0,null,null,6780,0]
[null,0,null,null,6800,0]
[null,0,null,null,6830,0]
[null,0,null,null,6870,0]
[null,0,null,null,6900,0]
[null,0,null,null,7300,0]
[null,0,null,null,7320,0]
[null,0,null,null,7400,0]
[null,0,null,null,7450,0]
[null,0,null,null,7500,0]
[null,0,null,null,7800,0]
[null,0,null,null,7850,0]
[null,0,null,null,8000,0]
[null,0,null,null,8020,0]
[null,0,null,null,8040,0]
[null,0,null,null,8060,0]
[null,0,null,null,8080,0]
[null,0,null,null,1400,0]
[null,0,null,null,1401,0]
[null,0,null,null,1402,0]
[null,0,null,null,1410,0]
[null,0,null,null,1411,0]
[null,0,null,null,1412,0]
[null,0,null,null,1420,0]
[null,0,null,null,1421,0]
[null,0,null,null,1422,0]
[null,0,null,null,1425,0]
[null,0,null,null,1426,0]
[null,0,null,null,1427,0]
[null,0,null,null,1430,0]
[null,0,null,null,1431,0]
[null,0,null,null,1432,0]
[null,0,null,null,1435,0]
[null,0,null,null,1436,0]
[null,0,null,null,1437,0]
[null,0,null,null,1440,0]
[null,0,null,null,1441,0]
[null,0,null,null,1442,0]
[null,0,null,null,1450,0]
[null,0,null,null,1451,0]
[null,0,null,null,1452,0]
[null,0,null,null,1460,0]
[null,0,null,null,1461,0]
[null,0,null,null,1462,0]
[null,0,null,null,1465,0]
[null,0,null,null,1466,0]
[null,0,null,null,1467,0]
[null,0,null,null,1470,{"$f":"IFERROR(VLOOKUP(E260,Import_From_Manual_LT,2,FALSE),0)","v":0}]
[null,0,null,null,1471,0]
[null,0,null,null,1472,0]
[null,0,null,null,1475,0]
[null,0,null,null,1476,0]
[null,0,null,null,1477,0]
[null,0,null,null,1480,0]
[null,0,null,null,1481,0]
[null,0,null,null,1482,0]
[null,0,null,null,1490,0]
[null,0,null,null,1491,0]
[null,0,null,null,1492,0]
[null,0,null,null,1700,0]
[null,0,null,null,1705,0]
[null,0,null,null,1710,0]
[null,0,null,null,1720,0]
[null,0,null,null,1730,0]
[null,0,null,null,1800,0]
[null,0,null,null,1801,0]
[null,0,null,null,1802,0]
[null,0,null,null,1803,0]
[null,0,null,null,1810,0]
[null,0,null,null,1820,0]
[null,0,null,null,1850,0]
[null,0,null,null,1870,0]
[null,0,null,null,1900,0]
[null,0,null,null,1950,0]
[null,0,null,null,2100,0]
[null,0,null,null,2105,0]
[null,0,null,null,2150,0]
[null,0,null,null,2151,0]
[null,0,null,null,2152,0]
[null,0,null,null,2160,0]
[null,0,null,null,2161,0]
[null,0,null,null,2165,0]
[null,0,null,null,2166,0]
[null,0,null,null,2167,0]
[null,0,null,null,2168,0]
[null,0,null,null,2169,0]
[null,0,null,null,2170,0]
[null,0,null,null,2171,0]
[null,0,null,null,2172,0]
[null,0,null,null,2179,0]
[null,0,null,null,2180,0]
[null,0,null,null,2181,0]
[null,0,null,null,2182,0]
[null,0,null,null,2183,0]
[null,0,null,null,2184,0]
[null,0,null,null,2185,0]
[null,0,null,null,2200,0]
[null,0,null,null,2210,{"$f":"IFERROR(VLOOKUP(E310,Import_From_Manual_LT,2,FALSE),0)","v":0}]
[null,0,null,null,2220,0]
[null,0,null,null,2230,0]
[null,0,null,null,2240,0]
[null,0,null,null,2250,0]
[null,0,null,null,2260,0]
[null,0,null,null,2270,0]
[null,0,null,null,2310,0]
[null,0,null,null,2320,0]
[null,0,null,null,2330,0]
[null,0,null,null,2440,0]
[null,0,null,null,2600,0]
[null,0,null,null,2700,0]
[null,0,null,null,2710,0]
[null,0,null,null,3900,0]
[null,0,null,null,3901,0]
[null,0,null,null,3902,0]
[null,0,null,null,3903,0]
[null,0,null,null,3904,0]
[null,0,null,null,3905,0]
[null,0,null,null,3906,0]
[null,0,null,null,3907,0]
[null,0,null,null,3920,0]
[null,0,null,null,3921,0]
[null,0,null,null,3925,0]
[null,0,null,null,3926,0]
[null,0,null,null,3940,0]
[null,0,null,null,3941,0]
[null,0,null,null,3960,0]
[null,0,null,null,3970,0]
[null,0,null,null,3990,0]
[null,0,null,null,3991,0]
[null,0,null,null,3992,0]
[null,0,null,null,3995,0]
["Check",{"$f":"SUM(B4:B343)","v":0}]
[]
["Do not enter values beyond row 343"]

{"sheet":"Import Comparisons","index":22,"n_rows":311,"n_cols":3,"rows_kept":311,"cut":false,"hidden":false,"merged":[]}
["Roll No","12345G","Instructions"]
["Nominal Code"]
["Nominal Code","Final Accounts "]
[3010,0]
[3020,0]
[3030,0]
[3050,0]
[3100,0]
[3130,0]
[3140,0]
[3150,0]
[3160,0]
[3170,0]
[3190,0]
[3200,0]
[3210,0]
[3220,0]
[3225,0]
[3226,0]
[3227,0]
[3230,0]
[3240,0]
[3245,0]
[3255,0]
[3260,0]
[3270,0]
[3275,0]
[3276,0]
[3277,0]
[3280,0]
[3281,0]
[3282,0]
[3283,0]
[3284,0]
[3285,0]
[3286,0]
[3287,0]
[3290,0]
[3292,0]
[3293,0]
[3294,0]
[3295,0]
[3296,0]
[3297,0]
[3298,0]
[3299,0]
[3300,0]
[3310,0]
[3330,0]
[3335,0]
[3350,0]
[3360,0]
[3370,0]
[3375,0]
[3390,0]
[3395,0]
[3410,0]
[3420,0]
[3430,0]
[3440,0]
[3450,0]
[3460,0]
[3490,0]
[3495,0]
[3500,0]
[3510,0]
[3520,0]
[3530,0]
[3531,0]
[3535,0]
[3540,0]
[3545,0]
[3550,0]
[3570,0]
[3572,0]
[3573,0]
[3574,0]
[3575,0]
[3580,0]
[3650,0]
[3700,0]
[3770,0]
[3800,0]
[3840,0]
[3850,0]
[3851,0]
[3852,0]
[3853,0]
[4110,0]
[4111,0]
[4112,0]
[4150,0]
[4155,0]
[4170,0]
[4180,0]
[4181,0]
[4190,0]
[4191,0]
[4196,0]
[4197,0]
[4198,0]
[4199,0]
[4310,0]
[4330,0]
[4350,0]
[4370,0]
[4390,0]
[4410,0]
[4420,0]
[4430,0]
[4450,0]
[4470,0]
[4490,0]
[4550,0]
[4570,0]
[4590,0]
[4610,0]
[4620,0]
[4630,0]
[4635,0]
[4640,0]
[4650,0]
[4670,0]
[4671,0]
[4690,0]
[4710,0]
[4720,0]
[4730,0]
[4740,0]
[4741,0]
[4750,0]
[4760,0]
[4770,0]
[4780,0]
[4810,0]
[4815,0]
[4850,0]
[4908,0]
[4909,0]
[4910,0]
[4911,0]
[4912,0]
[4913,0]
[4914,0]
[4915,0]
[4916,0]
[4917,0]
[4918,0]
[4919,0]
[4920,0]
[4921,0]
[4922,0]
[4923,0]
[4924,0]
[4925,0]
[4927,0]
[4928,0]
[4930,0]
[5010,0]
[5011,0]
[5020,0]
[5030,0]
[5110,0]
[5111,0]
[5112,0]
[5150,0]
[5170,0]
[5175,0]
[5310,0]
[5315,0]
[5316,0]
[5350,0]
[5400,0]
[5450,0]
[5510,0]
[5550,0]
[5551,0]
[5552,0]
[5610,0]
[5611,0]
[5700,0]
[5710,0]
[5800,0]
[5801,0]
[5802,0]
[5803,0]
[5804,0]
[5805,0]
[6010,0]
[6011,0]
[6050,0]
[6070,0]
[6100,0]
[6150,0]
[6210,0]
[6250,0]
[6300,0]
[6305,0]
[6350,0]
[6355,0]
[6400,0]
[6450,0]
[6500,0]
[6600,0]
[6650,0]
[6700,0]
[6730,0]
[6731,0]
[6750,0]
[6755,0]
[6780,0]
[6800,0]
[6830,0]
[6870,0]
[6900,0]
[7300,0]
[7320,0]
[7400,0]
[7450,0]
[7500,0]
[7800,0]
[7850,0]
[8000,0]
[8020,0]
[8040,0]
[8060,0]
[8080,0]
[1400,0]
[1410,0]
[1420,0]
[1425,0]
[1430,0]
[1435,0]
[1440,0]
[1450,0]
[1460,0]
[1465,0]
[1470,0]
[1475,0]
[1480,0]
[1490,0]
[1700,0]
[1710,0]
[1720,0]
[1730,0]
[1800,0]
[1801,0]
[1802,0]
[1803,0]
[1810,0]
[1820,0]
[1850,0]
[1870,0]
[1900,0]
[1950,0]
[2100,0]
[2105,0]
[2150,0]
[2151,0]
[2152,0]
[2160,0]
[2165,0]
[2166,0]
[2167,0]
[2168,0]
[2169,0]
[2170,0]
[2171,0]
[2172,0]
[2180,0]
[2181,0]
[2182,0]
[2183,0]
[2184,0]
[2185,0]
[2200,0]
[2210,0]
[2220,0]
[2230,0]
[2240,0]
[2250,0]
[2260,0]
[2270,0]
[2310,0]
[2320,0]
[2330,0]
[2440,0]
[2600,0]
[2700,0]
[2710,0]
[3900,0]
[3901,0]
[3902,0]
[3903,0]
[3904,0]
[3905,0]
[3906,0]
[3907,0]
[3920,0]
[3921,0]
[3925,0]
[3926,0]
[3940,0]
[3941,0]
[3960,0]
[3970,0]
[3990,0]
[3991,0]
[3992,0]
[3995,0]
["Check",{"$f":"SUM(Nominal_Code_LT[[Final Accounts ]])","v":0}]

{"sheet":"Import Manual Comparisons","index":23,"n_rows":314,"n_cols":7,"rows_kept":314,"cut":false,"hidden":true,"merged":[]}
["Roll No","12345G",null,null,"Instructions",null,"Do not delete"]
["Nominal Code"]
["Nominal Code","Final Accounts "]
[3010,0,null,null,3010,{"$f":"IFERROR(VLOOKUP(E4,Import_From_Manual_LT,2,FALSE),0)","v":0}]
[3020,0,null,null,3020,{"$f":"IFERROR(VLOOKUP(E5,Import_From_Manual_LT,2,FALSE),0)","v":0}]
[3030,0,null,null,3030,0]
[3050,0,null,null,3050,0]
[3100,0,null,null,3100,0]
[3130,0,null,null,3130,0]
[3140,0,null,null,3140,0]
[3150,0,null,null,3150,0]
[3160,0,null,null,3160,0]
[3170,0,null,null,3170,0]
[3190,0,null,null,3190,0]
[3200,0,null,null,3200,0]
[3210,0,null,null,3210,0]
[3220,0,null,null,3220,0]
[3225,0,null,null,3225,0]
[3226,0,null,null,3226,0]
[3227,0,null,null,3227,0]
[3230,0,null,null,3230,0]
[3240,0,null,null,3240,0]
[3245,0,null,null,3245,0]
[3255,0,null,null,3255,0]
[3260,0,null,null,3260,0]
[3270,0,null,null,3270,0]
[3275,0,null,null,3275,0]
[3276,0,null,null,3276,0]
[3277,0,null,null,3277,0]
[3280,0,null,null,3280,0]
[3281,0,null,null,3281,0]
[3282,0,null,null,3282,0]
[3283,0,null,null,3283,0]
[3284,0,null,null,3284,0]
[3285,0,null,null,3285,0]
[3286,0,null,null,3286,0]
[3287,0,null,null,3287,0]
[3290,0,null,null,3290,0]
[3292,0,null,null,3292,0]
[3293,0,null,null,3293,0]
[3294,0,null,null,3294,0]
[3295,0,null,null,3295,0]
[3296,0,null,null,3296,0]
[3297,0,null,null,3297,0]
[3298,0,null,null,3298,0]
[3299,0,null,null,3299,0]
[3300,0,null,null,3300,0]
[3310,0,null,null,3310,0]
[3330,0,null,null,3330,0]
[3335,0,null,null,3335,0]
[3350,0,null,null,3350,0]
[3360,0,null,null,3360,0]
[3370,0,null,null,3370,0]
[3375,0,null,null,3375,0]
[3390,0,null,null,3390,0]
[3395,0,null,null,3395,0]
[3410,0,null,null,3410,0]
[3420,0,null,null,3420,0]
[3430,0,null,null,3430,0]
[3440,0,null,null,3440,0]
[3450,0,null,null,3450,0]
[3460,0,null,null,3460,0]
[3490,0,null,null,3490,0]
[3495,0,null,null,3495,0]
[3500,0,null,null,3500,0]
[3510,0,null,null,3510,0]
[3520,0,null,null,3520,0]
[3530,0,null,null,3530,{"$f":"IFERROR(VLOOKUP(E68,Import_From_Manual_LT,2,FALSE),0)","v":0}]
[3531,0,null,null,3531,0]
[3535,0,null,null,3535,0]
[3540,0,null,null,3540,0]
[3545,0,null,null,3545,0]
[3550,0,null,null,3550,0]
[3570,0,null,null,3570,0]
[3572,0,null,null,3572,0]
[3573,0,null,null,3573,0]
[3574,0,null,null,3574,0]
[3575,0,null,null,3575,0]
[3580,0,null,null,3580,0]
[3650,0,null,null,3650,0]
[3700,0,null,null,3700,0]
[3770,0,null,null,3770,0]
[3800,0,null,null,3800,0]
[3840,0,null,null,3840,0]
[3850,0,null,null,3850,0]
[3851,0,null,null,3851,0]
[3852,0,null,null,3852,0]
[3853,0,null,null,3853,0]
[4110,0,null,null,4110,0]
[4111,0,null,null,4111,0]
[4112,0,null,null,4112,0]
[4150,0,null,null,4150,0]
[4155,0,null,null,4155,0]
[4170,0,null,null,4170,0]
[4180,0,null,null,4180,0]
[4181,0,null,null,4181,0]
[4190,0,null,null,4190,0]
[4191,0,null,null,4191,0]
[4196,0,null,null,4196,0]
[4197,0,null,null,4197,0]
[4198,0,null,null,4198,0]
[4199,0,null,null,4199,0]
[4310,0,null,null,4310,0]
[4330,0,null,null,4330,0]
[4350,0,null,null,4350,0]
[4370,0,null,null,4370,0]
[4390,0,null,null,4390,0]
[4410,0,null,null,4410,0]
[4420,0,null,null,4420,0]
[4430,0,null,null,4430,0]
[4450,0,null,null,4450,0]
[4470,0,null,null,4470,0]
[4490,0,null,null,4490,0]
[4550,0,null,null,4550,0]
[4570,0,null,null,4570,0]
[4590,0,null,null,4590,0]
[4610,0,null,null,4610,0]
[4620,0,null,null,4620,0]
[4630,0,null,null,4630,0]
[4635,0,null,null,4635,0]
[4640,0,null,null,4640,0]
[4650,0,null,null,4650,0]
[4670,0,null,null,4670,0]
[4671,0,null,null,4671,0]
[4690,0,null,null,4690,0]
[4710,0,null,null,4710,0]
[4720,0,null,null,4720,0]
[4730,0,null,null,4730,0]
[4740,0,null,null,4740,0]
[4741,0,null,null,4741,0]
[4750,0,null,null,4750,0]
[4760,0,null,null,4760,{"$f":"IFERROR(VLOOKUP(E132,Import_From_Manual_LT,2,FALSE),0)","v":0}]
[4770,0,null,null,4770,0]
[4780,0,null,null,4780,0]
[4810,0,null,null,4810,0]
[4815,0,null,null,4815,0]
[4850,0,null,null,4850,0]
[4908,0,null,null,4908,0]
[4909,0,null,null,4909,0]
[4910,0,null,null,4910,0]
[4911,0,null,null,4911,0]
[4912,0,null,null,4912,0]
[4913,0,null,null,4913,0]
[4914,0,null,null,4914,0]
[4915,0,null,null,4915,0]
[4916,0,null,null,4916,0]
[4917,0,null,null,4917,0]
[4918,0,null,null,4918,0]
[4919,0,null,null,4919,0]
[4920,0,null,null,4920,0]
[4921,0,null,null,4921,0]
[4922,0,null,null,4922,0]
[4923,0,null,null,4923,0]
[4924,0,null,null,4924,0]
[4925,0,null,null,4925,0]
[4927,0,null,null,4927,0]
[4928,0,null,null,4928,0]
[4930,0,null,null,4930,0]
[5010,0,null,null,5010,0]
[5011,0,null,null,5011,0]
[5020,0,null,null,5020,0]
[5030,0,null,null,5030,0]
[5110,0,null,null,5110,0]
[5111,0,null,null,5111,0]
[5112,0,null,null,5112,0]
[5150,0,null,null,5150,0]
[5170,0,null,null,5170,0]
[5175,0,null,null,5175,0]
[5310,0,null,null,5310,0]
[5315,0,null,null,5315,0]
[5316,0,null,null,5316,0]
[5350,0,null,null,5350,0]
[5400,0,null,null,5400,0]
[5450,0,null,null,5450,0]
[5510,0,null,null,5510,0]
[5550,0,null,null,5550,0]
[5551,0,null,null,5551,0]
[5552,0,null,null,5552,0]
[5610,0,null,null,5610,0]
[5611,0,null,null,5611,0]
[5700,0,null,null,5700,0]
[5710,0,null,null,5710,0]
[5800,0,null,null,5800,0]
[5801,0,null,null,5801,0]
[5802,0,null,null,5802,0]
[5803,0,null,null,5803,0]
[5804,0,null,null,5804,0]
[5805,0,null,null,5805,0]
[6010,0,null,null,6010,0]
[6011,0,null,null,6011,0]
[6050,0,null,null,6050,0]
[6070,0,null,null,6070,0]
[6100,0,null,null,6100,0]
[6150,0,null,null,6150,0]
[6210,0,null,null,6210,0]
[6250,0,null,null,6250,{"$f":"IFERROR(VLOOKUP(E196,Import_From_Manual_LT,2,FALSE),0)","v":0}]
[6300,0,null,null,6300,0]
[6305,0,null,null,6305,0]
[6350,0,null,null,6350,0]
[6355,0,null,null,6355,0]
[6400,0,null,null,6400,0]
[6450,0,null,null,6450,0]
[6500,0,null,null,6500,0]
[6600,0,null,null,6600,0]
[6650,0,null,null,6650,0]
[6700,0,null,null,6700,0]
[6730,0,null,null,6730,0]
[6731,0,null,null,6731,0]
[6750,0,null,null,6750,0]
[6755,0,null,null,6755,0]
[6780,0,null,null,6780,0]
[6800,0,null,null,6800,0]
[6830,0,null,null,6830,0]
[6870,0,null,null,6870,0]
[6900,0,null,null,6900,0]
[7300,0,null,null,7300,0]
[7320,0,null,null,7320,0]
[7400,0,null,null,7400,0]
[7450,0,null,null,7450,0]
[7500,0,null,null,7500,0]
[7800,0,null,null,7800,0]
[7850,0,null,null,7850,0]
[8000,0,null,null,8000,0]
[8020,0,null,null,8020,0]
[8040,0,null,null,8040,0]
[8060,0,null,null,8060,0]
[8080,0,null,null,8080,0]
[1400,0,null,null,1400,0]
[1410,0,null,null,1410,0]
[1420,0,null,null,1420,0]
[1425,0,null,null,1425,0]
[1430,0,null,null,1430,0]
[1435,0,null,null,1435,0]
[1440,0,null,null,1440,0]
[1450,0,null,null,1450,0]
[1460,0,null,null,1460,0]
[1465,0,null,null,1465,0]
[1470,0,null,null,1470,0]
[1475,0,null,null,1475,0]
[1480,0,null,null,1480,0]
[1490,0,null,null,1490,0]
[1700,0,null,null,1700,0]
[1710,0,null,null,1710,0]
[1720,0,null,null,1720,0]
[1730,0,null,null,1730,0]
[1800,0,null,null,1800,0]
[1801,0,null,null,1801,0]
[1802,0,null,null,1802,0]
[1803,0,null,null,1803,0]
[1810,0,null,null,1810,0]
[1820,0,null,null,1820,0]
[1850,0,null,null,1850,0]
[1870,0,null,null,1870,0]
[1900,0,null,null,1900,0]
[1950,0,null,null,1950,0]
[2100,0,null,null,2100,0]
[2105,0,null,null,2105,0]
[2150,0,null,null,2150,0]
[2151,0,null,null,2151,0]
[2152,0,null,null,2152,{"$f":"IFERROR(VLOOKUP(E260,Import_From_Manual_LT,2,FALSE),0)","v":0}]
[2160,0,null,null,2160,0]
[2165,0,null,null,2165,0]
[2166,0,null,null,2166,0]
[2167,0,null,null,2167,0]
[2168,0,null,null,2168,0]
[2169,0,null,null,2169,0]
[2170,0,null,null,2170,0]
[2171,0,null,null,2171,0]
[2172,0,null,null,2172,0]
[2180,0,null,null,2180,0]
[2181,0,null,null,2181,0]
[2182,0,null,null,2182,0]
[2183,0,null,null,2183,0]
[2184,0,null,null,2184,0]
[2185,0,null,null,2185,0]
[2200,0,null,null,2200,0]
[2210,0,null,null,2210,0]
[2220,0,null,null,2220,0]
[2230,0,null,null,2230,0]
[2240,0,null,null,2240,0]
[2250,0,null,null,2250,0]
[2260,0,null,null,2260,0]
[2270,0,null,null,2270,0]
[2310,0,null,null,2310,0]
[2320,0,null,null,2320,0]
[2330,0,null,null,2330,0]
[2440,0,null,null,2440,0]
[2600,0,null,null,2600,0]
[2700,0,null,null,2700,0]
[2710,0,null,null,2710,0]
[3900,0,null,null,3900,0]
[3901,0,null,null,3901,0]
[3902,0,null,null,3902,0]
[3903,0,null,null,3903,0]
[3904,0,null,null,3904,0]
[3905,0,null,null,3905,0]
[3906,0,null,null,3906,0]
[3907,0,null,null,3907,0]
[3920,0,null,null,3920,0]
[3921,0,null,null,3921,0]
[3925,0,null,null,3925,0]
[3926,0,null,null,3926,0]
[3940,0,null,null,3940,0]
[3941,0,null,null,3941,0]
[3960,0,null,null,3960,0]
[3970,0,null,null,3970,0]
[3990,0,null,null,3990,0]
[3991,0,null,null,3991,0]
[3992,0,null,null,3992,0]
[3995,0,null,null,3995,{"$f":"IFERROR(VLOOKUP(E310,Import_From_Manual_LT,2,FALSE),0)","v":0}]
[]
["Check",{"$f":"SUM(B4:B310)","v":0}]
[]
["Do not enter values beyond row 310"]